Workbook

Sheet Read Me First
A1: This curriculum map provides a suggested order of assignments and timing for utilizing the EasyTech curriculum as part of a blended learning experience. It has been designed to prepare students with foundational and scaffolded knowledge and skills throughout the digital literacy skill content area units. Instruction, practice, application, and assessment curriculum materials are available to meet the varying instructional needs of learners. • Foundational keyboarding curriculum is included for all grade levels and the Adaptive Keyboarding experience begins in 3rd grade. • CIPA compliant curriculum materials are marked with an * and can be found at every grade level. • Pre and Post Skills Checks have been included for grades 3-8 and may be used to identify areas for further instruction and growth.
A8: Each unit contains suggested curriculum materials delivered through whole group, small group, guided practice, independent practice, or blended learning implementation models. The following times are to be used for planning purposes and reflect a minimum suggested amount of time for digital literacy skills learning for a school year. • PK-5th grade = 45 minutes per week (minimum) • 6th-8th grade = 115 minutes per week (minimum) • Middle School course = 180 minutes per week (minimum) • High School = 90 minutes per week (minimum) • It is recommended that keyboarding should be practiced throughout the year for 15-30 minutes at least twice per week to help students build their skills through technique, accuracy, and speed. Note: Adaptive Keyboarding can be found on the student map and in the Arcade. Keyboarding is included at the top of each sequence as a reminder to provide regular practice with keyboarding skills.
A19: Prior to Implementation, identify where EasyTech might fit in your existing educational environments and who will lead the instructional time. Implementation Suggestions: • Technology teachers, core content teachers, library/media specialists and paraprofessionals will all have access to digital literacy curriculum that meets the needs of a variety of students. • Provide students with the opportunity to demonstrate mastery of these skills as part of in-class or at-home assignment(s) or project(s). • The blended learning path ensures that classroom teachers can introduce new skills to students and includes opportunities for integrating technology skills into core content areas.

Sheet Pre-K
E1: Blended Learning Path
B3: EasyTech Curriculum Map - Pre-Kindergarten
B4: 2022-2023
B6: This Curriculum Map provides a suggested order of assignments for utilizing the EasyTech curriculum in your classroom. For planning purposes, it is recommended that approximately 45 minutes of digital literacy curriculum is delivered each week through whole group, independent, or guided practice implementation models.
B8: Prior to beginning the school year, it is recommended that you create student technology portfolios (digital or print) to provide students with a way to share their learning. The portfolio may include pictures, reports, and documents published. Pictures are a great way to show your students the learning process and can be used at the end of the year for a class slideshow or technology showcase.
B10: Digital Literacy Concept | C10: Curriculum Title | D10: Description | E10: Learning Component | F10: Implementation Model | G10: Time (in minutes)
C11: * CIPA Required topic
B12: Online Safety & Digital Citizenship | C12: * Introduction to Digital Citizenship: Cyberbullying | D12: This colorful and engaging video introduces students to the basics of dealing with cyberbullying on the internet. | E12: Instruction | F12: Whole Group | G12: 5
B13: Online Safety & Digital Citizenship | C13: * Introduction to Online Safety: Protecting Your Privacy | D13: This engaging video-based learning object provides the learner with foundational knowledge about the importance of protecting their personal information. The learner will understand that they shouldn't share any personal information online or agree to meet anyone they don’t know and trust; and they should always log off or lock their device to protect their personal information. | E13: Instruction | F13: Whole Group | G13: 4
B14: IT Fundamentals | C14: Introduction to Computer Fundamentals | D14: In this engaging animated video, Ollie the Owl gives an overview of the importance of staying safe online and logging out of the computer to protect your information. | E14: Instruction | F14: Whole Group | G14: 3
B15: IT Fundamentals | C15: Computer Fundamentals: Intro to Pointer Devices | D15: In this engaging and interactive digital lesson, the learners receive direct instruction and practice using a mouse and a trackpad to select objects. | E15: Instruction and Practice | F15: Whole Group | G15: 5
B16: IT Fundamentals | C16: Computer Fundamentals: Intro to Pointer Devices | D16: In this engaging and interactive digital lesson, the learners receive direct instruction and practice using a mouse and a trackpad to select objects. | E16: Instruction and Practice | F16: Independent | G16: 5
B17: IT Fundamentals | C17: Computer Fundamentals: Pointers and Making Choices | D17: In this engaging and interactive digital lesson, the learners receive direct instruction and practice choosing which items to select with their pointer device. | E17: Instruction and Practice | F17: Whole Group | G17: 5
B18: IT Fundamentals | C18: Computer Fundamentals: Pointers and Making Choices | D18: In this engaging and interactive digital lesson, the learners receive direct instruction and practice choosing which items to select with their pointer device. | E18: Instruction and Practice | F18: Independent | G18: 5
B19: IT Fundamentals | C19: Critter Catch | D19: In this interactive game, the learner practices hand-eye coordination using a mouse or trackpad to move the on screen pointer and the button or tap feature to catch bugs. | E19: Practice | F19: Independent | G19: 2
B20: IT Fundamentals | C20: Computer Fundamentals: Selecting Multiple Objects | D20: In this engaging and interactive digital lesson, the learners receive direct instruction and practice using a mouse and a trackpad to select multiple objects at the same time. | E20: Instruction and Practice | F20: Whole Group | G20: 10
B21: IT Fundamentals | C21: Computer Fundamentals: Selecting Multiple Objects | D21: In this engaging and interactive digital lesson, the learners receive direct instruction and practice using a mouse and a trackpad to select multiple objects at the same time. | E21: Instruction and Practice | F21: Independent | G21: 10
B22: IT Fundamentals | C22: Computer Fundamentals: Using a Pointer Device to Move Objects | D22: In this engaging and interactive digital lesson, the learners receive direct instruction and practice selecting, unselecting, and moving objects. | E22: Instruction and Practice | F22: Whole Group | G22: 10
B23: IT Fundamentals | C23: Computer Fundamentals: Using a Pointer Device to Move Objects | D23: In this engaging and interactive digital lesson, the learners receive direct instruction and practice selecting, unselecting, and moving objects. | E23: Instruction and Practice | F23: Independent | G23: 10
B24: IT Fundamentals | C24: Computer Fundamentals: Using a Pointer Device to Double-Click | D24: In this engaging and interactive digital lesson, the learners receive direct instruction and practice using a mouse to select, drag, and double-click as they select items using the pointer and mouse button, move objects on the screen, and double-click to open objects. | E24: Instruction and Practice | F24: Whole Group | G24: 3
B25: IT Fundamentals | C25: Computer Fundamentals: Using a Pointer Device to Double-Click | D25: In this engaging and interactive digital lesson, the learners receive direct instruction and practice using a pointer device to select an object by double-clicking. | E25: Instruction and Practice | F25: Independent | G25: 3
B26: IT Fundamentals | C26: Computer Fundamentals: Access Websites and Scroll | D26: In this engaging and interactive digital lesson, learners receive direct instruction and practice opening a hyperlink and using scroll bars. | E26: Instruction | F26: Whole Group | G26: 3
B27: IT Fundamentals | C27: Computer Fundamentals: Access Websites and Scroll | D27: In this engaging and interactive digital lesson, learners receive direct instruction and practice opening a hyperlink and using scroll bars. | E27: Instruction | F27: Independent | G27: 3
B28: IT Fundamentals | C28: Computer Fundamentals: Processors, Input and Output Devices | D28: The learners receive direct instruction and practice identifying and caring for basic computer components such as the processor, keyboard, mouse, monitor, speakers, printer, and to classify the component as either an input or output device in this engaging and interactive digital lesson. | E28: Instruction and Practice | F28: Whole Group | G28: 9
B29: IT Fundamentals | C29: Computer Fundamentals: Processors, Input and Output Devices | D29: The learners receive direct instruction and practice identifying and caring for basic computer components such as the processor, keyboard, mouse, monitor, speakers, printer, and to classify the component as either an input or output device in this engaging and interactive digital lesson. | E29: Instruction and Practice | F29: Independent | G29: 9
B30: IT Fundamentals | C30: Following Computer Rules | D30: Students study a picture, and check the radio button next to the smiley face for the kids following computer rules, and the button next to the sad face for the kids breaking computer rules. | E30: Application | F30: Guided | G30: 20
B31: IT Fundamentals | C31: IT Fundamentals: An Icon-ic Concert Part 1 | D31: In this engaging animated video, the Tech Grove friends prepare for a concert by discovering the purpose of technology icons. The seven different icons covered in this lesson are: power icon, plus and minus icons, home icon, close or exit icon, and left and right arrow icons. | E31: Instruction | F31: Whole Group | G31: 4
B32: IT Fundamentals | C32: IT Fundamentals: An Icon-ic Concert Part 1 | D32: In this engaging animated video, the Tech Grove friends prepare for a concert by discovering the purpose of technology icons. The seven different icons covered in this lesson are: power icon, plus and minus icons, home icon, close or exit icon, and left and right arrow icons. | E32: Instruction | F32: Independent | G32: 4
B33: IT Fundamentals | C33: IT Fundamentals: An Icon-ic Concert Part 2 | D33: In this engaging animated video, the Tech Grove friends prepare for a concert by discovering the purpose of technology icons. The seven different icons covered in this lesson are: power icon, plus and minus icons, home icon, close or exit icon, and left and right arrow icons. | E33: Instruction | F33: Whole Group | G33: 3
B34: IT Fundamentals | C34: IT Fundamentals: An Icon-ic Concert Part 2 | D34: In this engaging animated video, the Tech Grove friends prepare for a concert by discovering the purpose of technology icons. The seven different icons covered in this lesson are: power icon, plus and minus icons, home icon, close or exit icon, and left and right arrow icons. | E34: Instruction | F34: Independent | G34: 3
B35: IT Fundamentals | C35: IT Fundamentals: An Icon-ic Practice | D35: This interactive experience is intended to be an independent practice for students and can be used in a teacher-led or in a student-led learning format. | E35: Practice | F35: Guided | G35: 15
F36: Minutes in Unit | G36: =SUM(G12:G35) -> 153
B38: Tips & Suggestions - As you begin digital literacy instruction, it is recommended to have students practice logging in and out to establish independence with the learning experience. Using student helpers to "drive" the teacher computer & take over the login steps with instructions/reminders from other students is a good way to ensure all students understand how to log in and out.
B40: Digital Literacy Concept | C40: Curriculum Title | D40: Description | E40: Learning Component | F40: Implementation Model | G40: Time (in minutes)
C41: * CIPA Required topic
B42: Online Safety & Digital Citizenship | C42: *Meaning of Online: The Curious Crystals | D42: In this engaging animated video, Pearl and Rocki are led to a mysterious machine in the forest that grants them access to the internet. Includes printable items. | E42: Instruction | F42: Whole Group | G42: 3
B43: Online Safety & Digital Citizenship | C43: *Meaning of Online: The Curious Crystals | D43: In this engaging animated video, Pearl and Rocki are led to a mysterious machine in the forest that grants them access to the internet. Includes printable items. | E43: Instruction | F43: Independent | G43: 3
B44: Online Safety & Digital Citizenship | C44: *Meaning of Online: Vocabulary Interactive Practice | D44: In this interactive learning experience, students improve their knowledge of vocabulary terms and definitions related to what it means to be online. Includes printable items. | E44: Practice | F44: Guided | G44: 10
B45: Online Safety & Digital Citizenship | C45: *Meaning of Online: Agree to the AUP | D45: In this interactive learning experience, students improve their knowledge of acceptable use policies. Includes printable items. | E45: Practice | F45: Guided | G45: 2
B46: Online Safety & Digital Citizenship | C46: *Meaning of Online: Have Fun Online | D46: In this interactive learning experience, students improve their knowledge of what it means to be online and the types of activities they do online. Includes printable items. | E46: Practice | F46: Guided | G46: 2
B47: Online Safety & Digital Citizenship | C47: *Getting Started Online: Pearl's Private Password | D47: In this engaging animated video, Rocki comes up with a username and password to enter the Internet. Pearl must come up with her own secret credentials to enter. Includes printable items. | E47: Instruction | F47: Whole Group | G47: 3
B48: Online Safety & Digital Citizenship | C48: *Getting Started Online: Pearl's Private Password | D48: In this engaging animated video, Rocki comes up with a username and password to enter the Internet. Pearl must come up with her own secret credentials to enter. Includes printable items. | E48: Instruction | F48: Independent | G48: 3
B49: Online Safety & Digital Citizenship | C49: *Getting Started Online: Vocabulary Interactive Practice | D49: In this interactive learning experience, students improve their knowledge of vocabulary terms and definitions related to getting started online. Includes printable items. | E49: Practice | F49: Guided | G49: 10
B50: Online Safety & Digital Citizenship | C50: *Getting Started Online: Parts of a Password | D50: In this interactive learning experience, students improve their knowledge of online safety. Includes printable items. | E50: Practice | F50: Guided | G50: 2
B51: Online Safety & Digital Citizenship | C51: *Getting Started Online: Color the Usernames | D51: In this interactive learning experience, students improve their knowledge of online safety. Includes printable items. | E51: Practice | F51: Guided | G51: 2
B52: Online Safety & Digital Citizenship | C52: *Getting Started Online: What Should Pearl Say | D52: In this interactive learning experience, students improve their knowledge of online safety. Includes printable items. | E52: Practice | F52: Guided | G52: 2
B53: Online Safety & Digital Citizenship | C53: *Online Privacy: Help Is on the Way! | D53: In this engaging animated video, Rocki falls victim to an information thief! The crew must call upon their wise friend Ollie to save the day. Includes printable items. | E53: Instruction | F53: Whole Group | G53: 3
B54: Online Safety & Digital Citizenship | C54: *Online Privacy: Help Is on the Way! | D54: In this engaging animated video, Rocki falls victim to an information thief! The crew must call upon their wise friend Ollie to save the day. Includes printable items. | E54: Instruction | F54: Independent | G54: 3
B55: Online Safety & Digital Citizenship | C55: *Online Privacy: Vocabulary Interactive Practice | D55: In this interactive learning experience, students improve their knowledge of vocabulary terms and definitions related to online privacy. Includes printable items. | E55: Practice | F55: Guided | G55: 10
B56: Online Safety & Digital Citizenship | C56: *Online Privacy: Personal Information | D56: In this interactive learning experience, students practice their knowledge and skills related to online privacy. Includes printable items. | E56: Practice | F56: Guided | G56: 2
B57: Online Safety & Digital Citizenship | C57: *Online Privacy: Trusted Adults | D57: In this interactive learning experience, students practice their knowledge and skills related to online privacy. Includes printable items. | E57: Practice | F57: Guided | G57: 2
B58: Online Safety & Digital Citizenship | C58: *Online Privacy: Keep it Safe and Private | D58: In this interactive learning experience, students practice their knowledge and skills related to online privacy. Includes printable items. | E58: Practice | F58: Guided | G58: 2
B59: Online Safety & Digital Citizenship | C59: *Cyberbullying: The Final Cyber-Quest | D59: In this engaging animated video, a cyberbully targets Rocki. The friends must make smart choices when handling this bullying situation. Includes printable items. | E59: Instruction | F59: Whole Group | G59: 2
B60: Online Safety & Digital Citizenship | C60: *Cyberbullying: The Final Cyber-Quest | D60: In this engaging animated video, a cyberbully targets Rocki. The friends must make smart choices when handling this bullying situation. Includes printable items. | E60: Instruction | F60: Independent | G60: 2
B61: Online Safety & Digital Citizenship | C61: *Cyberbullying: The Cave of Mystery | D61: In this engaging animated video, Rocki and Pearl finally arrive at the Cave of Mystery – a place where super cyber-citizens can see the rewards for their smart online choices. Includes printable items. | E61: Instruction | F61: Whole Group | G61: 2
B62: Online Safety & Digital Citizenship | C62: *Cyberbullying: The Cave of Mystery | D62: In this engaging animated video, Rocki and Pearl finally arrive at the Cave of Mystery – a place where super cyber-citizens can see the rewards for their smart online choices. Includes printable items. | E62: Instruction | F62: Independent | G62: 2
B63: Online Safety & Digital Citizenship | C63: *Cyberbullying: Vocabulary Practice | D63: In this interactive learning experience, students improve their knowledge of the vocabulary terms and definitions associated with cyberbullying. Includes printable items. | E63: Practice | F63: Guided | G63: 10
B64: Online Safety & Digital Citizenship | C64: *Cyberbullying: Where Is It Found? | D64: In this interactive learning experience, students practice their knowledge and skills related to cyberbullying. Includes printable items. | E64: Practice | F64: Guided | G64: 2
B65: Online Safety & Digital Citizenship | C65: *Cyberbullying: How Would You Feel? | D65: In this interactive learning experience, students practice their knowledge and skills related to cyberbullying. Includes printable items. | E65: Practice | F65: Guided | G65: 2
B66: Online Safety & Digital Citizenship | C66: *Cyberbullying: Super Cyber-Citizen | D66: In this interactive learning experience, students practice their knowledge and skills related to cyberbullying. Includes printable items. | E66: Practice | F66: Guided | G66: 2
F67: Minutes in Unit | G67: =SUM(G42:G66) -> 88
B69: Tips & Suggestions - Gradually releasing the responsibility of logging in and becoming an independent learner can go more smoothly by assigning 'tech buddies' to coach or assist as needed. The 'teach, not touch' or 'point, not press' approach is an effective way for peer helpers or tech buddies to coach but not take over for students who are struggling. Use your tech buddies during this unit for coaching and proper use of equipment.
B71: Digital Literacy Concept | C71: Curriculum Title | D71: Description | E71: Learning Component | F71: Implementation Model | G71: Time (in minutes)
B72: Keyboarding | C72: Keyboarding: Locate and Type Letters A, B, C, D, and E | D72: During this engaging and interactive digital lesson, the learners receive direct instruction and practice in keyboarding the letters A, B, C, D, and E as they locate and type the letters, recognize the letter sounds, and learn the relationship between the letters on the keyboard and on the screen. | E72: Instruction and Practice | F72: Whole Group | G72: 7
B73: Keyboarding | C73: Keyboarding: Locate and Type Letters A, B, C, D, and E | D73: During this engaging and interactive digital lesson, the learners receive direct instruction and practice in keyboarding the letters A, B, C, D, and E as they locate and type the letters, recognize the letter sounds, and learn the relationship between the letters on the keyboard and on the screen. | E73: Instruction and Practice | F73: Independent | G73: 7
B74: Keyboarding | C74: Keyboarding: Locate and Type Letters F, G, H, I, and J | D74: The learners receive direct instruction and practice in keyboarding the letters F, G, H, I, and J as they locate and type the letters, recognize the letter sounds, and learn the relationship between the letters on the keyboard and on the screen in this engaging and interactive digital lesson. | E74: Instruction and Practice | F74: Whole Group | G74: 7
B75: Keyboarding | C75: Keyboarding: Locate and Type Letters F, G, H, I, and J | D75: The learners receive direct instruction and practice in keyboarding the letters F, G, H, I, and J as they locate and type the letters, recognize the letter sounds, and learn the relationship between the letters on the keyboard and on the screen in this engaging and interactive digital lesson. | E75: Instruction and Practice | F75: Independent | G75: 7
B76: Keyboarding | C76: Keyboarding: Locate and Type Letters K, L, M, N, and O | D76: In this engaging and interactive digital lesson, the learners receive direct instruction and practice in keyboarding the letters K, L, M, N, and O as they locate and type the letters, recognize the letter sounds, and learn the relationship between the letters on the keyboard and on the screen. | E76: Instruction and Practice | F76: Whole Group | G76: 6
B77: Keyboarding | C77: Keyboarding: Locate and Type Letters K, L, M, N, and O | D77: In this engaging and interactive digital lesson, the learners receive direct instruction and practice in keyboarding the letters K, L, M, N, and O as they locate and type the letters, recognize the letter sounds, and learn the relationship between the letters on the keyboard and on the screen. | E77: Instruction and Practice | F77: Independent | G77: 6
B78: Keyboarding | C78: Keyboarding: Locate and Type Letters P, Q, R, S, and T | D78: The learners receive direct instruction and practice in keyboarding the letters P, Q, R, S, and T as they locate and type the letters, recognize the letter sounds, and learn the relationship between the letters on the keyboard and on the screen during this engaging and interactive digital lesson. | E78: Instruction and Practice | F78: Whole Group | G78: 6
B79: Keyboarding | C79: Keyboarding: Locate and Type Letters P, Q, R, S, and T | D79: The learners receive direct instruction and practice in keyboarding the letters P, Q, R, S, and T as they locate and type the letters, recognize the letter sounds, and learn the relationship between the letters on the keyboard and on the screen during this engaging and interactive digital lesson. | E79: Instruction and Practice | F79: Independent | G79: 6
B80: Keyboarding | C80: Keyboarding: Locate and Type Letters U, V, W, X, Y, and Z | D80: In this engaging and interactive digital lesson, the learners receive direct instruction and practice in keyboarding the letters U, V, W, X, Y, and Z as they locate and type the letters, recognize the letter sounds, and learn the relationship between the letters on the keyboard and on the screen. | E80: Instruction and Practice | F80: Whole Group | G80: 10
B81: Keyboarding | C81: Keyboarding: Locate and Type Letters U, V, W, X, Y, and Z | D81: In this engaging and interactive digital lesson, the learners receive direct instruction and practice in keyboarding the letters U, V, W, X, Y, and Z as they locate and type the letters, recognize the letter sounds, and learn the relationship between the letters on the keyboard and on the screen. | E81: Instruction and Practice | F81: Independent | G81: 10
B82: Keyboarding | C82: Beginning Sounds | D82: Students identify the initial sounds they hear in high-frequency words by marking a keyboard template. | E82: Practice | F82: Guided | G82: 20
B83: Keyboarding | C83: Keyboarding: Locate and Type Numbers | D83: The learners receive direct instruction and practice in keyboarding numbers 0 through 9 as they locate and type numbers, learn the relationship between the numbers on the keyboard and the screen, strengthen counting skills, and reinforce basic shape recognition in this engaging and interactive digital lesson. | E83: Instruction and Practice | F83: Whole Group | G83: 10
B84: Keyboarding | C84: Keyboarding: Locate and Type Numbers | D84: The learners receive direct instruction and practice in keyboarding numbers 0 through 9 as they locate and type numbers, learn the relationship between the numbers on the keyboard and the screen, strengthen counting skills, and reinforce basic shape recognition in this engaging and interactive digital lesson. | E84: Instruction and Practice | F84: Independent | G84: 10
B85: Keyboarding | C85: Typing Numbers | D85: Students count object sets and move the objects to the corresponding number keys, select boxes to match the number provided then type the number. | E85: Practice | F85: Guided | G85: 30
B86: Keyboarding | C86: Keyboarding: Cursor, Spacebar, Backspace, Enter, and Words | D86: Learners receive direct instruction and practice keyboarding to type words as they use the cursor, type letter combinations to form words, the spacebar to add spaces between words, the backspace key to delete mistakes, and the enter or return key to create new lines in this engaging and interactive digital lesson. | E86: Instruction and Practice | F86: Whole Group | G86: 10
B87: Keyboarding | C87: Keyboarding: Cursor, Spacebar, Backspace, Enter, and Words | D87: Learners receive direct instruction and practice keyboarding to type words as they use the cursor, type letter combinations to form words, the spacebar to add spaces between words, the backspace key to delete mistakes, and the enter or return key to create new lines in this engaging and interactive digital lesson. | E87: Instruction and Practice | F87: Independent | G87: 10
B88: Keyboarding | C88: Clapping Syllables | D88: Students practice dividing words by clapping out the syllables and typing them. | E88: Practice | F88: Guided | G88: 30
B89: Keyboarding | C89: Keyboarding: Cursor, Arrows, and Tab | D89: In this engaging and interactive digital lesson, the learners will receive direct instruction and practice with keyboarding using the cursor, arrows, tab, backspace, and delete keys as they move the cursor, remove text, and create large spaces. | E89: Instruction and Practice | F89: Whole Group | G89: 9
B90: Keyboarding | C90: Keyboarding: Cursor, Arrows, and Tab | D90: In this engaging and interactive digital lesson, the learners will receive direct instruction and practice with keyboarding using the cursor, arrows, tab, backspace, and delete keys as they move the cursor, remove text, and create large spaces. | E90: Instruction and Practice | F90: Independent | G90: 9
B91: Keyboarding | C91: Keyboarding: Shift Key for Capitals and Symbols | D91: This engaging and interactive digital lesson provides direct instruction and practice in the areas of keying letters to form words, and using the shift key to make capital letters, symbols, and punctuation including exclamation point and question mark. | E91: Instruction and Practice | F91: Whole Group | G91: 10
B92: Keyboarding | C92: Keyboarding: Shift Key for Capitals and Symbols | D92: This engaging and interactive digital lesson provides direct instruction and practice in the areas of keying letters to form words, and using the shift key to make capital letters, symbols, and punctuation including exclamation point and question mark. | E92: Instruction and Practice | F92: Independent | G92: 10
F93: Minutes in Unit | G93: =SUM(G72:G92) -> 230
B95: Tips & Suggestions - As you and your students work through the keyboarding unit, if you have a student who presses every key all at once, try using a special band aid around the pointer finger to reinforce 'one finger, one key' at a time. Encourage students to open documents where they can type the alphabet, names, or high frequency words. Use your imagination or ask the students what they'd like to type.
B97: Digital Literacy Concept | C97: Curriculum Title | D97: Description | E97: Learning Component | F97: Implementation Model | G97: Time (in minutes)
B98: Online Safety & Digital Citizenship | C98: Media Balance Is Important | D98: How do we find a happy balance between our online and offline activities? Students consider the feelings of themselves and others when making decisions about when, where, and how much to use technology. Note: Complete lesson plan & resources available. | E98: Instruction and Practice | F98: Whole Group | G98: 25
B99: Multimedia | C99: Multimedia: Drawing Lines and Shapes to Tell a Story | D99: The learners will receive direct instruction and practice with drawing software in this engaging and interactive digital lesson. They will use the mouse to select, drag and drop objects, use the pencil, brush, and airbrush tools to draw a picture, and use the color palette to combine colors. | E99: Instruction and Practice | F99: Whole Group | G99: 9
B100: Multimedia | C100: Multimedia: Drawing Lines and Shapes to Tell a Story | D100: The learners will receive direct instruction and practice with drawing software in this engaging and interactive digital lesson. They will use the mouse to select, drag and drop objects, use the pencil, brush, and airbrush tools to draw a picture, and use the color palette to combine colors. | E100: Instruction and Practice | F100: Independent | G100: 9
B101: Multimedia | C101: Multimedia: Drawing and Filling Shapes Using Graphics Tools | D101: In this engaging and interactive digital lesson, the learners will receive direct instruction and practice with graphics tools. They will use the mouse to select, drag and drop objects, draw shapes, fill using the color palette, magnify drawings, and add text to drawings using tools in the tool box. | E101: Instruction and Practice | F101: Whole Group | G101: 12
B102: Multimedia | C102: Multimedia: Drawing and Filling Shapes Using Graphics Tools | D102: In this engaging and interactive digital lesson, the learners will receive direct instruction and practice with graphics tools. They will use the mouse to select, drag and drop objects, draw shapes, fill using the color palette, magnify drawings, and add text to drawings using tools in the tool box. | E102: Instruction and Practice | F102: Independent | G102: 12
B103: Multimedia | C103: Drawing a Vehicle | D103: Students use cut-out shapes and then a graphics program to create a vehicle. | E103: Application | F103: Guided | G103: 15
B104: Multimedia | C104: Visual Mapping: Groups and Labels | D104: The learners will represent thoughts and organized ideas through the use of clip art, text, labeled objects and the link tool in visual mapping software as they receive direct instruction and practice in this engaging and interactive digital lesson. | E104: Instruction and Practice | F104: Whole Group | G104: 12
B105: Multimedia | C105: Visual Mapping: Groups and Labels | D105: The learners will represent thoughts and organized ideas through the use of clip art, text, labeled objects and the link tool in visual mapping software as they receive direct instruction and practice in this engaging and interactive digital lesson. | E105: Instruction and Practice | F105: Independent | G105: 12
B106: Multimedia | C106: Living Things | D106: Students identify living and non-living things, and use visual mapping software to group them. | E106: Application | F106: Guided | G106: 15
B107: Multimedia | C107: Visual Mapping: Attributes and Linking | D107: During this engaging and interactive digital lesson, the learners will receive direct instruction and practice with visual mapping software as they enhance text using bold, italics, and underlining, modify arrow attributes and adjust elements of style, color, and size for the background and clip art. | E107: Instruction and Practice | F107: Whole Group | G107: 12
B108: Multimedia | C108: Visual Mapping: Attributes and Linking | D108: During this engaging and interactive digital lesson, the learners will receive direct instruction and practice with visual mapping software as they enhance text using bold, italics, and underlining, modify arrow attributes and adjust elements of style, color, and size for the background and clip art. | E108: Instruction and Practice | F108: Independent | G108: 12
F109: Minutes in Unit | G109: =SUM(G98:G108) -> 145
B111: Tips & Suggestions - Extend student practice with digital drawing and painting by encouraging students to create artwork for an 'Art Gallery Show' to display in the hallway or on bulletin boards. Have struggling students pair up with their tech buddies to review/revisit any lessons with a score of less than 90%.
B113: Digital Literacy Concept | C113: Curriculum Title | D113: Description | E113: Learning Component | F113: Implementation Model | G113: Time (in minutes)
B114: Online Safety & Digital Citizenship | C114: Pause for People | D114: How do you say goodbye to technology when you don't want to? Whether it's watching TV or playing on a tablet, using tech can be super fun! Often, kids find it hard to transition from an online activity to an offline one. Teach your students a simple routine for how to manage those inevitable digital interruptions that are part of everyone's lives in the digital age. | E114: Instruction | F114: Whole Group | G114: 30
B115: Computer Science | C115: Computational Thinking: Patterns | D115: The learners receive direct instruction and practice recognizing and analyzing simple patterns to predict what comes next or what is missing from the pattern. They will be introduced to computational thinking and how computers use programs and software to analyze patterns and solve problems in this engaging and interactive digital lesson. | E115: Instruction and Practice | F115: Whole Group | G115: 15
B116: Computer Science | C116: Computational Thinking: Patterns | D116: The learners receive direct instruction and practice recognizing and analyzing simple patterns to predict what comes next or what is missing from the pattern. They will be introduced to computational thinking and how computers use programs and software to analyze patterns and solve problems in this engaging and interactive digital lesson. | E116: Instruction and Practice | F116: Independent | G116: 15
B117: Computer Science | C117: Spirit Day T-Shirts | D117: Understanding and completing patterns are fundamental skills of computational thinking. In this Application Exercise, students complete or create patterns to design a t-shirt to be worn on Spirit Day. | E117: Application | F117: Guided | G117: 45
F118: Minutes is Unit | G118: =SUM(G114:G117) -> 105
B120: Tips & Suggestions - Remind students that patterns can be found in things they see and do everyday. The days of the week form a pattern every month. Have your students come up with other ways they see and use patterns every day. If you are new to coding, work through the coding experience with your students.
B122: Digital Literacy Concept | C122: Curriculum Title | D122: Description | E122: Learning Component | F122: Implementation Model | G122: Time (in minutes)
B123: Keyboarding (Review) | C123: Keyboarding: Locate and Type Letters A, B, C, D, and E (Practice/Review) | D123: During this engaging and interactive digital lesson, the learners receive direct instruction and practice in keyboarding the letters A, B, C, D, and E as they locate and type the letters, recognize the letter sounds, and learn the relationship between the letters on the keyboard and on the screen. | E123: Instruction and Practice | F123: Independent | G123: 7
B124: Keyboarding (Review) | C124: Keyboarding: Locate and Type Letters F, G, H, I, and J (Practice/Review) | D124: The learners receive direct instruction and practice in keyboarding the letters F, G, H, I, and J as they locate and type the letters, recognize the letter sounds, and learn the relationship between the letters on the keyboard and on the screen in this engaging and interactive digital lesson. | E124: Instruction and Practice | F124: Independent | G124: 7
B125: Keyboarding (Review) | C125: Keyboarding: Locate and Type Letters K, L, M, N, and O (Practice/Review) | D125: In this engaging and interactive digital lesson, the learners receive direct instruction and practice in keyboarding the letters K, L, M, N, and O as they locate and type the letters, recognize the letter sounds, and learn the relationship between the letters on the keyboard and on the screen. | E125: Instruction and Practice | F125: Independent | G125: 6
B126: Keyboarding (Review) | C126: Keyboarding: Locate and Type Letters P, Q, R, S, and T (Practice/Review) | D126: The learners receive direct instruction and practice in keyboarding the letters P, Q, R, S, and T as they locate and type the letters, recognize the letter sounds, and learn the relationship between the letters on the keyboard and on the screen during this engaging and interactive digital lesson. | E126: Instruction and Practice | F126: Independent | G126: 6
B127: Keyboarding (Review) | C127: Keyboarding: Locate and Type Letters U, V, W, X, Y, and Z (Practice/Review) | D127: In this engaging and interactive digital lesson, the learners receive direct instruction and practice in keyboarding the letters U, V, W, X, Y, and Z as they locate and type the letters, recognize the letter sounds, and learn the relationship between the letters on the keyboard and on the screen. | E127: Instruction and Practice | F127: Independent | G127: 10
B128: Keyboarding (Review) | C128: Keyboarding: Locate and Type Numbers (Practice/Review) | D128: The learners receive direct instruction and practice in keyboarding numbers 0 through 9 as they locate and type numbers, learn the relationship between the numbers on the keyboard and the screen, strengthen counting skills, and reinforce basic shape recognition in this engaging and interactive digital lesson. | E128: Instruction and Practice | F128: Independent | G128: 10
B129: Keyboarding (Review) | C129: Keyboarding: Cursor, Spacebar, Backspace, Enter, and Words (Practice/Review) | D129: Learners receive direct instruction and practice keyboarding to type words as they use the cursor, type letter combinations to form words, the spacebar to add spaces between words, the backspace key to delete mistakes, and the enter or return key to create new lines in this engaging and interactive digital lesson. | E129: Instruction and Practice | F129: Independent | G129: 12
B130: Keyboarding (Review) | C130: Keyboarding: Cursor, Arrows, and Tab (Practice/Review) | D130: In this engaging and interactive digital lesson, the learners will receive direct instruction and practice with keyboarding using the cursor, arrows, tab, backspace, and delete keys as they move the cursor, remove text, and create large spaces. | E130: Instruction and Practice | F130: Independent | G130: 12
F131: Minutes in Unit | G131: =SUM(G123:G130) -> 70
B133: Tips & Suggestions - Having students revisit keyboarding lessons is a good way to reinforce letter recognition and establish accuracy before speed in typing. This is also the perfect time of the year to put together mini-projects that end in digital publications to add to student portfolios. Remember to print or save your students' work and include it in their student portfolios.
B135: Digital Literacy Concept | C135: Curriculum Title | D135: Description | E135: Learning Component | F135: Implementation Model | G135: Time (in minutes)
B136: Online Safety & Digital Citizenship | C136: * Safety in My Online Neighborhood | D136: How do you go places safely online? The power of the internet allows students to experience and visit places they might not be able to see in person. But, just like traveling in the real world, it's important to be safe when traveling online. On this virtual field trip, kids can practice staying safe on online adventures. Note: Complete lesson plan & resources available. | E136: Instruction and Practice | F136: Whole Group | G136: 30
B137: Online Safety & Digital Citizenship (Review) | C137: Summer Online Safety Poster | D137: Students will create a poster to teach others how to stay safe online. | E137: Application | F137: Small Group | G137: 45
B138: Online Safety & Digital Citizenship (Review) | C138: Summer Online Safety Poster (Presentations) | D138: Presentations of Online Safety Posters | F138: Whole Group
C139: Technology Showcase (Optional) | F139: Whole Group
F140: Minutes in Unit | G140: =SUM(G136:G139) -> 75
B142: Tips & Suggestions - Remember to print or save your students' work and include it in their student portfolios. Have students use drawing software and text options to create a 'Welcome to Kindergarten' mini-poster for next year's students.
F144: Total Minutes in Year | G144: =SUM(G131,G118,G109,G93,G67,G36,G140) -> 866
B147: Tips & Suggestions - Online safety is important to revisit at the end of the year to remind students that they need to be smart when online - whether at home or at school. Provide parents with resources to help them keep their students safe online, like the 'Parent Online Safety Guide' linked below. Host an in-person or virtual technology showcase to share student work to wrap up the school year and provide students and parents with ideas for continuing to practice their digital literacy skills during the summer.
B148: =HYPERLINK("https://support.learning.com/parent-resources/online-safety-guide-for-parents-english/","Parent Online Safety Guide") -> Parent Online Safety Guide

Sheet Kindergarten
E1: Blended Learning Path
B3: EasyTech Curriculum Map - Kindergarten
B4: 2022-2023
B6: This Curriculum Map provides a suggested order of assignments for utilizing the EasyTech curriculum in your classroom. For planning purposes, it is recommended that approximately 45 minutes of digital literacy curriculum is delivered each week through whole group, independent, or guided practice implementation models.
B8: Prior to beginning the school year, it is recommended that you create student technology portfolios (digital or print) to provide students with a way to share their learning. The portfolio may include pictures, reports, and documents published. Pictures are a great way to show your students the learning process and can be used at the end of the year for a class slideshow or technology showcase.
B10: Digital Literacy Concept | C10: Curriculum Title | D10: Description | E10: Learning Component | F10: Implementation Model | G10: Time (in minutes)
C11: * CIPA Required topic
B12: Online Safety & Digital Citizenship | C12: * Introduction to Digital Citizenship: Cyberbullying | D12: This colorful and engaging video introduces students to the basics of dealing with cyberbullying on the internet. | E12: Instruction | F12: Whole Group | G12: 5
B13: Online Safety & Digital Citizenship | C13: * Introduction to Online Safety: Protecting Your Privacy | D13: This engaging video-based learning object provides the learner with foundational knowledge about the importance of protecting their personal information. The learner will understand that they shouldn't share any personal information online or agree to meet anyone they don’t know and trust; and they should always log off or lock their device to protect their personal information. | E13: Instruction | F13: Whole Group | G13: 4
B14: IT Fundamentals | C14: Introduction to Computer Fundamentals | D14: In this engaging animated video, Ollie the Owl gives an overview of the importance of staying safe online and logging out of the computer to protect your information. | E14: Instruction | F14: Whole Group | G14: 3
B15: IT Fundamentals | C15: Computer Fundamentals: Intro to Pointer Devices | D15: In this engaging and interactive digital lesson, the learners receive direct instruction and practice using a mouse and a trackpad to select objects. | E15: Instruction and Practice | F15: Whole Group | G15: 5
B16: IT Fundamentals | C16: Computer Fundamentals: Intro to Pointer Devices | D16: In this engaging and interactive digital lesson, the learners receive direct instruction and practice using a mouse and a trackpad to select objects. | E16: Instruction and Practice | F16: Independent | G16: 5
B17: IT Fundamentals | C17: Computer Fundamentals: Pointers and Making Choices | D17: In this engaging and interactive digital lesson, the learners receive direct instruction and practice choosing which items to select with their pointer device. | E17: Instruction and Practice | F17: Whole Group | G17: 5
B18: IT Fundamentals | C18: Computer Fundamentals: Pointers and Making Choices | D18: In this engaging and interactive digital lesson, the learners receive direct instruction and practice choosing which items to select with their pointer device. | E18: Instruction and Practice | F18: Independent | G18: 5
B19: IT Fundamentals | C19: Critter Catch | D19: In this interactive game, the learner practices hand-eye coordination using a mouse or trackpad to move the on screen pointer and the button or tap feature to catch bugs. | E19: Practice | F19: Independent | G19: 2
B20: IT Fundamentals | C20: Computer Fundamentals: Selecting Multiple Objects | D20: In this engaging and interactive digital lesson, the learners receive direct instruction and practice using a mouse and a trackpad to select multiple objects at the same time. | E20: Instruction and Practice | F20: Whole Group | G20: 10
B21: IT Fundamentals | C21: Computer Fundamentals: Selecting Multiple Objects | D21: In this engaging and interactive digital lesson, the learners receive direct instruction and practice using a mouse and a trackpad to select multiple objects at the same time. | E21: Instruction and Practice | F21: Independent | G21: 10
B22: IT Fundamentals | C22: Computer Fundamentals: Using a Pointer Device to Move Objects | D22: In this engaging and interactive digital lesson, the learners receive direct instruction and practice selecting, unselecting, and moving objects. | E22: Instruction and Practice | F22: Whole Group | G22: 10
B23: IT Fundamentals | C23: Computer Fundamentals: Using a Pointer Device to Move Objects | D23: In this engaging and interactive digital lesson, the learners receive direct instruction and practice selecting, unselecting, and moving objects. | E23: Instruction and Practice | F23: Independent | G23: 10
B24: IT Fundamentals | C24: Computer Fundamentals: Using a Pointer Device to Double-Click | D24: In this engaging and interactive digital lesson, the learners receive direct instruction and practice using a mouse to select, drag, and double-click as they select items using the pointer and mouse button, move objects on the screen, and double-click to open objects. | E24: Instruction and Practice | F24: Whole Group | G24: 3
B25: IT Fundamentals | C25: Computer Fundamentals: Using a Pointer Device to Double-Click | D25: In this engaging and interactive digital lesson, the learners receive direct instruction and practice using a pointer device to select an object by double-clicking. | E25: Instruction and Practice | F25: Independent | G25: 3
B26: IT Fundamentals | C26: Computer Fundamentals: Access Websites and Scroll | D26: In this engaging and interactive digital lesson, learners receive direct instruction and practice opening a hyperlink and using scroll bars. | E26: Instruction | F26: Whole Group | G26: 3
B27: IT Fundamentals | C27: Computer Fundamentals: Access Websites and Scroll | D27: In this engaging and interactive digital lesson, learners receive direct instruction and practice opening a hyperlink and using scroll bars. | E27: Instruction | F27: Independent | G27: 3
B28: IT Fundamentals | C28: Computer Fundamentals: Processors, Input and Output Devices | D28: The learners receive direct instruction and practice identifying and caring for basic computer components such as the processor, keyboard, mouse, monitor, speakers, printer, and to classify the component as either an input or output device in this engaging and interactive digital lesson. | E28: Instruction and Practice | F28: Whole Group | G28: 9
B29: IT Fundamentals | C29: Computer Fundamentals: Processors, Input and Output Devices | D29: The learners receive direct instruction and practice identifying and caring for basic computer components such as the processor, keyboard, mouse, monitor, speakers, printer, and to classify the component as either an input or output device in this engaging and interactive digital lesson. | E29: Instruction and Practice | F29: Independent | G29: 9
B30: IT Fundamentals | C30: Following Computer Rules | D30: Students study a picture, and check the radio button next to the smiley face for the kids following computer rules, and the button next to the sad face for the kids breaking computer rules. | E30: Application | F30: Independent | G30: 20
B31: IT Fundamentals | C31: IT Fundamentals: An Icon-ic Concert Part 1 | D31: In this engaging animated video, the Tech Grove friends prepare for a concert by discovering the purpose of technology icons. The seven different icons covered in this lesson are: power icon, plus and minus icons, home icon, close or exit icon, and left and right arrow icons. | E31: Instruction | F31: Whole Group | G31: 4
B32: IT Fundamentals | C32: IT Fundamentals: An Icon-ic Concert Part 1 | D32: In this engaging animated video, the Tech Grove friends prepare for a concert by discovering the purpose of technology icons. The seven different icons covered in this lesson are: power icon, plus and minus icons, home icon, close or exit icon, and left and right arrow icons. | E32: Instruction | F32: Independent | G32: 4
B33: IT Fundamentals | C33: IT Fundamentals: An Icon-ic Concert Part 2 | D33: In this engaging animated video, the Tech Grove friends prepare for a concert by discovering the purpose of technology icons. The seven different icons covered in this lesson are: power icon, plus and minus icons, home icon, close or exit icon, and left and right arrow icons. | E33: Instruction | F33: Whole Group | G33: 3
B34: IT Fundamentals | C34: IT Fundamentals: An Icon-ic Concert Part 2 | D34: In this engaging animated video, the Tech Grove friends prepare for a concert by discovering the purpose of technology icons. The seven different icons covered in this lesson are: power icon, plus and minus icons, home icon, close or exit icon, and left and right arrow icons. | E34: Instruction | F34: Independent | G34: 3
B35: IT Fundamentals | C35: IT Fundamentals: An Icon-ic Practice | D35: This interactive experience is intended to be an independent practice for students and can be used in a teacher-led or in a student-led learning format. | E35: Practice | F35: Guided | G35: 15
F36: Minutes in Unit | G36: =SUM(G12:G35) -> 153
B38: Tips & Suggestions - As you begin digital literacy instruction, it is recommended to have students practice logging in and out to establish independence with the learning experience. Using student helpers to "drive" the teacher computer & take over the login steps with instructions/reminders from other students is a good way to ensure all students understand how to log in and out.
B40: Digital Literacy Concept | C40: Curriculum Title | D40: Description | E40: Learning Component | F40: Implementation Model | G40: Time (in minutes)
C41: * CIPA Required topic
B42: Online Safety & Digital Citizenship | C42: *Meaning of Online: The Curious Crystals | D42: In this engaging animated video, Pearl and Rocki are led to a mysterious machine in the forest that grants them access to the internet. Includes printable items. | E42: Instruction | F42: Whole Group | G42: 3
B43: Online Safety & Digital Citizenship | C43: *Meaning of Online: The Curious Crystals | D43: In this engaging animated video, Pearl and Rocki are led to a mysterious machine in the forest that grants them access to the internet. Includes printable items. | E43: Instruction | F43: Independent | G43: 3
B44: Online Safety & Digital Citizenship | C44: *Meaning of Online: Vocabulary Interactive Practice | D44: In this interactive learning experience, students improve their knowledge of vocabulary terms and definitions related to what it means to be online. Includes printable items. | E44: Practice | F44: Guided | G44: 10
B45: Online Safety & Digital Citizenship | C45: *Meaning of Online: Agree to the AUP | D45: In this interactive learning experience, students improve their knowledge of acceptable use policies. Includes printable items. | E45: Practice | F45: Guided | G45: 2
B46: Online Safety & Digital Citizenship | C46: *Meaning of Online: Have Fun Online | D46: In this interactive learning experience, students improve their knowledge of what it means to be online and the types of activities they do online. Includes printable items. | E46: Practice | F46: Guided | G46: 2
B47: Online Safety & Digital Citizenship | C47: *Getting Started Online: Pearl's Private Password | D47: In this engaging animated video, Rocki comes up with a username and password to enter the Internet. Pearl must come up with her own secret credentials to enter. Includes printable items. | E47: Instruction | F47: Whole Group | G47: 3
B48: Online Safety & Digital Citizenship | C48: *Getting Started Online: Pearl's Private Password | D48: In this engaging animated video, Rocki comes up with a username and password to enter the Internet. Pearl must come up with her own secret credentials to enter. Includes printable items. | E48: Instruction | F48: Independent | G48: 3
B49: Online Safety & Digital Citizenship | C49: *Getting Started Online: Vocabulary Interactive Practice | D49: In this interactive learning experience, students improve their knowledge of vocabulary terms and definitions related to getting started online. Includes printable items. | E49: Practice | F49: Guided | G49: 10
B50: Online Safety & Digital Citizenship | C50: *Getting Started Online: Parts of a Password | D50: In this interactive learning experience, students improve their knowledge of online safety. Includes printable items. | E50: Practice | F50: Guided | G50: 2
B51: Online Safety & Digital Citizenship | C51: *Getting Started Online: Color the Usernames | D51: In this interactive learning experience, students improve their knowledge of online safety. Includes printable items. | E51: Practice | F51: Guided | G51: 2
B52: Online Safety & Digital Citizenship | C52: *Getting Started Online: What Should Pearl Say | D52: In this interactive learning experience, students improve their knowledge of online safety. Includes printable items. | E52: Practice | F52: Guided | G52: 2
B53: Online Safety & Digital Citizenship | C53: *Online Privacy: Help Is on the Way! | D53: In this engaging animated video, Rocki falls victim to an information thief! The crew must call upon their wise friend Ollie to save the day. Includes printable items. | E53: Instruction | F53: Whole Group | G53: 3
B54: Online Safety & Digital Citizenship | C54: *Online Privacy: Help Is on the Way! | D54: In this engaging animated video, Rocki falls victim to an information thief! The crew must call upon their wise friend Ollie to save the day. Includes printable items. | E54: Instruction | F54: Independent | G54: 3
B55: Online Safety & Digital Citizenship | C55: *Online Privacy: Vocabulary Interactive Practice | D55: In this interactive learning experience, students improve their knowledge of vocabulary terms and definitions related to online privacy. Includes printable items. | E55: Practice | F55: Guided | G55: 10
B56: Online Safety & Digital Citizenship | C56: *Online Privacy: Personal Information | D56: In this interactive learning experience, students practice their knowledge and skills related to online privacy. Includes printable items. | E56: Practice | F56: Guided | G56: 2
B57: Online Safety & Digital Citizenship | C57: *Online Privacy: Trusted Adults | D57: In this interactive learning experience, students practice their knowledge and skills related to online privacy. Includes printable items. | E57: Practice | F57: Guided | G57: 2
B58: Online Safety & Digital Citizenship | C58: *Online Privacy: Keep it Safe and Private | D58: In this interactive learning experience, students practice their knowledge and skills related to online privacy. Includes printable items. | E58: Practice | F58: Guided | G58: 2
B59: Online Safety & Digital Citizenship | C59: *Cyberbullying: The Final Cyber-Quest | D59: In this engaging animated video, a cyberbully targets Rocki. The friends must make smart choices when handling this bullying situation. Includes printable items. | E59: Instruction | F59: Whole Group | G59: 2
B60: Online Safety & Digital Citizenship | C60: *Cyberbullying: The Final Cyber-Quest | D60: In this engaging animated video, a cyberbully targets Rocki. The friends must make smart choices when handling this bullying situation. Includes printable items. | E60: Instruction | F60: Independent | G60: 2
B61: Online Safety & Digital Citizenship | C61: *Cyberbullying: The Cave of Mystery | D61: In this engaging animated video, Rocki and Pearl finally arrive at the Cave of Mystery – a place where super cyber-citizens can see the rewards for their smart online choices. Includes printable items. | E61: Instruction | F61: Whole Group | G61: 2
B62: Online Safety & Digital Citizenship | C62: *Cyberbullying: The Cave of Mystery | D62: In this engaging animated video, Rocki and Pearl finally arrive at the Cave of Mystery – a place where super cyber-citizens can see the rewards for their smart online choices. Includes printable items. | E62: Instruction | F62: Independent | G62: 2
B63: Online Safety & Digital Citizenship | C63: *Cyberbullying: Vocabulary Practice | D63: In this interactive learning experience, students improve their knowledge of the vocabulary terms and definitions associated with cyberbullying. Includes printable items. | E63: Practice | F63: Guided | G63: 10
B64: Online Safety & Digital Citizenship | C64: *Cyberbullying: Where Is It Found? | D64: In this interactive learning experience, students practice their knowledge and skills related to cyberbullying. Includes printable items. | E64: Practice | F64: Guided | G64: 2
B65: Online Safety & Digital Citizenship | C65: *Cyberbullying: How Would You Feel? | D65: In this interactive learning experience, students practice their knowledge and skills related to cyberbullying. Includes printable items. | E65: Practice | F65: Guided | G65: 2
B66: Online Safety & Digital Citizenship | C66: *Cyberbullying: Super Cyber-Citizen | D66: In this interactive learning experience, students practice their knowledge and skills related to cyberbullying. Includes printable items. | E66: Practice | F66: Guided | G66: 2
F67: Minutes in Unit | G67: =SUM(G42:G66) -> 88
B69: Tips & Suggestions - Gradually releasing the responsibility of logging in and becoming an independent learner can go more smoothly by assigning 'tech buddies' to coach or assist as needed. The 'teach, not touch' or 'point, not press' approach is an effective way for peer helpers or tech buddies to coach but not take over for students who are struggling. Use your tech buddies during this unit for coaching and proper use of equipment.
B71: Digital Literacy Concept | C71: Curriculum Title | D71: Description | E71: Learning Component | F71: Implementation Model | G71: Time (in minutes)
B72: Keyboarding | C72: Keyboarding: Locate and Type Letters A, B, C, D, and E | D72: During this engaging and interactive digital lesson, the learners receive direct instruction and practice in keyboarding the letters A, B, C, D, and E as they locate and type the letters, recognize the letter sounds, and learn the relationship between the letters on the keyboard and on the screen. | E72: Instruction and Practice | F72: Whole Group | G72: 7
B73: Keyboarding | C73: Keyboarding: Locate and Type Letters A, B, C, D, and E | D73: During this engaging and interactive digital lesson, the learners receive direct instruction and practice in keyboarding the letters A, B, C, D, and E as they locate and type the letters, recognize the letter sounds, and learn the relationship between the letters on the keyboard and on the screen. | E73: Instruction and Practice | F73: Independent | G73: 7
B74: Keyboarding | C74: Keyboarding: Locate and Type Letters F, G, H, I, and J | D74: The learners receive direct instruction and practice in keyboarding the letters F, G, H, I, and J as they locate and type the letters, recognize the letter sounds, and learn the relationship between the letters on the keyboard and on the screen in this engaging and interactive digital lesson. | E74: Instruction and Practice | F74: Whole Group | G74: 7
B75: Keyboarding | C75: Keyboarding: Locate and Type Letters F, G, H, I, and J | D75: The learners receive direct instruction and practice in keyboarding the letters F, G, H, I, and J as they locate and type the letters, recognize the letter sounds, and learn the relationship between the letters on the keyboard and on the screen in this engaging and interactive digital lesson. | E75: Instruction and Practice | F75: Independent | G75: 7
B76: Keyboarding | C76: Keyboarding: Locate and Type Letters K, L, M, N, and O | D76: In this engaging and interactive digital lesson, the learners receive direct instruction and practice in keyboarding the letters K, L, M, N, and O as they locate and type the letters, recognize the letter sounds, and learn the relationship between the letters on the keyboard and on the screen. | E76: Instruction and Practice | F76: Whole Group | G76: 6
B77: Keyboarding | C77: Keyboarding: Locate and Type Letters K, L, M, N, and O | D77: In this engaging and interactive digital lesson, the learners receive direct instruction and practice in keyboarding the letters K, L, M, N, and O as they locate and type the letters, recognize the letter sounds, and learn the relationship between the letters on the keyboard and on the screen. | E77: Instruction and Practice | F77: Independent | G77: 6
B78: Keyboarding | C78: Keyboarding: Locate and Type Letters P, Q, R, S, and T | D78: The learners receive direct instruction and practice in keyboarding the letters P, Q, R, S, and T as they locate and type the letters, recognize the letter sounds, and learn the relationship between the letters on the keyboard and on the screen during this engaging and interactive digital lesson. | E78: Instruction and Practice | F78: Whole Group | G78: 6
B79: Keyboarding | C79: Keyboarding: Locate and Type Letters P, Q, R, S, and T | D79: The learners receive direct instruction and practice in keyboarding the letters P, Q, R, S, and T as they locate and type the letters, recognize the letter sounds, and learn the relationship between the letters on the keyboard and on the screen during this engaging and interactive digital lesson. | E79: Instruction and Practice | F79: Independent | G79: 6
B80: Keyboarding | C80: Keyboarding: Locate and Type Letters U, V, W, X, Y, and Z | D80: In this engaging and interactive digital lesson, the learners receive direct instruction and practice in keyboarding the letters U, V, W, X, Y, and Z as they locate and type the letters, recognize the letter sounds, and learn the relationship between the letters on the keyboard and on the screen. | E80: Instruction and Practice | F80: Whole Group | G80: 10
B81: Keyboarding | C81: Keyboarding: Locate and Type Letters U, V, W, X, Y, and Z | D81: In this engaging and interactive digital lesson, the learners receive direct instruction and practice in keyboarding the letters U, V, W, X, Y, and Z as they locate and type the letters, recognize the letter sounds, and learn the relationship between the letters on the keyboard and on the screen. | E81: Instruction and Practice | F81: Independent | G81: 10
B82: Keyboarding | C82: Beginning Sounds | D82: Students identify the initial sounds they hear in high-frequency words by marking a keyboard template. | E82: Practice | F82: Guided | G82: 20
B83: Keyboarding | C83: Keyboarding: Locate and Type Numbers | D83: The learners receive direct instruction and practice in keyboarding numbers 0 through 9 as they locate and type numbers, learn the relationship between the numbers on the keyboard and the screen, strengthen counting skills, and reinforce basic shape recognition in this engaging and interactive digital lesson. | E83: Instruction and Practice | F83: Whole Group | G83: 10
B84: Keyboarding | C84: Keyboarding: Locate and Type Numbers | D84: The learners receive direct instruction and practice in keyboarding numbers 0 through 9 as they locate and type numbers, learn the relationship between the numbers on the keyboard and the screen, strengthen counting skills, and reinforce basic shape recognition in this engaging and interactive digital lesson. | E84: Instruction and Practice | F84: Independent | G84: 10
B85: Keyboarding | C85: Typing Numbers | D85: Students count object sets and move the objects to the corresponding number keys, select boxes to match the number provided then type the number. | E85: Practice | F85: Guided | G85: 30
B86: Keyboarding | C86: Keyboarding: Cursor, Spacebar, Backspace, Enter, and Words | D86: Learners receive direct instruction and practice keyboarding to type words as they use the cursor, type letter combinations to form words, the spacebar to add spaces between words, the backspace key to delete mistakes, and the enter or return key to create new lines in this engaging and interactive digital lesson. | E86: Instruction and Practice | F86: Whole Group | G86: 10
B87: Keyboarding | C87: Keyboarding: Cursor, Spacebar, Backspace, Enter, and Words | D87: Learners receive direct instruction and practice keyboarding to type words as they use the cursor, type letter combinations to form words, the spacebar to add spaces between words, the backspace key to delete mistakes, and the enter or return key to create new lines in this engaging and interactive digital lesson. | E87: Instruction and Practice | F87: Independent | G87: 10
B88: Keyboarding | C88: Clapping Syllables | D88: Students practice dividing words by clapping out the syllables and typing them. | E88: Practice | F88: Guided | G88: 30
B89: Keyboarding | C89: Keyboarding: Cursor, Arrows, and Tab | D89: In this engaging and interactive digital lesson, the learners will receive direct instruction and practice with keyboarding using the cursor, arrows, tab, backspace, and delete keys as they move the cursor, remove text, and create large spaces. | E89: Instruction and Practice | F89: Whole Group | G89: 9
B90: Keyboarding | C90: Keyboarding: Cursor, Arrows, and Tab | D90: In this engaging and interactive digital lesson, the learners will receive direct instruction and practice with keyboarding using the cursor, arrows, tab, backspace, and delete keys as they move the cursor, remove text, and create large spaces. | E90: Instruction and Practice | F90: Independent | G90: 9
B91: Keyboarding | C91: Keyboarding: Shift Key for Capitals and Symbols | D91: This engaging and interactive digital lesson provides direct instruction and practice in the areas of keying letters to form words, and using the shift key to make capital letters, symbols, and punctuation including exclamation point and question mark. | E91: Instruction and Practice | F91: Whole Group | G91: 10
B92: Keyboarding | C92: Keyboarding: Shift Key for Capitals and Symbols | D92: This engaging and interactive digital lesson provides direct instruction and practice in the areas of keying letters to form words, and using the shift key to make capital letters, symbols, and punctuation including exclamation point and question mark. | E92: Instruction and Practice | F92: Independent | G92: 10
F93: Minutes in Unit | G93: =SUM(G72:G92) -> 230
B95: Tips & Suggestions - As you and your students work through the keyboarding unit, if you have a student who presses every key all at once, try using a special band aid around the pointer finger to reinforce 'one finger, one key' at a time. Encourage students to open documents where they can type the alphabet, names, high frequency words, or copied sentences out of story books. Use your imagination or ask the students what they'd like to type.
B97: Digital Literacy Concept | C97: Curriculum Title | D97: Description | E97: Learning Component | F97: Implementation Model | G97: Time (in minutes)
B98: Online Safety & Digital Citizenship | C98: * Media Balance Is Important | D98: How do we find a happy balance between our online and offline activities? Students consider the feelings of themselves and others when making decisions about when, where, and how much to use technology. Note: Complete lesson plan & resources available. | E98: Instruction and Practice | F98: Whole Group | G98: 25
B99: Multimedia | C99: Multimedia: Drawing Lines and Shapes to Tell a Story | D99: The learners will receive direct instruction and practice with drawing software in this engaging and interactive digital lesson. They will use the mouse to select, drag and drop objects, use the pencil, brush, and airbrush tools to draw a picture, and use the color palette to combine colors. | E99: Instruction and Practice | F99: Whole Group | G99: 9
B100: Multimedia | C100: Multimedia: Drawing Lines and Shapes to Tell a Story | D100: The learners will receive direct instruction and practice with drawing software in this engaging and interactive digital lesson. They will use the mouse to select, drag and drop objects, use the pencil, brush, and airbrush tools to draw a picture, and use the color palette to combine colors. | E100: Instruction and Practice | F100: Independent | G100: 9
B101: Multimedia | C101: Multimedia: Drawing and Filling Shapes Using Graphics Tools | D101: In this engaging and interactive digital lesson, the learners will receive direct instruction and practice with graphics tools. They will use the mouse to select, drag and drop objects, draw shapes, fill using the color palette, magnify drawings, and add text to drawings using tools in the tool box. | E101: Instruction and Practice | F101: Whole Group | G101: 12
B102: Multimedia | C102: Multimedia: Drawing and Filling Shapes Using Graphics Tools | D102: In this engaging and interactive digital lesson, the learners will receive direct instruction and practice with graphics tools. They will use the mouse to select, drag and drop objects, draw shapes, fill using the color palette, magnify drawings, and add text to drawings using tools in the tool box. | E102: Instruction and Practice | F102: Independent | G102: 12
B103: Multimedia | C103: Drawing a Vehicle | D103: Students use cut-out shapes and then a graphics program to create a vehicle. | E103: Application | F103: Guided | G103: 15
B104: Multimedia | C104: Visual Mapping: Groups and Labels | D104: The learners will represent thoughts and organized ideas through the use of clip art, text, labeled objects and the link tool in visual mapping software as they receive direct instruction and practice in this engaging and interactive digital lesson. | E104: Instruction and Practice | F104: Whole Group | G104: 12
B105: Multimedia | C105: Visual Mapping: Groups and Labels | D105: The learners will represent thoughts and organized ideas through the use of clip art, text, labeled objects and the link tool in visual mapping software as they receive direct instruction and practice in this engaging and interactive digital lesson. | E105: Instruction and Practice | F105: Independent | G105: 12
B106: Multimedia | C106: Living Things | D106: Students identify living and non-living things, and use visual mapping software to group them. | E106: Application | F106: Guided | G106: 15
B107: Multimedia | C107: Visual Mapping: Attributes and Linking | D107: During this engaging and interactive digital lesson, the learners will receive direct instruction and practice with visual mapping software as they enhance text using bold, italics, and underlining, modify arrow attributes and adjust elements of style, color, and size for the background and clip art. | E107: Instruction and Practice | F107: Whole Group | G107: 12
B108: Multimedia | C108: Visual Mapping: Attributes and Linking | D108: During this engaging and interactive digital lesson, the learners will receive direct instruction and practice with visual mapping software as they enhance text using bold, italics, and underlining, modify arrow attributes and adjust elements of style, color, and size for the background and clip art. | E108: Instruction and Practice | F108: Independent | G108: 12
F109: Minutes in Unit | G109: =SUM(G98:G108) -> 145
B111: Tips & Suggestions - Extend student practice with digital drawing and painting by encouraging students to create artwork for an 'Art Gallery Show' to display in the hallway or on bulletin boards. Have struggling students pair up with their tech buddies to review/revisit any lessons with a score of less than 90%.
B113: Digital Literacy Concept | C113: Curriculum Title | D113: Description | E113: Learning Component | F113: Implementation Model | G113: Time (in minutes)
B114: Online Safety & Digital Citizenship | C114: Pause for People | D114: How do you say goodbye to technology when you don't want to? Whether it's watching TV or playing on a tablet, using tech can be super fun! Often, kids find it hard to transition from an online activity to an offline one. Teach your students a simple routine for how to manage those inevitable digital interruptions that are part of everyone's lives in the digital age. | E114: Instruction | F114: Whole Group | G114: 30
B115: Computer Science | C115: Computational Thinking: Patterns | D115: The learners receive direct instruction and practice recognizing and analyzing simple patterns to predict what comes next or what is missing from the pattern. They will be introduced to computational thinking and how computers use programs and software to analyze patterns and solve problems in this engaging and interactive digital lesson. | E115: Instruction and Practice | F115: Whole Group | G115: 15
B116: Computer Science | C116: Computational Thinking: Patterns | D116: The learners receive direct instruction and practice recognizing and analyzing simple patterns to predict what comes next or what is missing from the pattern. They will be introduced to computational thinking and how computers use programs and software to analyze patterns and solve problems in this engaging and interactive digital lesson. | E116: Instruction and Practice | F116: Independent | G116: 15
B117: Computer Science | C117: Spirit Day T-Shirts | D117: Understanding and completing patterns are fundamental skills of computational thinking. In this Application Exercise, students complete or create patterns to design a t-shirt to be worn on Spirit Day. | E117: Application | F117: Guided | G117: 45
G118: =SUM(G114:G117) -> 105
B120: Tips & Suggestions - Remind students that patterns can be found in things they see and do everyday. The days of the week form a pattern every month. Have your students come up with other ways they see and use patterns every day. If you are new to coding, work through the coding experience with your students.
B122: Digital Literacy Concept | C122: Curriculum Title | D122: Description | E122: Learning Component | F122: Implementation Model | G122: Time (in minutes)
B123: Keyboarding (Review) | C123: Keyboarding: Locate and Type Letters A, B, C, D, and E (Practice/Review) | D123: During this engaging and interactive digital lesson, the learners receive direct instruction and practice in keyboarding the letters A, B, C, D, and E as they locate and type the letters, recognize the letter sounds, and learn the relationship between the letters on the keyboard and on the screen. | E123: Instruction and Practice | F123: Independent | G123: 7
B124: Keyboarding (Review) | C124: Keyboarding: Locate and Type Letters F, G, H, I, and J (Practice/Review) | D124: The learners receive direct instruction and practice in keyboarding the letters F, G, H, I, and J as they locate and type the letters, recognize the letter sounds, and learn the relationship between the letters on the keyboard and on the screen in this engaging and interactive digital lesson. | E124: Instruction and Practice | F124: Independent | G124: 7
B125: Keyboarding (Review) | C125: Keyboarding: Locate and Type Letters K, L, M, N, and O (Practice/Review) | D125: In this engaging and interactive digital lesson, the learners receive direct instruction and practice in keyboarding the letters K, L, M, N, and O as they locate and type the letters, recognize the letter sounds, and learn the relationship between the letters on the keyboard and on the screen. | E125: Instruction and Practice | F125: Independent | G125: 6
B126: Keyboarding (Review) | C126: Keyboarding: Locate and Type Letters P, Q, R, S, and T (Practice/Review) | D126: The learners receive direct instruction and practice in keyboarding the letters P, Q, R, S, and T as they locate and type the letters, recognize the letter sounds, and learn the relationship between the letters on the keyboard and on the screen during this engaging and interactive digital lesson. | E126: Instruction and Practice | F126: Independent | G126: 6
B127: Keyboarding (Review) | C127: Keyboarding: Locate and Type Letters U, V, W, X, Y, and Z (Practice/Review) | D127: In this engaging and interactive digital lesson, the learners receive direct instruction and practice in keyboarding the letters U, V, W, X, Y, and Z as they locate and type the letters, recognize the letter sounds, and learn the relationship between the letters on the keyboard and on the screen. | E127: Instruction and Practice | F127: Independent | G127: 10
B128: Keyboarding (Review) | C128: Keyboarding: Locate and Type Numbers (Practice/Review) | D128: The learners receive direct instruction and practice in keyboarding numbers 0 through 9 as they locate and type numbers, learn the relationship between the numbers on the keyboard and the screen, strengthen counting skills, and reinforce basic shape recognition in this engaging and interactive digital lesson. | E128: Instruction and Practice | F128: Independent | G128: 10
B129: Keyboarding (Review) | C129: Keyboarding: Cursor, Spacebar, Backspace, Enter, and Words (Practice/Review) | D129: Learners receive direct instruction and practice keyboarding to type words as they use the cursor, type letter combinations to form words, the spacebar to add spaces between words, the backspace key to delete mistakes, and the enter or return key to create new lines in this engaging and interactive digital lesson. | E129: Instruction and Practice | F129: Independent | G129: 12
B130: Keyboarding (Review) | C130: Keyboarding: Cursor, Arrows, and Tab (Practice/Review) | D130: In this engaging and interactive digital lesson, the learners will receive direct instruction and practice with keyboarding using the cursor, arrows, tab, backspace, and delete keys as they move the cursor, remove text, and create large spaces. | E130: Instruction and Practice | F130: Independent | G130: 12
F131: Minutes in Unit | G131: =SUM(G123:G130) -> 70
B133: Tips & Suggestions - Having students revisit keyboarding lessons is a good way to reinforce letter recognition and establish accuracy before speed in typing. This is also the perfect time of the year to put together mini-projects that end in digital publications to add to student portfolios. Remember to print or save your students' work and include it in their student portfolios.
B135: Digital Literacy Concept | C135: Curriculum Title | D135: Description | E135: Learning Component | F135: Implementation Model | G135: Time (in minutes)
B136: Online Safety & Digital Citizenship | C136: * Safety in My Online Neighborhood | D136: How do you go places safely online? The power of the internet allows students to experience and visit places they might not be able to see in person. But, just like traveling in the real world, it's important to be safe when traveling online. On this virtual field trip, kids can practice staying safe on online adventures. Note: Complete lesson plan & resources available. | E136: Instruction and Practice | F136: Whole Group | G136: 30
B137: Online Safety & Digital Citizenship (Review) | C137: Summer Online Safety Poster | D137: Students will create a poster to teach others how to stay safe online. | E137: Application | F137: Small Group | G137: 45
B138: Online Safety & Digital Citizenship (Review) | C138: Summer Online Safety Poster (Presentations) | D138: Presentations of Online Safety Posters | F138: Whole Group
C139: Technology Showcase (Optional) | F139: Whole Group
F140: Minutes in Unit | G140: =SUM(G136:G139) -> 75
F142: Total Minutes | G142: =SUM(G131,G118,G109,G93,G67,G36,G140) -> 866
B144: Tips & Suggestions - Remember to print or save your students' work and include it in their student portfolios. Have students use drawing software and text options to create a 'Welcome to Kindergarten' mini-poster for next year's students.
B146: Tips & Suggestions - Online safety is important to revisit at the end of the year to remind students that they need to be smart when online - whether at home or at school. Provide parents with resources to help them keep their students safe online, like the 'Parent Online Safety Guide' linked below. Host an in-person or virtual technology showcase to share student work to wrap up the school year and provide students and parents with ideas for continuing to practice their digital literacy skills during the summer.
B147: =HYPERLINK("https://support.learning.com/parent-resources/online-safety-guide-for-parents-english/","Parent Online Safety Guide") -> Parent Online Safety Guide

Sheet First
E1: Blended Learning Path
B3: EasyTech Curriculum Map - 1st Grade
B4: 2022-2023
B6: This Curriculum Map provides a suggested order of assignments for utilizing the EasyTech curriculum in your classroom. For planning purposes, it is recommended that approximately 45 minutes of digital literacy curriculum is delivered each week through whole group, independent, or guided practice implementation models.
B8: Prior to beginning the school year, it is recommended that you create student technology portfolios (digital or print) to provide students with a way to share their learning. The portfolio may include pictures, reports, and documents published. Pictures are a great way to show your students the learning process and can be used at the end of the year for a class slideshow or technology showcase.
B10: Digital Literacy Concept | C10: Curriculum Title | D10: Description | E10: Learning Component | F10: Implementation Model | G10: Time (in minutes)
C11: * CIPA Required topic
B12: Online Safety & Digital Citizenship | C12: * Introduction to Digital Citizenship: Cyberbullying | D12: This colorful and engaging video introduces students to the basics of dealing with cyberbullying on the internet. | E12: Instruction | F12: Whole Group | G12: 5
B13: Online Safety & Digital Citizenship | C13: * Introduction to Online Safety: Protecting Your Privacy | D13: This engaging video-based learning object provides the learner with foundational knowledge about the importance of protecting their personal information. The learner will understand that they shouldn't share any personal information online or agree to meet anyone they don’t know and trust; and they should always log off or lock their device to protect their personal information. | E13: Instruction | F13: Whole Group | G13: 4
B14: IT Fundamentals | C14: Introduction to Computer Fundamentals | D14: In this engaging animated video, Ollie the Owl gives an overview of the importance of staying safe online and logging out of the computer to protect your information. | E14: Instruction | F14: Whole Group | G14: 3
B15: IT Fundamentals | C15: Computer Fundamentals: Intro to Pointer Devices | D15: In this engaging and interactive digital lesson, the learners receive direct instruction and practice using a mouse and a trackpad to select objects. | E15: Instruction and Practice | F15: Whole Group | G15: 5
B16: IT Fundamentals | C16: Computer Fundamentals: Intro to Pointer Devices | D16: In this engaging and interactive digital lesson, the learners receive direct instruction and practice using a mouse and a trackpad to select objects. | E16: Instruction and Practice | F16: Independent | G16: 5
B17: IT Fundamentals | C17: Computer Fundamentals: Pointers and Making Choices | D17: In this engaging and interactive digital lesson, the learners receive direct instruction and practice choosing which items to select with their pointer device. | E17: Instruction and Practice | F17: Whole Group | G17: 5
B18: IT Fundamentals | C18: Computer Fundamentals: Pointers and Making Choices | D18: In this engaging and interactive digital lesson, the learners receive direct instruction and practice choosing which items to select with their pointer device. | E18: Instruction and Practice | F18: Independent | G18: 5
B19: IT Fundamentals | C19: Computer Fundamentals: Selecting Multiple Objects | D19: In this engaging and interactive digital lesson, the learners receive direct instruction and practice using a mouse and a trackpad to select multiple objects at the same time. | E19: Instruction and Practice | F19: Whole Group | G19: 10
B20: IT Fundamentals | C20: Computer Fundamentals: Selecting Multiple Objects | D20: In this engaging and interactive digital lesson, the learners receive direct instruction and practice using a mouse and a trackpad to select multiple objects at the same time. | E20: Instruction and Practice | F20: Independent | G20: 10
B21: IT Fundamentals | C21: Critter Catch | D21: In this interactive game, the learner practices hand-eye coordination using a mouse or trackpad to move the on screen pointer and the button or tap feature to catch bugs. | E21: Practice | F21: Independent | G21: 2
B22: IT Fundamentals | C22: Computer Fundamentals: Using a Pointer Device to Move Objects | D22: In this engaging and interactive digital lesson, the learners receive direct instruction and practice selecting, unselecting, and moving objects. | E22: Instruction and Practice | F22: Whole Group | G22: 10
B23: IT Fundamentals | C23: Computer Fundamentals: Using a Pointer Device to Move Objects | D23: In this engaging and interactive digital lesson, the learners receive direct instruction and practice selecting, unselecting, and moving objects. | E23: Instruction and Practice | F23: Independent | G23: 10
B24: IT Fundamentals | C24: Computer Fundamentals: Using a Pointer Device to Double-Click | D24: In this engaging and interactive digital lesson, the learners receive direct instruction and practice using a mouse to select, drag, and double-click as they select items using the pointer and mouse button, move objects on the screen, and double-click to open objects. | E24: Instruction and Practice | F24: Whole Group | G24: 3
B25: IT Fundamentals | C25: Computer Fundamentals: Using a Pointer Device to Double-Click | D25: In this engaging and interactive digital lesson, the learners receive direct instruction and practice using a pointer device to select an object by double-clicking. | E25: Instruction and Practice | F25: Independent | G25: 3
B26: IT Fundamentals | C26: Computer Fundamentals: Access Websites and Scroll | D26: In this engaging and interactive digital lesson, learners receive direct instruction and practice opening a hyperlink and using scroll bars. | E26: Instruction | F26: Whole Group | G26: 3
B27: IT Fundamentals | C27: Computer Fundamentals: Access Websites and Scroll | D27: In this engaging and interactive digital lesson, learners receive direct instruction and practice opening a hyperlink and using scroll bars. | E27: Instruction | F27: Independent | G27: 3
F28: Minutes in Unit | G28: =SUM(G12:G27) -> 86
B30: Tips & Suggestions - Choosing to use the interactive lessons as whole group activities instead of independent will allow you to model efficient use and understanding of the Learning.com online classroom. Have struggling students pair up with their tech buddies to review or revisit any lessons with a score of less than 90%.
B32: Digital Literacy Concept | C32: Curriculum Title | D32: Description | E32: Learning Component | F32: Implementation Model | G32: Time (in minutes)
C33: * CIPA Required topic
B34: Online Safety & Digital Citizenship | C34: *Digital Citizenship: The Grand Keyboard - Level 1 | D34: In this engaging animated video, Ollie teaches Rocki the value of a safe password. | E34: Instruction | F34: Whole Group | G34: 3
B35: Online Safety & Digital Citizenship | C35: *Digital Citizenship: The Grand Keyboard - Level 1 | D35: In this engaging animated video, Ollie teaches Rocki the value of a safe password. | E35: Instruction | F35: Independent | G35: 3
B36: Online Safety & Digital Citizenship | C36: *Digital Citizenship: Vocabulary Interactive Practice - Level 1 | D36: In this interactive learning experience, students improve their knowledge of the vocabulary terms and definitions associated with digital citizenship and passwords. | E36: Practice | F36: Guided | G36: 10
B37: Online Safety & Digital Citizenship | C37: *Digital Citizenship: Safe and Secret Passwords - Level 1 | D37: In this interactive learning experience, students improve their knowledge of digital citizenship and passwords. | E37: Practice | F37: Guided | G37: 3
B38: Online Safety & Digital Citizenship | C38: *Cyberbullying: Rocki's Profile Prank - Level 1 | D38: In this engaging animated video, Rocki learns how to handle cyberbullying and be kind online. | E38: Instruction | F38: Whole Group | G38: 3
B39: Online Safety & Digital Citizenship | C39: *Cyberbullying: Rocki's Profile Prank - Level 1 | D39: In this engaging animated video, Rocki learns how to handle cyberbullying and be kind online. | E39: Instruction | F39: Independent | G39: 3
B40: Online Safety & Digital Citizenship | C40: *Cyberbullying: Vocabulary Interactive Practice – Level 1 | D40: In this interactive learning experience, students improve their knowledge of vocabulary terms and definitions related to cyberbullying. | E40: Practice | F40: Guided | G40: 10
B41: Online Safety & Digital Citizenship | C41: *Cyberbullying: Think Before You Prank – Level 1 | D41: In this interactive learning experience, students improve their knowledge of cyberbullying. | E41: Practice | F41: Guided | G41: 3
B42: Online Safety & Digital Citizenship | C42: *Cyberbullying: Report a Cyberbully – Level 1 | D42: In this interactive learning experience, students improve their knowledge of cyberbullying. | E42: Practice | F42: Guided | G42: 3
F43: Minutes in Unit | G43: =SUM(G34:G42) -> 41
B45: Tips & Suggestions - These lessons help set a firm foundation for safe, appropriate, responsible, and effective technology use throughout the year. Take this opportunity to differentiate or extend the lesson plans as needed for your students.
B47: Digital Literacy Concept | C47: Curriculum Title | D47: Description | E47: Learning Component | F47: Implementation Model | G47: Time (in minutes)
B48: IT Fundamentals | C48: IT Fundamentals: An Icon-ic Concert Part 1 | D48: In this engaging animated video, the Tech Grove friends prepare for a concert by discovering the purpose of technology icons. The seven different icons covered in this lesson are: power icon, plus and minus icons, home icon, close or exit icon, and left and right arrow icons. | E48: Instruction | F48: Independent | G48: 4
B49: IT Fundamentals | C49: IT Fundamentals: An Icon-ic Concert Part 2 | D49: In this engaging animated video, the Tech Grove friends prepare for a concert by discovering the purpose of technology icons. The seven different icons covered in this lesson are: power icon, plus and minus icons, home icon, close or exit icon, and left and right arrow icons. | E49: Instruction | F49: Independent | G49: 3
B50: IT Fundamentals | C50: IT Fundamentals: An Icon-ic Practice | D50: This interactive experience is intended to be an independent practice for students and can be used in a teacher-led or in a student-led learning format. | E50: Practice | F50: Independent | G50: 15
B51: IT Fundamentals | C51: Computer Fundamentals: Processors, Input and Output Devices | D51: The learners receive direct instruction and practice identifying and caring for basic computer components such as the processor, keyboard, mouse, monitor, speakers, printer, and to classify the component as either an input or output device in this engaging and interactive digital lesson. | E51: Instruction and Practice | F51: Whole Group | G51: 9
B52: IT Fundamentals | C52: Computer Fundamentals: Processors, Input and Output Devices | D52: The learners receive direct instruction and practice identifying and caring for basic computer components such as the processor, keyboard, mouse, monitor, speakers, printer, and to classify the component as either an input or output device in this engaging and interactive digital lesson. | E52: Instruction and Practice | F52: Independent | G52: 9
B53: IT Fundamentals | C53: Computer Fundamentals: Data Storage | D53: During this engaging and interactive digital lesson, the learners receive direct instruction and practice with data storage devices, accessing stored data, and using and taking care of compact discs, DVDs, flash drives, and computer drives. | E53: Instruction and Practice | F53: Whole Group | G53: 7
B54: IT Fundamentals | C54: Computer Fundamentals: Data Storage | D54: During this engaging and interactive digital lesson, the learners receive direct instruction and practice with data storage devices, accessing stored data, and using and taking care of compact discs, DVDs, flash drives, and computer drives. | E54: Instruction and Practice | F54: Independent | G54: 7
F55: Minutes in Unit | G55: =SUM(G48:G54) -> 54
B57: Tips & Suggestions - This is a good time to implement 'tech buddies' in your classroom to help struggling students when lessons aren't mastered. Try to use the 'talk, not touch' or 'point, not press' approaches with your buddies so the learner retains control of his/her equipment. Make time to model and practice logging in and out during each class period.
B59: Digital Literacy Concept | C59: Curriculum Title | D59: Description | E59: Learning Component | F59: Implementation Model | G59: Time (in minutes)
B60: Online Safety & Digital Citizenship | C60: How Technology Makes You Feel | D60: Why is it important to listen to your feelings when using technology? This foundational digital citizenship lesson challenges kids to pay attention to their feelings while using tech. With an engaging emoji game, students learn practical strategies for managing their feelings -- good, bad, and everything in between. Note: Complete lesson plan & resources available. | E60: Instruction | F60: Whole Group | G60: 30
B61: Keyboarding | C61: Keyboarding: Locate and Type Letters A, B, C, D, and E | D61: During this engaging and interactive digital lesson, the learners receive direct instruction and practice in keyboarding the letters A, B, C, D, and E as they locate and type the letters, recognize the letter sounds, and learn the relationship between the letters on the keyboard and on the screen. | E61: Instruction and Practice | F61: Independent | G61: 7
B62: Keyboarding | C62: Keyboarding: Locate and Type Letters F, G, H, I, and J | D62: The learners receive direct instruction and practice in keyboarding the letters F, G, H, I, and J as they locate and type the letters, recognize the letter sounds, and learn the relationship between the letters on the keyboard and on the screen in this engaging and interactive digital lesson. | E62: Instruction and Practice | F62: Independent | G62: 7
B63: Keyboarding | C63: Keyboarding: Locate and Type Letters K, L, M, N, and O | D63: In this engaging and interactive digital lesson, the learners receive direct instruction and practice in keyboarding the letters K, L, M, N, and O as they locate and type the letters, recognize the letter sounds, and learn the relationship between the letters on the keyboard and on the screen. | E63: Instruction and Practice | F63: Independent | G63: 6
B64: Keyboarding | C64: Keyboarding: Locate and Type Letters P, Q, R, S, and T | D64: The learners receive direct instruction and practice in keyboarding the letters P, Q, R, S, and T as they locate and type the letters, recognize the letter sounds, and learn the relationship between the letters on the keyboard and on the screen during this engaging and interactive digital lesson. | E64: Instruction and Practice | F64: Independent | G64: 6
B65: Keyboarding | C65: Keyboarding: Locate and Type Letters U, V, W, X, Y, and Z | D65: In this engaging and interactive digital lesson, the learners receive direct instruction and practice in keyboarding the letters U, V, W, X, Y, and Z as they locate and type the letters, recognize the letter sounds, and learn the relationship between the letters on the keyboard and on the screen. | E65: Instruction and Practice | F65: Independent | G65: 10
B66: Keyboarding | C66: Beginning Sounds | D66: Students identify the initial sounds they hear in high-frequency words by marking a keyboard template. | E66: Practice | F66: Guided | G66: 20
B67: Keyboarding | C67: Keyboarding: Locate and Type Numbers | D67: The learners receive direct instruction and practice in keyboarding numbers 0 through 9 as they locate and type numbers, learn the relationship between the numbers on the keyboard and the screen, strengthen counting skills, and reinforce basic shape recognition in this engaging and interactive digital lesson. | E67: Instruction and Practice | F67: Independent | G67: 10
B68: Keyboarding | C68: Typing Numbers | D68: Students count object sets and move the objects to the corresponding number keys, select boxes to match the number provided then type the number. | E68: Practice | F68: Guided | G68: 30
B69: Keyboarding | C69: Keyboarding: Cursor, Spacebar, Backspace, Enter, and Words | D69: Learners receive direct instruction and practice keyboarding to type words as they use the cursor, type letter combinations to form words, the spacebar to add spaces between words, the backspace key to delete mistakes, and the enter or return key to create new lines in this engaging and interactive digital lesson. | E69: Instruction and Practice | F69: Independent | G69: 10
B70: Keyboarding | C70: Keyboarding: Cursor, Arrows, and Tab | D70: In this engaging and interactive digital lesson, the learners will receive direct instruction and practice with keyboarding using the cursor, arrows, tab, backspace, and delete keys as they move the cursor, remove text, and create large spaces. | E70: Instruction and Practice | F70: Independent | G70: 9
B71: Keyboarding | C71: Keyboarding: Shift Key for Capitals and Symbols | D71: This engaging and interactive digital lesson provides direct instruction and practice in the areas of keying letters to form words, and using the shift key to make capital letters, symbols, and punctuation including exclamation point and question mark. | E71: Instruction and Practice | F71: Independent | G71: 10
B72: Keyboarding | C72: Animal Story | D72: Students type a short story and draw a picture to illustrate it. | E72: Application | F72: Guided | G72: 10
F73: Minutes in Unit | G73: =SUM(G60:G72) -> 165
B75: Tips & Suggestions - To enrich, extend, or differentiate during this unit, have your students apply their progressing skills by typing spelling words at a computer work station. Integrating math and new technology skills can also be a fun way to get students creating story problems. Remember to use tech buddies for assistance during lessons and classroom practice.
B77: Digital Literacy Concept | C77: Curriculum Title | D77: Description | E77: Learning Component | F77: Implementation Model | G77: Time (in minutes)
C78: * CIPA Required topic
B79: Online Safety & Digital Citizenship | C79: *Pause & Think Online | D79: How can we be safe, responsible, and respectful online? From our head down to our toes, and our feet up to our nose, the Digital Citizens teach students how to be safe, responsible, and respectful online. Note: Complete lesson plan & resources available. | E79: Instruction | F79: Whole Group | G79: 25
B80: Multimedia | C80: Multimedia: Basic Design Discussion Reflection | D80: In this lesson, teachers use the discussion points to help students understand the concept of audience and how to use font, color, white space, and graphics to design documents for print- and screen-viewing. | E80: Instruction | F80: Whole Group | G80: 30
B81: Multimedia | C81: Multimedia: Drawing Lines and Shapes to Tell a Story | D81: The learners will receive direct instruction and practice with drawing software in this engaging and interactive digital lesson. They will use the mouse to select, drag and drop objects, use the pencil, brush, and airbrush tools to draw a picture, and use the color palette to combine colors. | E81: Instruction and Practice | F81: Independent | G81: 9
B82: Multimedia | C82: Multimedia: Drawing and Filling Shapes Using Graphics Tools | D82: In this engaging and interactive digital lesson, the learners will receive direct instruction and practice with graphics tools. They will use the mouse to select, drag and drop objects, draw shapes, fill using the color palette, magnify drawings, and add text to drawings using tools in the tool box. | E82: Instruction and Practice | F82: Independent | G82: 12
B83: Multimedia | C83: Visual Mapping: Groups and Labels | D83: The learners will represent thoughts and organized ideas through the use of clip art, text, labeled objects and the link tool in visual mapping software as they receive direct instruction and practice in this engaging and interactive digital lesson. | E83: Instruction and Practice | F83: Independent | G83: 12
B84: Multimedia | C84: Sorting Sets | D84: Students sort animals based on characteristics, and then create two visual maps based on properties of a set. | E84: Practice | F84: Guided | G84: 20
B85: Multimedia | C85: Visual Mapping: Attributes and Linking | D85: During this engaging and interactive digital lesson, the learners will receive direct instruction and practice with visual mapping software as they enhance text using bold, italics, and underlining, modify arrow attributes and adjust elements of style, color, and size for the background and clip art. | E85: Instruction and Practice | F85: Independent | G85: 12
B86: Multimedia | C86: I Belong to Many Groups | D86: Students create a visual map that illustrates information about the groups to which they belong. | E86: Application | F86: Guided | G86: 30
F87: Minutes in Unit | G87: =SUM(G79:G86) -> 150
B89: Tips & Suggestions - Extend student practice with digital drawing and painting by encouraging students to create artwork for an 'Art Gallery Show' where you share their digital drawings in class with a slideshow. To assist with visual mapping, make sure you have proper software or online resources that your students have quick and easy access to.
B91: Digital Literacy Concept | C91: Curriculum Title | D91: Description | E91: Learning Component | F91: Implementation Model | G91: Time (in minutes)
C92: * CIPA Required topic
B93: Online Safety & Digital Citizenship | C93: *Internet Traffic Light | D93: How do you stay safe when visiting a website or app? Staying safe online is a lot like staying safe in the real world. Using a fun traffic light activity, students learn how to identify "just right" content, giving them the green light to learn, play, and explore the internet safely. Note: Complete lesson plan & resources available. | E93: Instruction | F93: Whole Group | G93: 35
B94: Business Applications | C94: Word Processing: Basic Document Creation | D94: Learners will receive direct instruction and practice in the area of basic word processing skills. The learners will gain knowledge about how to input text, move the cursor, add spaces, erase typed information, and save and print documents during this engaging and interactive digital lesson. | E94: Instruction and Practice | F94: Whole Group | G94: 12
B95: Business Applications | C95: Word Processing: Basic Document Creation | D95: Learners will receive direct instruction and practice in the area of basic word processing skills. The learners will gain knowledge about how to input text, move the cursor, add spaces, erase typed information, and save and print documents during this engaging and interactive digital lesson. | E95: Instruction and Practice | F95: Independent | G95: 12
B96: Business Applications | C96: Word Processing: Formatting Text | D96: In this engaging and interactive digital lesson, the learners will receive direct instruction and practice formatting text in word processing documents using the bold, underline, italic, and font size features, opening documents and using the select, cut, copy, and paste features. | E96: Instruction and Practice | F96: Whole Group | G96: 15
B97: Business Applications | C97: Word Processing: Formatting Text | D97: In this engaging and interactive digital lesson, the learners will receive direct instruction and practice formatting text in word processing documents using the bold, underline, italic, and font size features, opening documents and using the select, cut, copy, and paste features. | E97: Instruction and Practice | F97: Independent | G97: 15
B98: Business Applications | C98: Group Story | D98: In groups, students think of words for the different parts of speech and write stories together using their chosen words. | E98: Practice | F98: Guided | G98: 30
B99: Business Applications | C99: Poem Creation and Design | D99: Students use a word processing program to write and format a poem. | E99: Application | F99: Guided | G99: 60
B100: IT Fundamentals | C100: Lab Rules Sign | D100: Students create signs for the computer lab illustrating the rules in the acceptable use policy. | E100: Application | F100: Guided | G100: 30
F101: Minutes in Unit | G101: =SUM(G93:G100) -> 209
B103: Tips & Suggestions - As young learners emerge into writers, provide them with opportunities to publish their classroom writing using word processing software, then illustrate with digital or hand drawn art.
B105: Digital Literacy Concept | C105: Curriculum Title | D105: Description | E105: Learning Component | F105: Implementation Model | G105: Time (in minutes)
B106: Computer Science | C106: Computational Thinking: Patterns | D106: The learners receive direct instruction and practice recognizing and analyzing simple patterns to predict what comes next or what is missing from the pattern. They will be introduced to computational thinking and how computers use programs and software to analyze patterns and solve problems in this engaging and interactive digital lesson. | E106: Instruction and Practice | F106: Independent | G106: 15
B107: Computer Science | C107: Computational Thinking: Directions | D107: The learners receive direct instruction and practice with computational thinking and using directions as a list of ordered steps that explain how to accomplish a task, achieve a goal, or solve a problem. They collect and organize information to create a set of directions that they test for accuracy and completeness in this engaging and interactive digital lesson. | E107: Instruction and Practice | F107: Whole Group | G107: 15
B108: Computer Science | C108: Computational Thinking: Directions | D108: The learners receive direct instruction and practice with computational thinking and using directions as a list of ordered steps that explain how to accomplish a task, achieve a goal, or solve a problem. They collect and organize information to create a set of directions that they test for accuracy and completeness in this engaging and interactive digital lesson. | E108: Instruction and Practice | F108: Independent | G108: 15
B109: Computer Science | C109: A New Student in Class | D109: Following and creating directions are a precursor to algorithms and are a fundamental skill of computational thinking. In this application exercise, students create a poster detailing directions of a classroom task or procedure to help a new student adjust to their class. | E109: Application | F109: Guided | G109: 60
F110: Minutes in Unit | G110: =SUM(G106:G109) -> 105
B112: Tips & Suggestions - For Computational Thinking, remind students that patterns and directions are something that they use in school every day. To reinforce their learning, have students point out the patterns they see and directions they follow throughout their day. Learning to code alongside your students can be a fun way to share in the learning experience.
B114: Digital Literacy Concept | C114: Curriculum Title | D114: Description | E114: Learning Component | F114: Implementation Model | G114: Time (in minutes)
B115: Spreadsheets and Databases | C115: Business Applications: Finding Information Discussion Reflection | D115: In this lesson, teachers use the discussion points to help students understand the concept of a database, and how they can use one in their daily classroom work. | E115: Instruction | F115: Whole Group | G115: 30
B116: Spreadsheets and Databases | C116: Databases: Classifying Data | D116: In this engaging and interactive digital lesson, the learners will receive direct instruction and practice classifying data as they identify, gather, and organize data in a table by cells, rows, and columns. | E116: Instruction and Practice | F116: Whole Group | G116: 8
B117: Spreadsheets and Databases | C117: Databases: Classifying Data | D117: In this engaging and interactive digital lesson, the learners will receive direct instruction and practice classifying data as they identify, gather, and organize data in a table by cells, rows, and columns. | E117: Instruction and Practice | F117: Independent | G117: 8
B118: Spreadsheets and Databases | C118: Databases: Data Classification Journal | D118: Students engage in a nature walk to gather data using their five senses. Using a table handout, students list each item they find in the correct sense category. Students use a database program and input the data from their handout into a database table or datasheet. They share their datasheets with other classmates. | E118: Application | F118: Guided | G118: 30
F119: Minutes in Unit | G119: =SUM(G115:G118) -> 76
B121: Tips & Suggestions - Remember to print or save your students' work and include it in their student portfolios. This is also the perfect time of year to design mini-projects which end in digital publication to demonstrate your students' application of their digital literacy skills.
B123: Digital Literacy Concept | C123: Curriculum Title | D123: Description | E123: Learning Component | F123: Implementation Model | G123: Time (in minutes)
B124: Online Safety & Digital Citizenship | C124: Summer Online Safety Poster | D124: Students will create a poster to teach others how to stay safe online. | E124: Application | F124: Small Group | G124: 45
B125: Online Safety & Digital Citizenship | C125: Summer Online Safety Poster (Presentations) | E125: Application | F125: Small Group
C126: Technology Showcase (Optional)
F127: Minutes in Unit | G127: =SUM(G122:G125) -> 45
E129: Total minutes in all units | G129: =SUM(G127,G119,G110,G101,G87,G73,G55,G43,G28) -> 931
B131: Tips & Suggestions - Online safety is important to revisit at the end of the year to remind students that they need to be smart when online - whether at home or at school. Provide parents with resources to help them keep their students safe online, like the 'Parent Online Safety Guide' linked below. Host an in-person or virtual technology showcase to share student work to wrap up the school year and provide students and parents with ideas for continuing to practice their digital literacy skills during the summer.
B132: =HYPERLINK("https://support.learning.com/parent-resources/online-safety-guide-for-parents-english/","Parent Online Safety Guide") -> Parent Online Safety Guide

Sheet Second
E1: Blended Learning Path
B3: EasyTech Curriculum Map - 2nd Grade
B4: 2022-2023
B6: This Curriculum Map provides a suggested order of assignments for utilizing the EasyTech curriculum in your classroom. For planning purposes, it is recommended that approximately 45 minutes of digital literacy curriculum is delivered each week through whole group, independent, or guided practice implementation models.
B8: Prior to beginning the school year, it is recommended that you create student technology portfolios (digital or print) to provide students with a way to share their learning. The portfolio may include pictures, reports, and documents published. Pictures are a great way to show your students the learning process and can be used at the end of the year for a class slideshow or technology showcase.
B10: Digital Literacy Concept | C10: Curriculum Title | D10: Description | E10: Learning Component | F10: Implementation Model | G10: Time (in minutes)
C11: * CIPA Required topic
B12: Online Safety & Digital Citizenship | C12: * Introduction to Digital Citizenship: Cyberbullying | D12: This colorful and engaging video introduces students to the basics of dealing with cyberbullying on the internet. | E12: Instruction | F12: Whole Group | G12: 5
B13: Online Safety & Digital Citizenship | C13: * Introduction to Online Safety: Protecting Your Privacy | D13: This engaging video-based learning object provides the learner with foundational knowledge about the importance of protecting their personal information. The learner will understand that they shouldn't share any personal information online or agree to meet anyone they don’t know and trust; and they should always log off or lock their device to protect their personal information. | E13: Instruction | F13: Whole Group | G13: 4
B14: Online Safety & Digital Citizenship | C14: *Digital Citizenship: The Mysterious Map – Level 2 | D14: In this engaging animated video, Truman and Poppy learn about the importance of netiquette in communicating emotions. | E14: Instruction | F14: Independent | G14: 2
B15: Online Safety & Digital Citizenship | C15: *Digital Citizenship: Into the Trees – Level 2 | D15: In this engaging animated video, Truman and Poppy discover ways to "be kind online." | E15: Instruction | F15: Independent | G15: 2
B16: Online Safety & Digital Citizenship | C16: *Digital Citizenship: Netiquette Vocabulary Practice - Level 2 | D16: In this interactive learning experience, students improve their knowledge of vocabulary terms and definitions related to digital citizenship and netiquette. | E16: Practice | F16: Guided | G16: 10
B17: Online Safety & Digital Citizenship | C17: *Digital Citizenship: Be Kind Online - Level 2 | D17: In this interactive learning experience, students will improve their knowledge of digital citizenship. | E17: Practice | F17: Guided | G17: 10
B18: Online Safety & Digital Citizenship | C18: *Digital Citizenship: Fort in the Forest - Level 2 | D18: In this engaging animated video, Truman and Poppy look back at their footprints and see how they can leave a trail online. | E18: Instruction | F18: Independent | G18: 2
B19: Online Safety & Digital Citizenship | C19: *Digital Citizenship: Vocabulary Interactive Practice - Level 2 | D19: In this interactive learning experience, students improve their knowledge of vocabulary terms and definitions related to digital citizenship and digital footprint. | E19: Practice | F19: Guided | G19: 10
B20: Online Safety & Digital Citizenship | C20: *Digital Citizenship: Footprints and Identity - Level 2 | D20: In this interactive learning experience, students will improve their knowledge of digital citizenship. | E20: Practice | F20: Guided | G20: 10
B21: Online Safety & Digital Citizenship | C21: *Cyberbullying: The Legendary Shellphone Part 1 - Level 2 | D21: In this engaging animated video, Truman and Poppy must use their online smarts to tackle cyberbullying. | E21: Instruction | F21: Independent | G21: 2
B22: Online Safety & Digital Citizenship | C22: *Cyberbullying: The Legendary Shellphone Part 2 - Level 2 | D22: In this engaging animated video, Truman is given a very special treasure to communicate online as a reward for becoming a safe cyber-citizen. | E22: Instruction | F22: Independent | G22: 2
B23: Online Safety & Digital Citizenship | C23: *Cyberbullying: Vocabulary Interactive Practice - Level 2 | D23: In this interactive learning experience, students improve their knowledge of vocabulary terms and definitions related to cyberbullying awareness and response. | E23: Practice | F23: Guided | G23: 10
B24: Online Safety & Digital Citizenship | C24: *Cyberbullying: Title TBD (Interactive Practice) - Level 2 | D24: In this interactive learning experience, students improve their knowledge of cyberbullying. | E24: Practice | F24: Guided | G24: 2
F26: Minutes in Unit | G26: =SUM(G12:G25) -> 71
B28: Tips & Suggestions - These lessons are spiraled from previous years to help set a firm foundation for safe, appropriate, responsible, and effective technology use throughout the year. Take this opportunity to differentiate or extend using the lesson plans as needed for your students. Encourage students to be as creative and detailed as possible in creating their lab rules sign.
B30: Digital Literacy Concept | C30: Curriculum Title | D30: Description | E30: Learning Component | F30: Implementation Model | G30: Time (in minutes)
B31: IT Fundamentals | C31: IT Fundamentals: An Icon-ic Concert Part 1 | D31: In this engaging animated video, the Tech Grove friends prepare for a concert by discovering the purpose of technology icons. The seven different icons covered in this lesson are: power icon, plus and minus icons, home icon, close or exit icon, and left and right arrow icons. | E31: Instruction | F31: Independent | G31: 4
B32: IT Fundamentals | C32: IT Fundamentals: An Icon-ic Concert Part 2 | D32: In this engaging animated video, the Tech Grove friends prepare for a concert by discovering the purpose of technology icons. The seven different icons covered in this lesson are: power icon, plus and minus icons, home icon, close or exit icon, and left and right arrow icons. | E32: Instruction | F32: Independent | G32: 3
B33: IT Fundamentals | C33: IT Fundamentals: An Icon-ic Practice | D33: This interactive experience is intended to be an independent practice for students and can be used in a teacher-led or in a student-led learning format. | E33: Practice | F33: Independent | G33: 15
B34: IT Fundamentals | C34: Spelling Star | D34: In this interactive game, the learner visits a planetarium to practice hand-eye coordination using a mouse or trackpad to drag and drop letters to form words as they explore the stars. | E34: Practice | F34: Independent | G34: 5
B35: IT Fundamentals | C35: Computer Fundamentals: Processors, Input and Output Devices | D35: The learners receive direct instruction and practice identifying and caring for basic computer components such as the processor, keyboard, mouse, monitor, speakers, printer, and to classify the component as either an input or output device in this engaging and interactive digital lesson. | E35: Instruction and Practice | F35: Independent | G35: 9
B36: IT Fundamentals | C36: Hardware Fundamentals: Printer | D36: The learners will receive direct instruction and practice using a printer, previewing and printing entire documents or selected pages, and troubleshooting common printer problems in this engaging and interactive digital lesson. | E36: Instruction and Practice | F36: Independent | G36: 9
B37: IT Fundamentals | C37: Hardware Fundamentals: Scanner | D37: During this engaging and interactive digital lesson, the learners will receive direct instruction and practice using a scanner for images or objects, saving a scanned image as a file, identifying components such as the scanning surface and scanning beam, and understanding how a scanner works. | E37: Instruction and Practice | F37: Independent | G37: 6
B38: IT Fundamentals | C38: Computer Fundamentals: Data Storage | D38: During this engaging and interactive digital lesson, the learners receive direct instruction and practice with data storage devices, accessing stored data, and using and taking care of compact discs, DVDs, flash drives, and computer drives. | E38: Instruction and Practice | F38: Independent | G38: 7
B39: IT Fundamentals | C39: Hardware Fundamentals: Network Basics | D39: The learners will receive direct instruction and practice with networking concepts, such as LANs, WANs, and file format compatibility. They will gain knowledge about how to use remote equipment and review intellectual property in this engaging and interactive digital lesson. | E39: Instruction and Practice | F39: Independent | G39: 12
B40: IT Fundamentals | C40: Software Fundamentals: Desktop | D40: In this engaging and interactive digital lesson, the learners will receive direct instruction and practice using the desktop, working with files and folders, navigating file structures, moving and opening files and folders, and deleting files. | E40: Instruction and Practice | F40: Independent | G40: 12
B41: IT Fundamentals | C41: Software Fundamentals: Windows and Controls | D41: In this engaging and interactive digital lesson, the learners will receive direct instruction and practice with dialog boxes and options windows, making selections using check boxes, radio buttons, scroll bars, and dropdown menus, and controls to close, maximize, minimize, restore, and resize windows. | E41: Instruction and Practice | F41: Independent | G41: 12
B42: IT Fundamentals | C42: Software Fundamentals: Toolbars and Menus | D42: In this engaging and interactive digital lesson, the learners will receive direct instruction and practice navigating program menus and using toolbars, recognizing and using symbols, properties, and online help, and understanding the connection between program menu icons and toolbar buttons. | E42: Instruction and Practice | F42: Independent | G42: 12
B43: IT Fundamentals | C43: Software Fundamentals: Software and File Formats | D43: The learners will receive direct instruction and practice with software programs and file formats as they identify software groups, select task-appropriate software, start and exit software programs, and create, name, save, print, and close files in this engaging and interactive digital lesson. | E43: Instruction and Practice | F43: Independent | G43: 12
F45: Minutes in Unit | G45: =SUM(G31:G44) -> 118
B47: Tips & Suggestions - The hardware and software fundamentals lessons help students become more familiar with how to navigate many software interfaces and online platforms. If you haven't established 'tech buddies' in your classroom, now is a good time. Have them assist students who have less than 90% mastery on any lesson.
B49: Digital Literacy Concept | C49: Curriculum Title | D49: Description | E49: Learning Component | F49: Implementation Model | G49: Time (in minutes)
C50: * CIPA Required topic
B51: Online Safety & Digital Citizenship | C51: *We the Digital Citizens | D51: How can we be good digital citizens? Students explore the amazing possibilities that come with using technology. They'll also learn from the Digital Citizens, who take a pledge to be safe, responsible, and respectful when traveling through the online world. Note: Complete lesson plan & resources available. | E51: Instruction | F51: Whole Group | G51: 20
B52: Keyboarding | C52: Keyboarding: Touch Keyboarding Discussion Reflection | D52: In this lesson, teachers use the discussion points to help students understand the concept of touch keyboarding, including proper keyboarding techniques and punctuation and symbol keys. | E52: Instruction | F52: Whole Group | G52: 30
B53: Keyboarding | C53: Keyboarding: Home Row | D53: This engaging and interactive digital lesson provides direct instruction and practice in the area of basic keyboarding techniques needed to type using the home row keys. The learners will gain knowledge about proper finger placement and posture. | E53: Instruction and Practice | F53: Whole Group | G53: 13
B54: Keyboarding | C54: Keyboarding: Home Row | D54: This engaging and interactive digital lesson provides direct instruction and practice in the area of basic keyboarding techniques needed to type using the home row keys. The learners will gain knowledge about proper finger placement and posture. | E54: Instruction and Practice | F54: Independent | G54: 13
B55: Keyboarding | C55: Keyboarding: Upper Row | D55: The learners will receive direct instruction and practice with the basic keyboarding techniques needed to type using the upper row keys. The learners will gain knowledge about proper finger placement and posture, and are provided a review of the home row keys in this engaging and interactive digital lesson. | E55: Instruction and Practice | F55: Whole Group | G55: 14
B56: Keyboarding | C56: Keyboarding: Upper Row | D56: The learners will receive direct instruction and practice with the basic keyboarding techniques needed to type using the upper row keys. The learners will gain knowledge about proper finger placement and posture, and are provided a review of the home row keys in this engaging and interactive digital lesson. | E56: Instruction and Practice | F56: Independent | G56: 14
B57: Keyboarding | C57: Keyboarding: Lower Row | D57: This engaging and interactive digital lesson provides direct instruction and practice with the basic keyboarding techniques needed to type using the lower row keys. The learners will gain knowledge about proper finger placement and posture, and are provided a review of the home and upper row keys. | E57: Instruction and Practice | F57: Whole Group | G57: 13
B58: Keyboarding | C58: Keyboarding: Lower Row | D58: This engaging and interactive digital lesson provides direct instruction and practice with the basic keyboarding techniques needed to type using the lower row keys. The learners will gain knowledge about proper finger placement and posture, and are provided a review of the home and upper row keys. | E58: Instruction and Practice | F58: Independent | G58: 13
B59: Keyboarding | C59: Keyboarding: Number Row | D59: In this engaging and interactive digital lesson, the learners receive direct instruction and practice with keyboarding techniques needed to type using the number row keys, proper finger placement and posture, and a review of the home, upper, and lower row keys. | E59: Instruction and Practice | F59: Whole Group | G59: 12
B60: Keyboarding | C60: Keyboarding: Number Row | D60: In this engaging and interactive digital lesson, the learners receive direct instruction and practice with keyboarding techniques needed to type using the number row keys, proper finger placement and posture, and a review of the home, upper, and lower row keys. | E60: Instruction and Practice | F60: Independent | G60: 12
B61: Keyboarding | C61: Keyboarding: Shift Key | D61: The learners will receive direct instruction and practice in keyboarding using the Shift key to type capital letters and symbols. The learners will use proper posture and finger placement, identify touch keys and reach keys, and type basic punctuation in this engaging and interactive digital lesson. | E61: Instruction and Practice | F61: Whole Group | G61: 11
B62: Keyboarding | C62: Keyboarding: Shift Key | D62: The learners will receive direct instruction and practice in keyboarding using the Shift key to type capital letters and symbols. The learners will use proper posture and finger placement, identify touch keys and reach keys, and type basic punctuation in this engaging and interactive digital lesson. | E62: Instruction and Practice | F62: Independent | G62: 11
F63: Minutes in Unit | G63: =SUM(G51:G62) -> 176
B65: Tips & Suggestions - To enrich, extend, or differentiate during the keyboarding unit, have your students apply their progressing skills by typing spelling words at a computer work station.
B67: Digital Literacy Concept | C67: Curriculum Title | D67: Description | E67: Learning Component | F67: Implementation Model | G67: Time (in minutes)
C68: * CIPA Required topic
B69: Online Safety & Digital Citizenship | C69: *Online Safety: Safe Site Strategies Discussion Reflection | D69: Inappropriate Content — avoiding sites, exiting sites: In this lesson, teachers use discussion points to introduce students to the concept of being safe online. | E69: Instruction | F69: Whole Group | G69: 30
B70: Online Safety & Digital Citizenship | C70: Internet Usage: Online Information Basics | D70: In this engaging and interactive digital lesson, the learners will receive direct instruction and practice browsing the Internet as they examine the difference between a web page and website, browse by following a series of hyperlinks, and learn to differentiate the Internet from the World Wide Web. | E70: Instruction and Practice | F70: Independent | G70: 15
B71: Online Safety & Digital Citizenship | C71: Internet Usage: Browsing and URLs | D71: During this engaging and interactive digital lesson, the learners will receive direct instruction and practice with Uniform Resource Locators (URLs) as they identify URL components, use URLs to navigate to a web page, and use a browser to find and view information online. | E71: Instruction and Practice | F71: Independent | G71: 15
B72: Online Safety & Digital Citizenship | C72: Internet Usage: Safe and Effective Online Searches | D72: The learners will receive direct instruction and practice using effective keywords and categories in search engines as they identify successful online searches, and consider their privacy and safety when providing personal information on the Internet in this engaging and interactive digital lesson. | E72: Instruction and Practice | F72: Whole Group | G72: 15
B73: Online Safety & Digital Citizenship | C73: Internet Usage: Safe and Effective Online Searches | D73: The learners will receive direct instruction and practice using effective keywords and categories in search engines as they identify successful online searches, and consider their privacy and safety when providing personal information on the Internet in this engaging and interactive digital lesson. | E73: Instruction and Practice | F73: Independent | G73: 15
B74: Online Safety & Digital Citizenship | C74: Internet Usage: Research, Resources, and Ethics | D74: In this engaging and interactive digital lesson, the learners will receive direct instruction and practice using web sites for research as they validate online information and author credibility, and respect intellectual property by properly citing online resources. | E74: Instruction and Practice | F74: Whole Group | G74: 15
B75: Online Safety & Digital Citizenship | C75: Internet Usage: Research, Resources, and Ethics | D75: In this engaging and interactive digital lesson, the learners will receive direct instruction and practice using web sites for research as they validate online information and author credibility, and respect intellectual property by properly citing online resources. | E75: Instruction and Practice | F75: Independent | G75: 15
B76: Online Safety & Digital Citizenship | C76: Let's Give Credit | D76: How can you give credit for other people's work? With so much information at our fingertips, students learn what it means to "give credit" when using content they find online. Taking on the role of a detective, students learn why it's important to give credit and the right ways to do it when they use words, images, or ideas that belong to others. | E76: Instruction | F76: Whole Group | G76: 30
B77: Online Safety & Digital Citizenship | C77: Share It Through Trading Cards | D77: Trading cards can be used for many purposes. Students will use trading cards to share what they have learned from their research about an assigned topic. | E77: Application | F77: Guided | G77: 60
B78: Online Safety & Digital Citizenship | C78: Share It Through Trading Cards (Presentations) | E78: Application | F78: Whole Group
F79: Minutes in Unit | G79: =SUM(G69:G78) -> 210
B81: Tips & Suggestions - Internet usage skills will provide students with a solid foundation for conducting research and using information found on the internet. Provide your students with opportunities to publish their work and include copies in their student technology portfolios.
B83: Digital Literacy Concept | C83: Curriculum Title | D83: Description | E83: Learning Component | F83: Implementation Model | G83: Time (in minutes)
B84: Language Arts and Reading
B85: Online Safety & Digital Citizenship | C85: Device Free Moments | D85: Why is it important that we have device-free moments in our lives? Technology use isn't always a distraction, but there are definitely times when it's best to keep devices away. Help students learn when it's appropriate to use technology and when it's not -- and practice making family rules for device-free time at home. Note: Complete lesson plan & resources available. | E85: Instruction | F85: Whole Group | G85: 40
B86: Business Applications | C86: Word Processing: Basic Document Creation | D86: Learners will receive direct instruction and practice in the area of basic word processing skills. The learners will gain knowledge about how to input text, move the cursor, add spaces, erase typed information, and save and print documents during this engaging and interactive digital lesson. | E86: Instruction and Practice | F86: Independent | G86: 12
B87: Business Applications | C87: Word Processing: Formatting Text | D87: In this engaging and interactive digital lesson, the learners will receive direct instruction and practice formatting text in word processing documents using the bold, underline, italic, and font size features, opening documents and using the select, cut, copy, and paste features. | E87: Instruction and Practice | F87: Independent | G87: 15
B88: Business Applications | C88: Correcting Words | D88: Students find errors in a paragraph and then make corrections to the paragraph using specific keys. | E88: Practice | F88: Independent | G88: 20
B89: Business Applications | C89: Grammar Safari | D89: Student practice locating and using adjectives and action verbs in two different essays. | E89: Application | F89: Guided | G89: 20
B90: Online Safety & Digital Citizenship | C90: Lab Rules Sign | D90: Students create signs for the computer lab illustrating the rules in the acceptable use policy. | E90: Application | F90: Guided | G90: 30
B91: Online Safety & Digital Citizenship | C91: Lab Rules Sign (Presentations) | F91: Whole Group
F92: Minutes in Unit | G92: =SUM(G85:G90) -> 137
B94: Tips & Suggestions - Students can enhance their writing with digital or hand drawn illustrations. Integrating math and new technology skills can also be a fun way to get students creating story problems.
B96: Digital Literacy Concept | C96: Curriculum Title | D96: Description | E96: Learning Component | F96: Implementation Model | G96: Time (in minutes)
B97: Math and Science
C98: * CIPA Required topic
B99: Online Safety & Digital Citizenship | C99: * That's Private! | D99: What kinds of information should I keep to myself when I use the internet? Staying safe online is a lot like staying safe in the real world. By helping a Digital Citizen sign up for a new app, students learn about the kinds of information they should keep to themselves when they use the internet -- just as they would with a stranger in person. Note: Complete lesson plan & resources available. | E99: Instruction | F99: Whole Group | G99: 30
B100: Multimedia | C100: Visual Mapping: Groups and Labels | D100: The learners will represent thoughts and organized ideas through the use of clip art, text, labeled objects and the link tool in visual mapping software as they receive direct instruction and practice in this engaging and interactive digital lesson. | E100: Instruction and Practice | F100: Independent | G100: 12
B101: Multimedia | C101: Visual Mapping: Attributes and Linking | D101: During this engaging and interactive digital lesson, the learners will receive direct instruction and practice with visual mapping software as they enhance text using bold, italics, and underlining, modify arrow attributes and adjust elements of style, color, and size for the background and clip art. | E101: Instruction and Practice | F101: Independent | G101: 12
B102: Multimedia | C102: Designing a Visual Map | D102: Students create visual maps that illustrate their understanding of design principles. | E102: Practice | F102: Guided | G102: 30
B103: Multimedia | C103: Water Cycle | D103: Students observe and answer questions about water and then use visual mapping software to create a diagram illustrating the water cycle. | E103: Application | F103: Guided | G103: 30
B104: Multimedia | C104: Visual Mapping: Idea Webs | D104: The learners will create, replace, resize, erase, move, and link objects and text using a variety of tools within visual mapping software as they receive direct instruction and practice during this engaging and interactive digital lesson. | E104: Instruction and Practice | F104: Independent | G104: 12
B105: Multimedia | C105: Visual Mapping: Formats and Outlines | D105: Through direct instruction and practice in this engaging and interactive digital lesson, the learners will use visual mapping software to create outlines and diagrams using the create and write tools, and add text to organize and enhance their pre-write documents. | E105: Instruction and Practice | F105: Independent | G105: 12
F106: Minutes in Unit | G106: =SUM(G99:G105) -> 138
B108: Tips & Suggestions - To assist with visual mapping, make sure you have proper software or online resources for your students. Provide opportunities for students to use their visual mapping skills during core classes. For example: Create an idea web about characters in a book or a science topic. Remember to use your tech buddies to assist with students who have less than 90% mastery on any lesson.
B110: Digital Literacy Concept | C110: Curriculum Title | D110: Description | E110: Learning Component | F110: Implementation Model | G110: Time (in minutes)
B111: Math and Science
B112: Online Safety & Digital Citizenship | C112: * Digital Trails | D112: What information is OK to have in your digital footprint? Does what you do online always stay online? Students learn that the information they share online leaves a digital footprint or "trail." Depending on how they manage it, this trail can be big or small, and harmful or helpful. Students compare different trails and think critically about what kinds of information they want to leave behind. Note: Complete lesson plan & resources available. | E112: Instruction | F112: Whole Group | G112: 40
B113: Computer Science | C113: Computational Thinking: Directions | D113: The learners receive direct instruction and practice with computational thinking and using directions as a list of ordered steps that explain how to accomplish a task, achieve a goal, or solve a problem. They collect and organize information to create a set of directions that they test for accuracy and completeness in this engaging and interactive digital lesson. | E113: Instruction and Practice | F113: Whole Group | G113: 15
B114: Computer Science | C114: Computational Thinking: Directions | D114: The learners receive direct instruction and practice with computational thinking and using directions as a list of ordered steps that explain how to accomplish a task, achieve a goal, or solve a problem. They collect and organize information to create a set of directions that they test for accuracy and completeness in this engaging and interactive digital lesson. | E114: Instruction and Practice | F114: Independent | G114: 15
B115: Computer Science | C115: A New Student in Class | D115: Following and creating directions are a precursor to algorithms and are a fundamental skill of computational thinking. In this application exercise, students create a poster detailing directions of a classroom task or procedure to help a new student adjust to their class. | E115: Application | F115: Guided | G115: 60
B116: Computer Science | C116: A New Student in Class (Presentations) | E116: Application | F116: Whole Group
F117: Minutes in Unit | G117: =SUM(G112:G116) -> 130
B119: Tips & Suggestions - Talk with your students about how computational thinking might help them plan for and complete tasks every day. Learning to code alongside your students can be a fun way to share in the learning experience. Continue to use your tech buddies to assist with students who have less than 90% mastery on any lesson.
B121: Digital Literacy Concept | C121: Curriculum Title | D121: Description | E121: Learning Component | F121: Implementation Model | G121: Time (in minutes)
B122: Math and Science
B123: Online Safety & Digital Citizenship | C123: Putting a STOP to Online Meanness | D123: What should you do if someone is mean to you online? The internet is filled with all kinds of interesting people, but sometimes, some of them can be mean to each other. With this role play, help your students understand why it's often easier to be mean online than in person, and how to deal with online meanness when they see it. Note: Complete lesson plan & resources available. | E123: Instruction | F123: Whole Group | G123: 35
B124: Business Applications | C124: Spreadsheets: Parts | D124: During this engaging and interactive digital lesson, the learners will receive direct instruction and practice with spreadsheets. Learners will gain experience with worksheets, cells, rows, columns, cell addresses, labels, navigating tables, and entering data. | E124: Instruction and Practice | F124: Whole Group | G124: 9
B125: Business Applications | C125: Spreadsheets: Parts | D125: During this engaging and interactive digital lesson, the learners will receive direct instruction and practice with spreadsheets. Learners will gain experience with worksheets, cells, rows, columns, cell addresses, labels, navigating tables, and entering data. | E125: Instruction and Practice | F125: Independent | G125: 9
B126: Business Applications | C126: Spreadsheets: Navigating Cells, Rows, and Columns | D126: Through direct instruction and practice in this engaging and interactive digital lesson, the learners will organize information in a spreadsheet by navigating cells, rows, and columns, editing or deleting data, adding titles, and including labels in a table. | E126: Instruction and Practice | F126: Whole Group | G126: 10
B127: Business Applications | C127: Spreadsheets: Navigating Cells, Rows, and Columns | D127: Through direct instruction and practice in this engaging and interactive digital lesson, the learners will organize information in a spreadsheet by navigating cells, rows, and columns, editing or deleting data, adding titles, and including labels in a table. | E127: Instruction and Practice | F127: Independent | G127: 10
B128: Business Applications | C128: Spreadsheets: Cell Formatting | D128: The learners will receive direct instruction and practice formatting cells in a spreadsheet by merging and grouping cells, applying number formats, aligning cell data, adding borders and color to cells, and indenting data in this engaging and interactive digital lesson. | E128: Instruction and Practice | F128: Whole Group | G128: 12
B129: Business Applications | C129: Spreadsheets: Cell Formatting | D129: The learners will receive direct instruction and practice formatting cells in a spreadsheet by merging and grouping cells, applying number formats, aligning cell data, adding borders and color to cells, and indenting data in this engaging and interactive digital lesson. | E129: Instruction and Practice | F129: Independent | G129: 12
B130: Business Applications | C130: Acts of Kindness | D130: Students use a spreadsheet to record acts of kindness they give and receive over the course of a week. | E130: Application | F130: Guided | G130: 60
B131: Business Applications | C131: Spreadsheets: Columns and Rows | D131: This engaging and interactive digital lesson provides direct instruction and practice as the learners insert and resize rows and columns, enter data into a spreadsheet, use alphabetical and numerical sort functions, use the summation function, and alphabetically organize information in a table. | E131: Instruction and Practice | F131: Whole Group | G131: 10
B132: Business Applications | C132: Spreadsheets: Columns and Rows | D132: This engaging and interactive digital lesson provides direct instruction and practice as the learners insert and resize rows and columns, enter data into a spreadsheet, use alphabetical and numerical sort functions, use the summation function, and alphabetically organize information in a table. | E132: Instruction and Practice | F132: Independent | G132: 10
B133: Business Applications | C133: Class Pets Spreadsheet | D133: Students collect information about their classmates' pets and then use their populated data tables to create and modify a spreadsheet on the computer. | E133: Application | F133: Guided | G133: 35
B134: Business Applications | C134: Class Pets Spreadsheet (Presentations) | F134: Whole Group
B135: Business Applications | C135: Spreadsheets: Line Charts | D135: This engaging and interactive digital lesson provides direct instruction and practice as the learners work with line charts in a spreadsheet program. They will use data found in a spreadsheet to create and label line charts, then practice reading and interpreting data found in a line chart. | E135: Instruction | F135: Independent | G135: 8
B136: Business Applications | C136: Spreadsheets: Line Charts | D136: This engaging and interactive digital lesson provides direct instruction and practice as the learners work with line charts in a spreadsheet program. They will use data found in a spreadsheet to create and label line charts, then practice reading and interpreting data found in a line chart. | E136: Instruction | F136: Independent | G136: 8
B137: Business Applications | C137: Graphing Weather | D137: Students draw pictures of each season, and then record and graph the temperature over the course of a week. | E137: Application | F137: Guided | G137: 60
B138: Business Applications | C138: Business Applications: Finding Information Discussion Reflection | D138: In this lesson, teachers use the discussion points to help students understand the concept of a database, and how they can use one in their daily classroom work. | E138: Instruction | F138: Whole Group | G138: 30
B139: Business Applications | C139: Databases: Classifying Data | D139: In this engaging and interactive digital lesson, the learners will receive direct instruction and practice classifying data as they identify, gather, and organize data in a table by cells, rows, and columns. | E139: Instruction and Practice | F139: Whole Group | G139: 8
B140: Business Applications | C140: Databases: Classifying Data | D140: In this engaging and interactive digital lesson, the learners will receive direct instruction and practice classifying data as they identify, gather, and organize data in a table by cells, rows, and columns. | E140: Instruction and Practice | F140: Independent | G140: 8
B141: Computer Science | C141: Databases: Data Classification Journal | D141: Students engage in a nature walk to gather data using their five senses. Using a table handout, students list each item they find in the correct sense category. Students use a database program and input the data from their handout into a database table or datasheet. They share their datasheets with other classmates. | E141: Application | F141: Guided | G141: 30
B142: Business Applications | C142: Databases: Using Databases to Store and Organize Data | D142: In this engaging and interactive digital lesson, the learners will receive direct instruction and practice with the parts of a database including fields, records, tables, datasheets, and forms. They will also learn how to find, group, and compare data. | E142: Instruction and Practice | F142: Independent | G142: 9
B143: Business Applications | C143: Databases: Using Databases to Store and Organize Data | D143: In this engaging and interactive digital lesson, the learners will receive direct instruction and practice with the parts of a database including fields, records, tables, datasheets, and forms. They will also learn how to find, group, and compare data. | E143: Instruction and Practice | F143: Independent | G143: 9
B144: Business Applications | C144: Databases: Tables, Records, and Fields Journal | D144: Using a database program, students design a classroom database of the people, places, landmarks, and natural resources in their communities. | E144: Application | F144: Small Group | G144: 60
F145: Minutes in Unit | G145: =SUM(G123:G144) -> 442
B147: Tips & Suggestions - Remind students that spreadsheets are a good way to keep track of information over time. Have students practice creating spreadsheets and databases by entering data about the content being studied in core curriculum, physical education, or other classes to show how the data is represented. Remember to add student-created items to their portfolios.
B149: Digital Literacy Concept | C149: Curriculum Title | D149: Description | E149: Learning Component | F149: Implementation Model | G149: Time (in minutes)
B150: Keyboarding (Review) | C150: Keyboarding: Home Row (Practice/Review) | D150: This engaging and interactive digital lesson provides direct instruction and practice in the area of basic keyboarding techniques needed to type using the home row keys. The learners will gain knowledge about proper finger placement and posture. | E150: Instruction and Practice | F150: Independent | G150: 13
B151: Keyboarding (Review) | C151: Keyboarding: Upper Row (Practice/Review) | D151: The learners will receive direct instruction and practice with the basic keyboarding techniques needed to type using the upper row keys. The learners will gain knowledge about proper finger placement and posture, and are provided a review of the home row keys in this engaging and interactive digital lesson. | E151: Instruction and Practice | F151: Independent | G151: 14
B152: Keyboarding (Review) | C152: Keyboarding: Lower Row (Practice/Review) | D152: This engaging and interactive digital lesson provides direct instruction and practice with the basic keyboarding techniques needed to type using the lower row keys. The learners will gain knowledge about proper finger placement and posture, and are provided a review of the home and upper row keys. | E152: Instruction and Practice | F152: Independent | G152: 13
B153: Keyboarding (Review) | C153: Keyboarding: Number Row (Practice/Review) | D153: In this engaging and interactive digital lesson, the learners receive direct instruction and practice with keyboarding techniques needed to type using the number row keys, proper finger placement and posture, and a review of the home, upper, and lower row keys. | E153: Instruction and Practice | F153: Independent | G153: 12
B154: Keyboarding (Review) | C154: Keyboarding: Shift Key (Practice/Review) | D154: The learners will receive direct instruction and practice in keyboarding using the Shift key to type capital letters and symbols. The learners will use proper posture and finger placement, identify touch keys and reach keys, and type basic punctuation in this engaging and interactive digital lesson. | E154: Instruction and Practice | F154: Independent | G154: 11
F155: Minutes in Unit | G155: =SUM(G150:G154) -> 63
B157: Tips & Suggestions - Having students repeat keyboarding lessons is a good way to reinforce accuracy before speed in typing. This is also the perfect time of the year to put together mini-projects that end in digital publications to add to student portfolios. Remember to print or save your students' work and include it in their student portfolios.
B159: Digital Literacy Concept | C159: Curriculum Title | D159: Description | E159: Learning Component | F159: Implementation Model | G159: Time (in minutes)
B160: Online Safety & Digital Citizenship | C160: Who Is In Your Online Community? | D160: How are we all part of an online community? We are all connected on the internet! By learning the Rings of Responsibility, students explore how the internet connects us to people in our community and throughout the world. Help your students think critically about the different ways they connect with others, both in person and online. Note: Complete lesson plan & resources available. | E160: Instruction | F160: Whole Group | G160: 30
B161: Online Safety & Digital Citizenship | C161: Summer Online Safety Poster | D161: Students will create an online safety presentation to remind students about how to stay safe online during the summer. | E161: Application | F161: Small Group | G161: 45
B162: Online Safety & Digital Citizenship | C162: Summer Online Safety Poster (Presentations) | D162: Students will create an online safety presentation to remind students about how to stay safe online during the summer. | E162: Application | F162: Whole Group | G162: 90
C163: Technology Showcase (Optional) | F163: Whole Group
F164: Minutes in Unit | G164: =SUM(G160:G163) -> 165
F166: Total Minutes | G166: =SUM(G164,G155,G145,G117,G106,G92,G79,G63,G45,G11, G26) -> 1650
B168: Tips & Suggestions - Online safety is important to revisit at the end of the year to remind students that they need to be smart when online - whether at home or at school. Provide parents with resources to help them keep their students safe online, like the 'Parent Online Safety Guide' linked below. Host an in-person or virtual technology showcase to share student work to wrap up the school year and provide students and parents with ideas for continuing to practice their digital literacy skills during the summer.
B169: =HYPERLINK("https://support.learning.com/parent-resources/online-safety-guide-for-parents-english/","Parent Online Safety Guide") -> Parent Online Safety Guide

Sheet Third
E1: Blended Learning Path
B3: EasyTech Curriculum Map - 3rd Grade
B4: 2022-2023
B6: This Curriculum Map provides a suggested order of assignments for utilizing the EasyTech curriculum in your classroom. For planning purposes, it is recommended that approximately 45 minutes of digital literacy curriculum is delivered each week through whole group, independent, or guided practice implementation models.
B8: Prior to beginning the school year, it is recommended that you create student technology portfolios (digital or print) to provide students with a way to share their learning. The portfolio may include EasyTech certificates, reports, and application exercise entries and work products. Pictures are a great way to show your students the learning process and can be used at the end of the year for a class slideshow or technology showcase.
B10: Remember to provide students with time each week to improve their keyboarding technique, accuracy, and speed through Adaptive Keyboarding after they have completed keyboarding lessons and guided practice exercises.
B12: Digital Literacy Concept | C12: Curriculum Title | D12: Description | E12: Learning Component | F12: Implementation Model | G12: Time (in minutes)
C13: * CIPA Required topic
B14: Online Safety & Digital Citizenship | C14: Online Safety & Digital Citizenship: Skills Check - Level 3 (Pre) | D14: Online Safety & Digital Citizenship Skills Check - Level 3 (Pre) evaluates 3rd grade concepts for safe, ethical online practices. It assesses the learner's knowledge and skills about proper online behavior, dealing with and preventing cyberbullying, and demonstrating strategies for safe and open communication. | E14: Assessment | F14: Independent | G14: 15
B15: Online Safety & Digital Citizenship | C15: 3-5 Online Safety & Digital Citizenship Introduction Video | D15: This engaging unit introduction video introduces students to what they will be learning about during the Online Safety and Digital Citizenship unit. | E15: Instruction | F15: Independent | G15: 3
B16: Online Safety & Digital Citizenship | C16: *Cyberbullying: Vocabulary Introduction - Level 3 | D16: This animated video introduces students to the vocabulary terms and definitions related to cyberbullying. | E16: Instruction | F16: Independent | G16: 2
B17: Online Safety & Digital Citizenship | C17: *Cyberbullying: Vocabulary Practice - Level 3 | D17: In this interactive learning experience, students improve their knowledge of cyberbullying vocabulary terms and definitions. | E17: Practice | F17: Independent | G17: 15
B18: Online Safety & Digital Citizenship | C18: * Cyberbullying: A Sticky Situation Part 1 - Level 3 | D18: In this engaging animated video, part 1 of a 2-part story, Sal shares a story about an experience he had while playing an online game and realizes he’s been bullied. | E18: Instruction | F18: Independent | G18: 5
B19: Online Safety & Digital Citizenship | C19: *Cyberbullying: Sort Out Your Feelings Practice - Level 3 | D19: In this interactive practice, students will identify the emotions associated with being cyberbullied and reflect on how they would feel as well. | E19: Practice | F19: Independent | G19: 5
B20: Online Safety & Digital Citizenship | C20: * Cyberbullying: A Sticky Situation Part 2 - Level 3 | D20: In this engaging animated video, part 2 of a 2-part story, Sal realizes that he has experienced cyberbullying. Through a conversation with friends, Sal and the audience learn how to identify, prevent, and address cyberbullying. | E20: Instruction | F20: Independent | G20: 5
B21: Online Safety & Digital Citizenship | C21: *Cyberbullying: Recipes for Dealing with Cyberbullying Practice - Level 3 | D21: In this interactive practice, students will identify how to create safe online profiles and what to do in the event of being cyberbullied. | E21: Practice | F21: Independent | G21: 5
B22: Online Safety & Digital Citizenship | C22: *Cyberbullying: Understanding and Dealing with Cyberbullying PSA - Level 3 | D22: In this two-part activity students will use what was learned in the 3rd Grade Cyberbullying module to show knowledge of what cyberbullying is and how to use the 3 Ss to prevent cyberbullying. Students will be able to select their final project to best represent their knowledge of cyberbullying. | E22: Application | F22: Guided | G22: 40
B23: Online Safety & Digital Citizenship | C23: *Digital Citizenship: Vocabulary Introduction - Level 3 | D23: This animated video introduces students to the vocabulary terms and definitions related to Digital Citizenship. | E23: Instruction | F23: Independent | G23: 2
B24: Online Safety & Digital Citizenship | C24: *Digital Citizenship: Vocabulary Practice - Level 3 | D24: In this interactive learning experience, students improve their knowledge of Digital Citizenship vocabulary terms and definitions. | E24: Practice | F24: Independent | G24: 5
B25: Online Safety & Digital Citizenship | C25: * Digital Citizenship: Quest for the Cookie - Level 3 | D25: In this engaging animated video, Murphy sends Sal on a scavenger hunt to a) reflect on what he’s learned about digital citizenship so far, and b) learn even more about how to be safe online. | E25: Instruction | F25: Independent | G25: 5
B26: Online Safety & Digital Citizenship | C26: * Digital Citizenship: Quest for the Cookie Scavenger Hunt - Level 3 | D26: In this interactive practice, students will go on a digital scavenger hunt to practice good digital citizenship habits. | E26: Practice | F26: Independent | G26: 5
B27: Online Safety & Digital Citizenship | C27: Online Safety: Acceptable Use Policies Discussion Reflection | D27: In this discussion, teachers use the discussion points to introduce students to EasyTech as well as usernames and passwords, online help, acceptable use policies, and intellectual property. | E27: Instruction | F27: Whole Group | G27: 30
B28: Online Safety & Digital Citizenship | C28: Information Literacy: Vocabulary Introduction - Level 3 | D28: This animated video introduces students to the vocabulary terms and definitions related to information literacy. | E28: Instruction | F28: Independent | G28: 2
B29: Online Safety & Digital Citizenship | C29: Information Literacy Vocabulary Practice - Level 3 | D29: In this interactive vocabulary practice, students match the information literacy vocabulary term with its definition. | E29: Practice | F29: Independent | G29: 10
B30: Online Safety & Digital Citizenship | C30: Information Literacy: Mia Seeks the Truth - Level 3 | D30: In this engaging animated video, Mia, a self-described ‘Truth Seeker’, introduces the learner to information literacy through an experience surrounding fact and opinion. | E30: Instruction | F30: Independent | G30: 5
B31: Online Safety & Digital Citizenship | C31: Information Literacy: Facts vs. Opinion Practice - Level 3 | D31: In this interactive practice, students will use a graphic organizer to sort sentences based on fact or opinion. | E31: Practice | F31: Independent | G31: 10
B32: Online Safety & Digital Citizenship | C32: Information Literacy: Identifying Facts and Opinions | D32: In this activity, students will apply their knowledge and skills related to information literacy by sorting fact and opinion statements and identifying sentences, as either fact or opinion, within articles. Finally students will be tasked with writing a 1-2 paragraph story that includes 2-3 facts and 2-3 opinions. | E32: Application | F32: Guided | G32: 90
B33: Online Safety & Digital Citizenship | C33: Online Safety and Digital Citizenship: Skills Check - Level 3 (Post) | D33: Online Safety & Digital Citizenship Skills Check - Level 3 (Post) evaluates 3rd grade concepts for safe, ethical online practices. It assesses the learner's knowledge and skills about proper online behavior, dealing with and preventing cyberbullying, and demonstrating strategies for safe and open communication. | E33: Assessment | F33: Independent | G33: 15
F34: Minutes in Unit | G34: =SUM(G14:G33) -> 274
B36: Tips & Suggestions - Begin the school year by walking students through how to create a digital portfolio. The lessons in this unit are spiraled from previous years to help set a firm foundation for safe, appropriate, responsible, and effective technology use throughout the year. Remind students that being a good digital citizen will have a positive impact on their school, personal, and social lives.
B38: Digital Literacy Concept | C38: Curriculum Title | D38: Description | E38: Learning Component | F38: Implementation Model | G38: Time (in minutes)
B39: Keyboarding | C39: Keyboarding: Home Row | D39: This engaging and interactive digital lesson provides direct instruction and practice in the area of basic keyboarding techniques needed to type using the home row keys. The learners will gain knowledge about proper finger placement and posture. | E39: Instruction and Practice | F39: Independent | G39: 13
B40: Keyboarding | C40: Home Row: Home Row F and J | D40: This guided practice item covers the home row skill area. It can be used to help students with accuracy and proper finger placement in a guided practice environment. | E40: Practice | F40: Independent | G40: 2
B41: Keyboarding | C41: Home Row: D, K and J, F | D41: This guided practice item covers the home row skill area. It can be used to help students with accuracy and proper finger placement in a guided practice environment. | E41: Practice | F41: Independent | G41: 2
B42: Keyboarding | C42: Home Row: S and L | D42: This guided practice item covers the home row skill area. It can be used to help students with accuracy and proper finger placement in a guided practice environment. | E42: Practice | F42: Independent | G42: 2
B43: Keyboarding | C43: Home Row: A and ; | D43: This guided practice item covers the home row skill area. It can be used to help students with accuracy and proper finger placement in a guided practice environment. | E43: Practice | F43: Independent | G43: 3
B44: Keyboarding | C44: Home Row: Add G, H | D44: This guided practice item covers the home row skill area. It can be used to help students with accuracy and proper finger placement in a guided practice environment. | E44: Practice | F44: Independent | G44: 5
B45: Keyboarding | C45: Keyboarding: Upper Row | D45: The learners will receive direct instruction and practice with the basic keyboarding techniques needed to type using the upper row keys. The learners will gain knowledge about proper finger placement and posture, and are provided a review of the home row keys in this engaging and interactive digital lesson. | E45: Instruction and Practice | F45: Independent | G45: 14
B46: Keyboarding | C46: Upper Row: Add E | D46: This guided practice item covers the Upper row skill area. It can be used to help students with accuracy and proper finger placement in a guided practice environment. | E46: Practice | F46: Independent | G46: 3
B47: Keyboarding | C47: Upper Row: Add O | D47: This guided practice item covers the Upper row skill area. It can be used to help students with accuracy and proper finger placement in a guided practice environment. | E47: Practice | F47: Independent | G47: 4
B48: Keyboarding | C48: Upper Row: Add R | D48: This guided practice item covers the Upper row skill area. It can be used to help students with accuracy and proper finger placement in a guided practice environment. | E48: Practice | F48: Independent | G48: 4
B49: Keyboarding | C49: Upper Row: Add T | D49: This guided practice item covers the Upper row skill area. It can be used to help students with accuracy and proper finger placement in a guided practice environment. | E49: Practice | F49: Independent | G49: 3
B50: Keyboarding | C50: Upper Row: Add I | D50: This guided practice item covers the Upper row skill area. It can be used to help students with accuracy and proper finger placement in a guided practice environment. | E50: Practice | F50: Independent | G50: 4
B51: Keyboarding | C51: Upper Row: Add U | D51: This guided practice item covers the Upper row skill area. It can be used to help students with accuracy and proper finger placement in a guided practice environment. | E51: Practice | F51: Independent | G51: 3
B52: Keyboarding | C52: Keyboarding: Lower Row | D52: This engaging and interactive digital lesson provides direct instruction and practice with the basic keyboarding techniques needed to type using the lower row keys. The learners will gain knowledge about proper finger placement and posture, and are provided a review of the home and upper row keys. | E52: Instruction and Practice | F52: Independent | G52: 13
B53: Keyboarding | C53: Keyboarding: Shift Key | D53: The learners will receive direct instruction and practice in keyboarding using the Shift key to type capital letters and symbols. The learners will use proper posture and finger placement, identify touch keys and reach keys, and type basic punctuation in this engaging and interactive digital lesson. | E53: Instruction and Practice | F53: Independent | G53: 11
B54: Keyboarding | C54: Lower Row: Add Left Shift and Colon | D54: This guided practice item covers the Lower row skill area. It can be used to help students with accuracy and proper finger placement in a guided practice environment. | E54: Practice | F54: Independent | G54: 3
B55: Keyboarding | C55: Lower Row: Add Right Shift and C | D55: This guided practice item covers the Lower row skill area. It can be used to help students with accuracy and proper finger placement in a guided practice environment. | E55: Practice | F55: Independent | G55: 3
B56: Keyboarding | C56: Lower Row: Add Period | D56: This guided practice item covers the Lower row skill area. It can be used to help students with accuracy and proper finger placement in a guided practice environment. | E56: Practice | F56: Independent | G56: 3
B57: Keyboarding | C57: Keyboarding: Number Row | D57: In this engaging and interactive digital lesson, the learners receive direct instruction and practice with keyboarding techniques needed to type using the number row keys, proper finger placement and posture, and a review of the home, upper, and lower row keys. | E57: Instruction and Practice | F57: Independent | G57: 12
B58: Keyboarding | C58: Adaptive Keyboarding: The Great Keyboarding Adventure | D58: This engaging and interactive app uses diagnostic exercises to provide learners with individualized touch-typing practice to address areas of weakness and help improve accuracy and speed at any skill level. Learners receive badges for specific achievements during their keyboarding adventure. | E58: Assessment and Practice | F58: Independent | G58: 45
F59: Minutes in Unit | G59: =SUM(G39:G58) -> 152
B61: Tips & Suggestions - Consider creating a group or class just for keyboarding. After students complete their daily classwork, have them practice keyboarding and provide opportunities to practice keyboarding skills for fun and meaningful tasks. Having students type spelling or vocabulary words allows them to apply their keyboarding skills in core subject areas.
B63: Digital Literacy Concept | C63: Curriculum Title | D63: Description | E63: Learning Component | F63: Implementation Model | G63: Time (in minutes)
B64: Online Safety & Digital Citizenship | C64: Password Power-Up | D64: How can a strong password help protect your privacy? Stronger, more secure online passwords are a good idea for everyone. But how can we help kids create better passwords and actually remember them? Use the tips in this lesson to help kids make passwords that are both secure and memorable. | E64: Instruction | F64: Whole Group | G64: 45
B65: IT Fundamentals | C65: Computer Fundamentals: Skills Check - Level 3 (Pre) | D65: The Computer Fundamentals Skills Check - Level 3 (Pre) evaluates 3rd grade concepts for Computer Fundamentals. It assesses the learner's knowledge and skills about symbols of technology, computer systems, network basics, and hardware and software - including the ethical use issues surrounding them. | E65: Assessment | F65: Independent | G65: 15
B66: IT Fundamentals | C66: Hardware Fundamentals: Printer | D66: The learners will receive direct instruction and practice using a printer, previewing and printing entire documents or selected pages, and troubleshooting common printer problems in this engaging and interactive digital lesson. | E66: Instruction and Practice | F66: Independent | G66: 9
B67: IT Fundamentals | C67: Hardware Fundamentals: Scanner | D67: During this engaging and interactive digital lesson, the learners will receive direct instruction and practice using a scanner for images or objects, saving a scanned image as a file, identifying components such as the scanning surface and scanning beam, and understanding how a scanner works. | E67: Instruction and Practice | F67: Independent | G67: 6
B68: IT Fundamentals | C68: Hardware Fundamentals: Network Basics | D68: The learners will receive direct instruction and practice with networking concepts, such as LANs, WANs, and file format compatibility. They will gain knowledge about how to use remote equipment and review intellectual property in this engaging and interactive digital lesson. | E68: Instruction and Practice | F68: Independent | G68: 12
B69: IT Fundamentals | C69: Software Fundamentals: Desktop | D69: In this engaging and interactive digital lesson, the learners will receive direct instruction and practice using the desktop, working with files and folders, navigating file structures, moving and opening files and folders, and deleting files. | E69: Instruction and Practice | F69: Independent | G69: 12
B70: IT Fundamentals | C70: Software Fundamentals: Windows and Controls | D70: In this engaging and interactive digital lesson, the learners will receive direct instruction and practice with dialog boxes and options windows, making selections using check boxes, radio buttons, scroll bars, and dropdown menus, and controls to close, maximize, minimize, restore, and resize windows. | E70: Instruction and Practice | F70: Independent | G70: 12
B71: IT Fundamentals | C71: Software Fundamentals: Toolbars and Menus | D71: In this engaging and interactive digital lesson, the learners will receive direct instruction and practice navigating program menus and using toolbars, recognizing and using symbols, properties, and online help, and understanding the connection between program menu icons and toolbar buttons. | E71: Instruction and Practice | F71: Independent | G71: 12
B72: IT Fundamentals | C72: Software Fundamentals: Software and File Formats | D72: The learners will receive direct instruction and practice with software programs and file formats as they identify software groups, select task-appropriate software, start and exit software programs, and create, name, save, print, and close files in this engaging and interactive digital lesson. | E72: Instruction and Practice | F72: Independent | G72: 12
B73: IT Fundamentals | C73: IT Fundamentals: Devices and Compatibility Discussion Reflection | D73: In this lesson, teachers use the discussion points to help students understand basic computer concepts such as input and output devices, networks, and compatibility. | E73: Discussion | F73: Whole Group | G73: 30
B74: IT Fundamentals | C74: Hardware Fundamentals: Mobile Devices | D74: In this engaging and interactive digital lesson, the learners receive direct instruction and practice with smartphones, tablets, phablets (larger phones), and applications, and understand how mobile devices connect to a wireless network, store information using cloud computing, and use GPS for tracking. | E74: Instruction and Practice | F74: Independent | G74: 15
B75: IT Fundamentals | C75: Identifying Computer Devices | D75: Students identify digital input, output, and processing devices by matching terms, functions, and definitions, and describe how components are used. | E75: Application | F75: Small Group | G75: 45
B76: IT Fundamentals | C76: Computer Fundamentals: Skills Check - Level 3 (Post) | D76: Computational Thinking - Level 3 (Post) evaluates 3rd grade concepts for Computational Thinking. It assesses the learner's understanding and ability to use digital tools in the problem solving process. | E76: Assessment | F76: Independent | G76: 15
B77: Keyboarding | C77: Adaptive Keyboarding: The Great Keyboarding Adventure | D77: This engaging and interactive app uses diagnostic exercises to provide learners with individualized touch-typing practice to address areas of weakness and help improve accuracy and speed at any skill level. Learners receive badges for specific achievements during their keyboarding adventure. | E77: Assessment and Practice | F77: Independent | G77: 45
F78: Minutes in Unit | G78: =SUM(G64:G77) -> 285
B80: Tips & Suggestions - This is a good time to implement ‘tech buddies’ in your classroom to help struggling students when lessons are not mastered. Try to use the ‘talk, not touch’ or ‘point, not press’ approaches with your buddies so the learner retains control of his/her equipment.
B82: Digital Literacy Concept | C82: Curriculum Title | D82: Description | E82: Learning Component | F82: Implementation Model | G82: Time (in minutes)
B83: Online Safety & Digital Citizenship | C83: * Your Rings of Responsibility | D83: How do digital citizens take responsibility for themselves, their communities, and their world? Teaching digital citizenship is all about helping kids think beyond themselves and recognize the ripple effects of their actions. Personal responsibility is important, but understanding their responsibilities to others can help kids unlock new ways to learn and connect with their communities -- and even change those communities for the better. | E83: Instruction | F83: Whole Group | G83: 45
B84: Online Safety & Digital Citizenship | C84: Internet Usage and Online Communication: Skills Check - Level 3 (Pre) | D84: Internet Usage & Online Communication Skills Check - Level 3 (Pre) evaluates 3rd grade concepts for safe use of online communication tools and successful navigation and searching of the World Wide Web. It assesses the learner's knowledge and skills about performing safe and effective online searches, using digital collaboration tools, reading and writing blogs, and practicing online ethics. | E84: Assessment | F84: Independent | G84: 15
B85: Online Safety & Digital Citizenship | C85: Internet Usage: Online Information Basics | D85: In this engaging and interactive digital lesson, the learners will receive direct instruction and practice browsing the Internet as they examine the difference between a web page and website, browse by following a series of hyperlinks, and learn to differentiate the Internet from the World Wide Web. | E85: Instruction and Practice | F85: Independent | G85: 15
B86: Online Safety & Digital Citizenship | C86: Internet Usage: Browsing and URLs | D86: During this engaging and interactive digital lesson, the learners will receive direct instruction and practice with Uniform Resource Locators (URLs) as they identify URL components, use URLs to navigate to a web page, and use a browser to find and view information online. | E86: Instruction and Practice | F86: Independent | G86: 15
B87: Online Safety & Digital Citizenship | C87: Internet Usage: Safe and Effective Online Searches | D87: The learners will receive direct instruction and practice using effective keywords and categories in search engines as they identify successful online searches, and consider their privacy and safety when providing personal information on the Internet in this engaging and interactive digital lesson. | E87: Instruction and Practice | F87: Independent | G87: 15
B88: Online Safety & Digital Citizenship | C88: Internet Usage: Research, Resources, and Ethics | D88: In this engaging and interactive digital lesson, the learners will receive direct instruction and practice using web sites for research as they validate online information and author credibility, and respect intellectual property by properly citing online resources. | E88: Instruction and Practice | F88: Independent | G88: 15
B89: Online Safety & Digital Citizenship | C89: Cut it Out! Save the Environment | D89: Students research, describe, and present ways to reduce the use of paper. They explain why saving paper is important in their everyday lives and for saving the environment. | E89: Application | F89: Guided | G89: 35
B90: Online Safety & Digital Citizenship | C90: Web Page Design | D90: Students choose a topic and find five examples of good and bad website designs about that topic, and improve upon one of the poor examples by redesigning it. | E90: Application | F90: Guided | G90: 60
B91: Online Safety & Digital Citizenship | C91: Internet Usage and Online Communication: Skills Check - Level 3 (Post) | D91: Internet Usage & Online Communication Skills Check - Level 3 (Post) evaluates 3rd grade concepts for safe use of online communication tools and successful navigation and searching of the World Wide Web. It assesses the learner's knowledge and skills about performing safe and effective online searches, using digital collaboration tools, reading and writing blogs, and practicing online ethics. | E91: Assessment | F91: Independent | G91: 15
B92: Keyboarding | C92: Adaptive Keyboarding: The Great Keyboarding Adventure | D92: This engaging and interactive app uses diagnostic exercises to provide learners with individualized touch-typing practice to address areas of weakness and help improve accuracy and speed at any skill level. Learners receive badges for specific achievements during their keyboarding adventure. | E92: Assessment and Practice | F92: Independent | G92: 45
F93: Minutes in Unit | G93: =SUM(G83:G92) -> 275
B95: Tips & Suggestions - Remind students that being a good digital citizen will have a positive impact on their school, personal, and social lives and that being on the Internet creates a footprint that follows you and can impact others.
B97: Digital Literacy Concept | C97: Curriculum Title | D97: Description | E97: Learning Component | F97: Implementation Model | G97: Time (in minutes)
B98: Online Safety & Digital Citizenship | C98: This Is Me | D98: How does what I post online affect my identity? From selfies to social media, many of us create unique online identities for ourselves, and our students are no different. But do kids always understand how others might perceive what they post? Help your students think critically about the online identities they are creating. | E98: Instruction | F98: Whole Group | G98: 45
B99: Business Applications | C99: Word Processing: Skills Check - Level 3 (Pre) | D99: Word Processing Skills Check - Level 3 (Pre) evaluates 3rd grade concepts for Word Processing. It assesses the learner's knowledge and skills about appropriate use of word processing applications when creating and communicating ideas, including basic document creation, editing, proofreading and correcting, formatting reports, and creating original works. | E99: Assessment | F99: Independent | G99: 15
B100: Business Applications | C100: Business Applications: Audience and Media Discussion Reflection | D100: In this lesson, teachers use the discussion points to help students understand the concept of audience and how to use font, color, white space, and graphics to design documents for print- and screen-viewing. | E100: Discussion | F100: Whole Group | G100: 30
B101: Business Applications | C101: Word Processing: Creating and Organizing Content | D101: This engaging and interactive digital lesson provides direct instruction and practice with using a word processing program to help with the writing process. The learners will gain knowledge about how to organize information, create lists, and insert pictures to better engage their audience. | E101: Instruction and Practice | F101: Independent | G101: 11
B102: Business Applications | C102: Word Processing: Revising and Formatting | D102: In this engaging and interactive digital lesson, the learners receive direct instruction and practice revising and formatting, as part of the writing process, while they use font style, color and size, paragraph alignment, spacing, page break, symbols, and moving text and images to enhance their document. | E102: Instruction and Practice | F102: Independent | G102: 10
B103: Business Applications | C103: Formatting a Poem | D103: Students will use a word processing program to format a poem. | E103: Application | F103: Guided | G103: 20
B104: Business Applications | C104: Word Processing: Editing and Proofreading Your Work | D104: This engaging and interactive digital lesson provides direct instruction and practice using a word processing program as part of the writing process. Learners will edit and proofread text, check for spelling and grammar mistakes, and improve writing by using the thesaurus and word count tools. | E104: Instruction and Practice | F104: Independent | G104: 15
B105: Business Applications | C105: Formatting Biographies | D105: Students retype and format a biography of Martin Luther King, Jr. | E105: Application | F105: Guided | G105: 45
B106: Business Applications | C106: Word Processing: Skills Check - Level 3 (Post) | D106: Word Processing Skills Check - Level 3 (Post) evaluates 3rd grade concepts for Word Processing. It assesses the learner's knowledge and skills about appropriate use of word processing applications when creating and communicating ideas, including basic document creation, editing, proofreading and correcting, formatting reports, and creating original works. | E106: Assessment | F106: Independent | G106: 15
B107: Keyboarding | C107: Adaptive Keyboarding: The Great Keyboarding Adventure | D107: This engaging and interactive lesson uses diagnostic exercises to provide learners with individualized touch-typing practice to address areas of weakness and help improve accuracy and speed at any skill level. Learners receive badges for specific achievements during their keyboarding adventure. | E107: Assessment and Practice | F107: Independent | G107: 45
F108: Minutes in Unit | G108: =SUM(G98:G107) -> 251
B110: Tips & Suggestions - Provide your students with opportunities to publish their classroom writing in word processing documents and place copies in their technology portfolios. Encourage students to illustrate their writing with digital or hand drawn art. Help students to understand that being aware of their audience goes beyond projects to their every day communications.
B112: Digital Literacy Concept | C112: Curriculum Title | D112: Description | E112: Learning Component | F112: Implementation Model | G112: Time (in minutes)
B113: Business Applications | C113: Presentations: Skills Check - Level 3 (Pre) | D113: Presentations Skills Check - Level 3 (Pre) evaluates 3rd grade concepts for Presentations. It assesses the learner's knowledge of basic presentation skills using slideshow applications. | E113: Assessment | F113: Independent | G113: 15
B114: Business Applications | C114: Presentations: Audience and Organization | D114: In this engaging and interactive digital lesson, learners will receive direct instruction and practice organizing and developing a slide show using presentation software. They learn how to consider the audience and the purpose of the slide show to tell stories, present information, and share ideas. | E114: Instruction and Practice | F114: Independent | G114: 12
B115: Business Applications | C115: Presentations: Composing Slides | D115: During this engaging and interactive digital lesson, the learners will receive direct instruction and practice composing slides using presentation software as they consider and use design elements, layouts, backgrounds, text, images, and white space to create and modify engaging slide shows. | E115: Instruction and Practice | F115: Independent | G115: 10
B116: Business Applications | C116: Presentations: Enhancing Slides | D116: The learners receive direct instruction and practice enhancing presentation slides to communicate their voice to an audience. They learn to choose and use effective color palettes, apply color and formatting to text, draw and customize objects, and add animation and sound in this engaging and interactive digital lesson. | E116: Instruction and Practice | F116: Independent | G116: 8
B117: Business Applications | C117: Presentations: Evaluating and Presenting | D117: The learners will receive direct instruction and practice with enhancing and editing a slideshow before presenting to an audience. They will edit and organize slides, use tools to add consistent and appropriate transitions, and evaluate their work before presenting in this engaging and interactive digital lesson. | E117: Instruction and Practice | F117: Independent | G117: 9
B118: Business Applications | C118: Habitat Presentation | D118: Students create a presentation that describes the habitat of a specific organism. | E118: Application | F118: Guided | G118: 60
B119: Business Applications | C119: Presentations: Skills Check - Level 3 (Post) | D119: Presentations Skills Check - Level 3 (Post) evaluates 3rd grade concepts for Presentations. It assesses the learner's knowledge of basic presentation skills using slideshow applications. | E119: Assessment | F119: Independent | G119: 15
B120: Keyboarding | C120: Adaptive Keyboarding: The Great Keyboarding Adventure | D120: This engaging and interactive app uses diagnostic exercises to provide learners with individualized touch-typing practice to address areas of weakness and help improve accuracy and speed at any skill level. Learners receive badges for specific achievements during their keyboarding adventure. | E120: Assessment and Practice | F120: Independent | G120: 15
F122: Minutes in Unit | G122: =SUM(G113:G120) -> 144
B124: Digital Literacy Concept | C124: Curriculum Title | D124: Description | E124: Learning Component | F124: Implementation Model | G124: Time (in minutes)
B125: Online Safety & Digital Citizenship | C125: Is Seeing Believing? | D125: Why do people alter digital photos and videos? The web is full of photos, and even videos, that are digitally altered. And it's often hard to tell the difference between what's real and what's fake. Help your students ask critical questions about why someone might alter a photo or video in the first place. | E125: Instruction | F125: Whole Group | G125: 45
B126: Multimedia | C126: Visual Mapping: Skills Check - Level 3 (Pre) | D126: Visual Mapping Skills Check - Level 3 (Pre) evaluates 3rd grade concepts for Visual Mapping. It assesses the learner's knowledge and skills of how to use visual mapping applications to evaluate and organize information and represent ideas visually. | E126: Assessment | F126: Independent | G126: 15
B127: Multimedia | C127: Visual Mapping: Idea Webs | D127: The learners will create, replace, resize, erase, move, and link objects and text using a variety of tools within visual mapping software as they receive direct instruction and practice during this engaging and interactive digital lesson. | E127: Instruction and Practice | F127: Independent | G127: 12
B128: Multimedia | C128: Visual Mapping: Formats and Outlines | D128: Through direct instruction and practice in this engaging and interactive digital lesson, the learners will use visual mapping software to create outlines and diagrams using the create and write tools, and add text to organize and enhance their pre-write documents. | E128: Instruction and Practice | F128: Independent | G128: 12
B129: Multimedia | C129: Water Cycle | D129: Students observe and answer questions about water and then use visual mapping software to create a diagram illustrating the water cycle. | E129: Application | F129: Guided | G129: 30
B130: Multimedia | C130: Visual Mapping: Skills Check - Level 3 (Post) | D130: Visual Mapping Skills Check - Level 3 (Post) evaluates 3rd grade concepts for Visual Mapping. It assesses the learner's knowledge and skills of how to use visual mapping applications to evaluate and organize information and represent ideas visually. | E130: Assessment | F130: Independent | G130: 15
B131: Keyboarding | C131: Adaptive Keyboarding: The Great Keyboarding Adventure | D131: This engaging and interactive app uses diagnostic exercises to provide learners with individualized touch-typing practice to address areas of weakness and help improve accuracy and speed at any skill level. Learners receive badges for specific achievements during their keyboarding adventure. | E131: Assessment and Practice | F131: Independent | G131: 45
F132: Minutes in Unit | G132: =SUM(G125:G131) -> 174
B134: Tips & Suggestions - Provide time for students to use their new visual mapping skills in core subject areas. This is the perfect time of the year to put together mini projects which end in digital publication to highlight students' entire year of learning.
B136: Digital Literacy Concept | C136: Curriculum Title | D136: Description | E136: Learning Component | F136: Implementation Model | G136: Time (in minutes)
B137: Online Safety & Digital Citizenship | C137: * The Power Of Words | D137: What should you do when someone uses mean or hurtful language on the internet? As kids grow, they'll naturally start to communicate more online. But some of what they see could make them feel hurt, sad, angry, or even fearful. Help your students build empathy for others and learn strategies to use when confronted with cyberbullying. | E137: Instruction | F137: Whole Group | G137: 45
B138: Business Applications | C138: Spreadsheets and Databases: Skills Check - Level 3 (Pre) | D138: Spreadsheets & Databases - Level 3 (Pre) evaluates 3rd grade concepts for Spreadsheets and Databases. It assesses the learner's understanding of knowledge and appropriate use of spreadsheet applications to arrange, evaluate, store, and share data and understanding of database applications to search different types of information. | E138: Assessment | F138: Independent | G138: 15
B139: Business Applications | C139: Spreadsheets: Parts | D139: During this engaging and interactive digital lesson, the learners will receive direct instruction and practice with spreadsheets. Learners will gain experience with worksheets, cells, rows, columns, cell addresses, labels, navigating tables, and entering data. | E139: Instruction and Practice | F139: Independent | G139: 9
B140: Business Applications | C140: Spreadsheets: Navigating Cells, Rows, and Columns | D140: Through direct instruction and practice in this engaging and interactive digital lesson, the learners will organize information in a spreadsheet by navigating cells, rows, and columns, editing or deleting data, adding titles, and including labels in a table. | E140: Instruction and Practice | F140: Independent | G140: 10
B141: Business Applications | C141: Spreadsheets: Cell Formatting | D141: The learners will receive direct instruction and practice formatting cells in a spreadsheet by merging and grouping cells, applying number formats, aligning cell data, adding borders and color to cells, and indenting data in this engaging and interactive digital lesson. | E141: Instruction and Practice | F141: Independent | G141: 12
B142: Business Applications | C142: Student Information Spreadsheet | D142: Students use a spreadsheet to perform interviews and display the collected data. | E142: Application | F142: Guided | G142: 60
B143: Business Applications | C143: Spreadsheets: Columns and Rows | D143: This engaging and interactive digital lesson provides direct instruction and practice as the learners insert and resize rows and columns, enter data into a spreadsheet, use alphabetical and numerical sort functions, use the summation function, and alphabetically organize information in a table. | E143: Instruction and Practice | F143: Independent | G143: 10
B144: Business Applications | C144: Spreadsheets: Pie Charts | D144: The learners will receive direct instruction and practice with pie charts in a spreadsheet program. They will use data found in a spreadsheet to create and label pie charts, then practice reading and interpreting data found in a pie chart during this engaging and interactive digital lesson. | E144: Instruction and Practice | F144: Independent | G144: 10
B145: Business Applications | C145: Coin Toss Probability | D145: Students flip coins and use a spreadsheet to record how many times they land heads or tails. | E145: Application | F145: Guided | G145: 20
B146: Business Applications | C146: Spreadsheets: Bar Charts | D146: This engaging and interactive digital lesson provides direct instruction and practice as the learners work with bar charts in a spreadsheet program. They will use data found in a spreadsheet to create and label bar charts, then practice reading and interpreting data found in a bar chart. | E146: Instruction and Practice | F146: Independent | G146: 11
B147: Business Applications | C147: Measuring Matter | D147: Students observe and take measurements of different types of matter, create spreadsheets and a graph and then interpret their results. | E147: Application | F147: Guided | G147: 90
B148: Business Applications | C148: Databases: Using Databases to Store and Organize Data | D148: In this engaging and interactive digital lesson, the learners will receive direct instruction and practice with the parts of a database including fields, records, tables, datasheets, and forms. They will also learn how to find, group, and compare data. | E148: Instruction and Practice | F148: Independent | G148: 9
B149: Business Applications | C149: Databases: Tables, Records, and Fields Journal | D149: Using a database program, students design a classroom database of the people, places, landmarks, and natural resources in their communities. | E149: Application | F149: Small Group | G149: 60
B150: Business Applications | C150: Databases: Performing Searches and Filtering Data | D150: The learners will receive direct instruction and practice searching online databases with keywords as they perform a category search, apply a simple filter, and explore how database searches can help solve information needs in this engaging and interactive digital lesson. | E150: Instruction and Practice | F150: Independent | G150: 11
B151: Business Applications | C151: Databases: Search and Filter Journal | D151: Students use an Internet search engine to research three bodies of water, choosing among rivers, lakes, seas, and oceans. They then create Activity Cards using the information they find and play a "filtering" game with the cards to exemplify how a database filters information. | E151: Application | F151: Guided | G151: 60
B152: Business Applications | C152: Databases: Sort and Filter | D152: During this engaging and interactive digital lesson, the learners will receive direct instruction and practice organizing data and finding information in a database as they sort data in both ascending and descending orders, and sort filtered data. | E152: Instruction and Practice | F152: Independent | G152: 9
B153: Business Applications | C153: Databases: Sort and Filter Journal | D153: Using a database program, students enter information about their favorite book(s) into a classroom database and then sort and filter the data to find specific information. | E153: Application | F153: Guided | G153: 60
B154: Business Applications | C154: Spreadsheets and Databases: Skills Check - Level 3 (Post) | D154: Spreadsheets & Databases - Level 3 (Post) evaluates 3rd grade concepts for Spreadsheets and Databases. It assesses the learner's understanding of knowledge and appropriate use of spreadsheet applications to arrange, evaluate, store, and share data and understanding of database applications to search different types of information. | E154: Assessment | F154: Independent | G154: 15
B155: Keyboarding | C155: Adaptive Keyboarding: The Great Keyboarding Adventure | D155: This engaging and interactive app uses diagnostic exercises to provide learners with individualized touch-typing practice to address areas of weakness and help improve accuracy and speed at any skill level. Learners receive badges for specific achievements during their keyboarding adventure. | E155: Assessment and Practice | F155: Independent | G155: 45
F156: Minutes in Unit | G156: =SUM(G137:G155) -> 561
B158: Tips & Suggestions - Have students practice entering data to create spreadsheets based on content being studied in core curriculum, physical education, or other classes to show how data is represented. Students could also use spreadsheets to build charts and produce graphs based on a variety of topics.
B160: Digital Literacy Concept | C160: Curriculum Title | D160: Description | E160: Learning Component | F160: Implementation Model | G160: Time (in minutes)
C161: * CIPA Required topic
B162: Online Safety & Digital Citizenship | C162: * Password Power-Up | D162: How can a strong password help protect your privacy? Stronger, more secure online passwords are a good idea for everyone. But how can we help kids create better passwords and actually remember them? Use the tips in this lesson to help kids make passwords that are both secure and memorable. | E162: Instruction | F162: Whole Group | G162: 45
B163: Computer Science | C163: Computational Thinking: Skills Check - Level 3 (Pre) | D163: Computational Thinking - Level 3 (Pre) evaluates 3rd grade concepts for Computational Thinking. It assesses the learner's understanding and ability to use digital tools in the problem solving process. | E163: Assessment | F163: Independent | G163: 15
B164: Computer Science | C164: Computational Thinking: Algorithms | D164: As part of computational thinking, the learners receive direct instruction and practice using algorithms to solve a problem, make a decision, or accomplish a task. They will analyze a situation, create an algorithm to solve the problem, test for reliability and accuracy, and understand that computers use algorithms, called programs, to complete tasks or help solve problems. | E164: Instruction and Practice | F164: Independent | G164: 15
B165: Computer Science | C165: Mystery Animals | D165: Understanding and creating algorithms are fundamental skills of computational thinking. In this application exercise, students develop a written algorithm to guide a partner in drawing a mystery animal. | E165: Application | F165: Guided | G165: 90
B166: Computer Science | C166: Mystery Animals (Presentations)
B167: Computer Science | C167: Computational Thinking: Skills Check - Level 3 (Post) | D167: Computational Thinking - Level 3 (Post) evaluates 3rd grade concepts for Computational Thinking. It assesses the learner's understanding and ability to use digital tools in the problem solving process. | E167: Assessment | F167: Independent | G167: 15
B168: Keyboarding | C168: Adaptive Keyboarding: The Great Keyboarding Adventure | D168: This engaging and interactive app uses diagnostic exercises to provide learners with individualized touch-typing practice to address areas of weakness and help improve accuracy and speed at any skill level. Learners receive badges for specific achievements during their keyboarding adventure. | E168: Assessment and Practice | F168: Independent | G168: 45
F169: Minutes in Unit | G169: =SUM(G162:G168) -> 225
B171: Tips & Suggestions - If your students are new to computational thinking, you can review the 'Patterns and Directions' curriculum which can be found in the EasyTech 'Computer Science' unit. Remember to have students place copies of their work in the digital portfolios they're creating; these are a great way for students to share the digital products they've been creating all year.
B173: Digital Literacy Concept | C173: Curriculum Title | D173: Description | E173: Learning Component | F173: Implementation Model | G173: Time (in minutes)
C174: * CIPA Required topic
B175: Online Safety & Digital Citizenship | C175: *Online Safety: Texting Safety Discussion Reflection | D175: Texting Safety: Teachers use the discussion points to help students understand the concept of texting, emphasizing cell phone safety, netiquette, and cyber bullying. | E175: Instruction | F175: Whole Group | G175: 30
B176: Online Safety & Digital Citizenship | C176: * Digital Citizenship: Being a Good Digital Citizen from A to Z - Level 3 | D176: In this activity students will use what was learned in the Level 3 Digital Citizenship module to show knowledge of what digital citizenship is and how to be a good digital citizen. Students will be able to select their final project to best represent their knowledge of digital citizenship. Student work may include open-ended questions, correct/incorrect responses, a final product and/or self-assessment. An optional rubric is provided to assist in grading student products. | E176: Application | F176: Guided | G176: 90
C177: Update Student Portfolios
B178: Keyboarding | C178: Adaptive Keyboarding: The Great Keyboarding Adventure | D178: This engaging and interactive app uses diagnostic exercises to provide learners with individualized touch-typing practice to address areas of weakness and help improve accuracy and speed at any skill level. Learners receive badges for specific achievements during their keyboarding adventure. | E178: Assessment and Practice | F178: Independent | G178: 45
F179: Minutes in Unit | G179: =SUM(G175:G178) -> 165
F181: Total minutes | G181: =SUM(G179,G169,G156,G132,G108,G93,G59,G77,G34) -> 2122
B183: Tips & Suggestions - Online safety is important to revisit at the end of the year to remind students that they need to be smart when online - whether at home or at school. Provide parents with resources to help them keep their students safe online, like the 'Parent Online Safety Guide' linked below. Host an in-person or virtual technology showcase to share student work to wrap up the school year and provide students and parents with ideas for continuing to practice their digital literacy skills during the summer.
B184: =HYPERLINK("https://support.learning.com/parent-resources/online-safety-guide-for-parents-english/","Parent Online Safety Guide") -> Parent Online Safety Guide

Sheet Fourth
E1: Blended Learning Path
B3: EasyTech Curriculum Map - 4th Grade
B4: 2022-2023
B6: This Curriculum Map provides a suggested order of assignments for utilizing the EasyTech curriculum in your classroom. For planning purposes, it is recommended that approximately 45 minutes of digital literacy curriculum is delivered each week through whole group, independent, or guided practice implementation models.
B8: Prior to beginning the school year, it is recommended that you create student technology portfolios (digital or print) to provide students with a way to share their learning. The portfolio may include EasyTech certificates, reports, and application exercise entries and work products. Pictures are a great way to show your students the learning process and can be used at the end of the year for a class slideshow or technology showcase. Insert Note about Creating a Portfolio curriculum item here.
B10: Remember to provide students with time each week to improve their keyboarding technique, accuracy, and speed through Adaptive Keyboarding after they have completed keyboarding lessons and guided practice exercises.
B12: Digital Literacy Concept | C12: Curriculum Title | D12: Description | E12: Learning Component | F12: Implementation Model | G12: Time (in minutes)
C13: * CIPA Required topic
B14: Online Safety & Digital Citizenship | C14: Online Safety and Digital Citizenship: Skills Check - Level 4 (Pre) | D14: Online Safety & Digital Citizenship Skills Check - Level 4 (Pre) evaluates 4th grade concepts for safe, ethical online practices. It assesses the learner's knowledge and skills about proper online behavior, dealing with and preventing cyberbullying, and demonstrating strategies for safe and open communication. | E14: Assessment | F14: Independent | G14: 15
B15: Online Safety & Digital Citizenship | C15: *3-5 Online Safety & Digital Citizenship Introduction Video | D15: This engaging unit introduction video introduces students to what they will be learning about during the Online Safety and Digital Citizenship unit. | E15: Instruction | F15: Independent | G15: 3
B16: Online Safety & Digital Citizenship | C16: *Cyberbullying: Vocabulary Introduction - Level 4 | D16: This animated video introduces students to the vocabulary terms and definitions related to cyberbullying | E16: Instruction | F16: Independent | G16: 2
B17: Online Safety & Digital Citizenship | C17: *Cyberbullying Vocabulary Interactive Practice - Level 4 | D17: In this interactive learning experience, students improve their knowledge of cyberbullying vocabulary terms and definitions. | E17: Practice | F17: Independent | G17: 5
B18: Online Safety & Digital Citizenship | C18: * Cyberbullying: The Impostor - Level 4 | D18: In this engaging animated video, Mia and Sal discover a fake profile of their friend Opal. The pair team up to do the right thing, unaware that influencer Opal has already set a perfect example! | E18: Instruction | F18: Independent | G18: 5
B19: Online Safety & Digital Citizenship | C19: * Cyberbullying: What To Do If An Impostor Chooses You - Level 4 | D19: In this activity, students will put the 3S's (Smart, Safe, Supported), into action as they set out to make a plan to deal with an impostor. Students will also reinforce their understanding of words associated with cyberbullying while working through example scenarios. | E19: Practice | F19: Independent | G19: 5
B20: Online Safety & Digital Citizenship | C20: * Cyberbullying: Sharing the Dangers of Cyberbullying - Level 4 | D20: In this two-part activity, students will demonstrate their understanding of the different ways cyberbullying can look and how it can impact others. Using a final project of their choosing, students will reflect the different ways that cyberbullying can present itself and how to protect themselves and others from its potential harm. | E20: Application | F20: Guided | G20: 45
B21: Online Safety & Digital Citizenship | C21: Online Safety: Acceptable Use Policies Discussion Reflection | D21: The learner will utilize this reflection to evaluate their participation in the corresponding discussion and reflect on their level of learning. | E21: Discussion | F21: Whole Group | G21: 30
B22: Online Safety & Digital Citizenship | C22: *Digital Citizenship: Vocabulary Introduction - Level 4 | D22: This animated video introduces students to the vocabulary terms and definitions related to digital citizenship. | E22: Instruction | F22: Independent | G22: 2
B23: Online Safety & Digital Citizenship | C23: *Digital Citizenship: Vocabulary Practice - Level 4 | D23: In this interactive learning experience, students improve their knowledge of digital citizenship vocabulary terms and definitions. | E23: Practice | F23: Independent | G23: 10
B24: Online Safety & Digital Citizenship | C24: * Digital Citizenship: A Slippery Footprint - Level 4 | D24: In this engaging animated video, Opal accidentally posts an embarrassing video of Mia, leading the two to discover the permanence of online activity and how to build a positive persona in cyberspace. | E24: Instruction | F24: Independent | G24: 5
B25: Online Safety & Digital Citizenship | C25: * Digital Citizenship: Following the Right Footprints - Level 4 | D25: In this interactive practice, students will be presented with tricky situations regarding digital citizenship. They will then be asked to choose the action that makes them the best digital citizen. | E25: Practice | F25: Independent | G25: 5
B26: Online Safety & Digital Citizenship | C26: * Digital Citizenship: Make It A Game - Level 4 | D26: In this activity students will use what was learned in the Level 4 Digital Citizenship module to show knowledge of the importance of being a good digital citizen and keeping a good digital footprint. Students will be able to create a game to best represent their knowledge of digital citizenship. Student work may include open-ended questions, correct/incorrect responses, a final product and/or self-assessment. An optional rubric is provided to assist in grading student products. | E26: Application | F26: Guided | G26: 45
B27: Online Safety & Digital Citizenship | C27: *Online Safety: Texting Safety Discussion Reflection | D27: Texting Safety: Teachers use the discussion points to help students understand the concept of texting, emphasizing cell phone safety, netiquette, and cyber bullying. | E27: Instruction | F27: Whole Group | G27: 30
B28: Online Safety & Digital Citizenship | C28: Information Literacy: Vocabulary Introduction - Level 4 | D28: This animated video introduces students to the vocabulary terms and definitions related to information literacy. | E28: Instruction | F28: Independent | G28: 2
B29: Online Safety & Digital Citizenship | C29: Information Literacy: Vocabulary Practice - Level 4 | D29: In this interactive vocabulary practice, students match the information literacy vocabulary term with its definition. | E29: Practice | F29: Independent | G29: 10
B30: Online Safety & Digital Citizenship | C30: Information Literacy: Murphy's Bakery Blues - Level 4 | D30: In this engaging animated video, Murphy, the Hometown Café owner, introduces the learner to information literacy through an experience about how to use CARP for evaluating the source of information. | E30: Instruction | F30: Independent | G30: 5
B31: Online Safety & Digital Citizenship | C31: Information Literacy: C.A.R.P. Practice - Level 4 | D31: In this interactive practice, students will match evaluation questions with the correct step in the process of evaluating sources using CARP. | E31: Practice | F31: Independent | G31: 10
B32: Online Safety & Digital Citizenship | C32: Information Literacy: Evaluating Your Sources Part 1 - Level 4 | D32: In this two-part activity, students will apply their knowledge and skills related to information literacy by using the C.A.R.P. method to evaluate the source of a fake online post. Students will identify the fake sections and explain why they think it is fake. Finally, students complete an exit ticket activity to share what they think is the biggest danger in not evaluating online posts. | E32: Application | F32: Guided | G32: 45
B33: Online Safety & Digital Citizenship | C33: Information Literacy: Evaluating Your Sources Part 2 - Level 4 | D33: In this two-part activity, students will apply their knowledge and skills related to information literacy by using the C.A.R.P. method to evaluate the source of a fake online post. Students will identify the fake sections and explain why they think it is fake. Finally, students complete an exit ticket activity to share what they think is the biggest danger in not evaluating online posts. | E33: Application | F33: Guided | G33: 45
B34: Online Safety & Digital Citizenship | C34: Online Safety and Digital Citizenship: Skills Check - Level 4 (Post) | D34: Online Safety & Digital Citizenship Skills Check - Level 4 (Post) evaluates 4th grade concepts for safe, ethical online practices. It assesses the learner's knowledge and skills about proper online behavior, dealing with and preventing cyberbullying, and demonstrating strategies for safe and open communication. | E34: Assessment | F34: Independent | G34: 15
F35: Minutes in Unit | G35: =SUM(G14:G34) -> 339
B37: Tips & Suggestions - Begin the school year by walking students through how to create a digital portfolio. The lessons in this unit are spiraled from previous years to help set a firm foundation for safe, appropriate, responsible, and effective technology use throughout the year. Some assignments suggest sharing projects with the whole class, so plan accordingly.
B39: Digital Literacy Concept | C39: Curriculum Title | D39: Description | E39: Learning Component | F39: Implementation Model | G39: Time (in minutes)
B40: Keyboarding | C40: Keyboarding: Home Row | D40: This engaging and interactive digital lesson provides direct instruction and practice in the area of basic keyboarding techniques needed to type using the home row keys. The learners will gain knowledge about proper finger placement and posture. | E40: Instruction and Practice | F40: Independent | G40: 13
B41: Keyboarding | C41: Home Row: Review Home Row | D41: This guided practice item covers the home row skill area. It can be used to help students with accuracy and proper finger placement in a guided practice environment. | E41: Practice | F41: Independent | G41: 8
B42: Keyboarding | C42: Keyboarding: Upper Row | D42: The learners will receive direct instruction and practice with the basic keyboarding techniques needed to type using the upper row keys. The learners will gain knowledge about proper finger placement and posture, and are provided a review of the home row keys in this engaging and interactive digital lesson. | E42: Instruction and Practice | F42: Independent | G42: 14
B43: Keyboarding | C43: Home Row: Review Home Row G, H, E, O, R | D43: This guided practice item covers the home row skill area. It can be used to help students with accuracy and proper finger placement in a guided practice environment. | E43: Practice | F43: Independent | G43: 8
B44: Keyboarding | C44: Home Row & Upper Row - A, S, D, F, J, K, L, ;, G, H, E, O, R, I, T | D44: This guided practice item covers the Home row and Upper row skill area. It can be used to help students with accuracy and proper finger placement in a guided practice environment. | E44: Practice | F44: Independent | G44: 8
B45: Keyboarding | C45: Keyboarding: Lower Row | D45: This engaging and interactive digital lesson provides direct instruction and practice with the basic keyboarding techniques needed to type using the lower row keys. The learners will gain knowledge about proper finger placement and posture, and are provided a review of the home and upper row keys. | E45: Instruction and Practice | F45: Independent | G45: 13
B46: Keyboarding | C46: Keyboarding: Shift Key | D46: The learners will receive direct instruction and practice in keyboarding using the Shift key to type capital letters and symbols. The learners will use proper posture and finger placement, identify touch keys and reach keys, and type basic punctuation in this engaging and interactive digital lesson. | E46: Instruction and Practice | F46: Independent | G46: 11
B47: Keyboarding | C47: Lower Row: Add Left Shift and Colon | D47: This guided practice item covers the Lower row skill area. It can be used to help students with accuracy and proper finger placement in a guided practice environment. | E47: Practice | F47: Independent | G47: 3
B48: Keyboarding | C48: Lower Row: Add Right Shift and C | D48: This guided practice item covers the Lower row skill area. It can be used to help students with accuracy and proper finger placement in a guided practice environment. | E48: Practice | F48: Independent | G48: 3
B49: Keyboarding | C49: Lower Row: Add Period | D49: This guided practice item covers the Lower row skill area. It can be used to help students with accuracy and proper finger placement in a guided practice environment. | E49: Practice | F49: Independent | G49: 3
B50: Keyboarding | C50: Keyboarding: Number Row | D50: In this engaging and interactive digital lesson, the learners receive direct instruction and practice with keyboarding techniques needed to type using the number row keys, proper finger placement and posture, and a review of the home, upper, and lower row keys. | E50: Instruction and Practice | F50: Independent | G50: 12
B51: Keyboarding | C51: Adaptive Keyboarding: The Great Keyboarding Adventure | D51: This engaging and interactive app uses diagnostic exercises to provide learners with individualized touch-typing practice to address areas of weakness and help improve accuracy and speed at any skill level. Learners receive badges for specific achievements during their keyboarding adventure. | E51: Practice and Assessment | F51: Independent | G51: 45
F52: Minutes in Unit | G52: =SUM(G40:G51) -> 141
B54: Tips & Suggestions - Consider creating a group or a class just for keyboarding. After students complete their daily classwork, have them practice keyboarding and provide opportunities to practice keyboarding skills for fun and meaningful tasks. Having students type spelling or vocabulary words allows your students to apply their keyboarding skills in core subject areas. Remember that the skills focus for keyboarding should be technique and accuracy before words per minute.
B56: Digital Literacy Concept | C56: Curriculum Title | D56: Description | E56: Learning Component | F56: Implementation Model | G56: Time (in minutes)
C57: * CIPA Required topic
B58: Online Safety & Digital Citizenship | C58: * Private and Personal Information | D58: What information about you is OK to share online? It's in our student's nature to share and connect with others. But sharing online comes with some risks. How can we help kids build strong, positive, and safe relationships online? Help your students learn the difference between what's personal and what's best left private. | E58: Instruction | F58: Whole Group | G58: 45
B59: IT Fundamentals | C59: Computer Fundamentals: Skills Check - Level 4 (Pre) | D59: The Computer Fundamentals Skills Check - Level 4 (Pre) evaluates 4th grade concepts for Computer Fundamentals. It assesses the learner's knowledge and skills about symbols of technology, computer systems, network basics, and hardware and software - including the ethical use issues surrounding them. | E59: Assessment | F59: Independent | G59: 15
B60: IT Fundamentals | C60: Hardware Fundamentals: Network Basics | D60: The learners will receive direct instruction and practice with networking concepts, such as LANs, WANs, and file format compatibility. They will gain knowledge about how to use remote equipment and review intellectual property in this engaging and interactive digital lesson. | E60: Instruction and Practice | F60: Independent | G60: 12
B61: IT Fundamentals | C61: Software Fundamentals: Desktop | D61: In this engaging and interactive digital lesson, the learners will receive direct instruction and practice using the desktop, working with files and folders, navigating file structures, moving and opening files and folders, and deleting files. | E61: Instruction and Practice | F61: Independent | G61: 12
B62: IT Fundamentals | C62: Software Fundamentals: Windows and Controls | D62: In this engaging and interactive digital lesson, the learners will receive direct instruction and practice with dialog boxes and options windows, making selections using check boxes, radio buttons, scroll bars, and dropdown menus, and controls to close, maximize, minimize, restore, and resize windows. | E62: Instruction and Practice | F62: Independent | G62: 12
B63: IT Fundamentals | C63: Software Fundamentals: Toolbars and Menus | D63: In this engaging and interactive digital lesson, the learners will receive direct instruction and practice navigating program menus and using toolbars, recognizing and using symbols, properties, and online help, and understanding the connection between program menu icons and toolbar buttons. | E63: Instruction and Practice | F63: Independent | G63: 12
B64: IT Fundamentals | C64: Software Fundamentals: Software and File Formats | D64: The learners will receive direct instruction and practice with software programs and file formats as they identify software groups, select task-appropriate software, start and exit software programs, and create, name, save, print, and close files in this engaging and interactive digital lesson. | E64: Instruction and Practice | F64: Independent | G64: 12
B65: IT Fundamentals | C65: IT Fundamentals: Devices and Compatibility Discussion Reflection | D65: In this lesson, teachers use the discussion points to help students understand basic computer concepts such as input and output devices, networks, and compatibility. | E65: Instruction | F65: Independent | G65: 30
B66: IT Fundamentals | C66: Hardware Fundamentals: Mobile Devices | D66: In this engaging and interactive digital lesson, the learners receive direct instruction and practice with smartphones, tablets, phablets (larger phones), and applications, and understand how mobile devices connect to a wireless network, store information using cloud computing, and use GPS for tracking. | E66: Instruction and Practice | F66: Independent | G66: 15
B67: IT Fundamentals | C67: Computer Compatibility | D67: Students identify terms related to compatibility, evaluate computer platform issues and propose solutions. | E67: Application | F67: Guided | G67: 10
B68: IT Fundamentals | C68: Computer Fundamentals: Skills Check - Level 4 (Post) | D68: The Computer Fundamentals Skills Check - Level 4 (Post) evaluates 4th grade concepts for Computer Fundamentals. It assesses the learner's knowledge and skills about symbols of technology, computer systems, network basics, and hardware and software - including the ethical use issues surrounding them. | E68: Assessment | F68: Independent | G68: 15
B69: Keyboarding | C69: Adaptive Keyboarding: The Great Keyboarding Adventure | D69: This engaging and interactive app uses diagnostic exercises to provide learners with individualized touch-typing practice to address areas of weakness and help improve accuracy and speed at any skill level. Learners receive badges for specific achievements during their keyboarding adventure. | E69: Practice and Assessment | F69: Independent | G69: 45
F70: Minutes in Unit | G70: =SUM(G58:G69) -> 235
B72: Tips & Suggestions - This is a good time to implement ‘tech buddies’ in your classroom to help struggling students when lessons are not mastered. Try to use the ‘talk, not touch’ or ‘point, not press’ approaches with your buddies so the learner retains control of his/her equipment.
B74: Digital Literacy Concept | C74: Curriculum Title | D74: Description | E74: Learning Component | F74: Implementation Model | G74: Time (in minutes)
C75: * CIPA Required topic
B76: Online Safety & Digital Citizenship | C76: Internet Usage and Online Communication: Skills Check - Level 4 (Pre) | D76: Internet Usage & Online Communication Skills Check - Level 4 (Pre) evaluates 4th grade concepts for safe use of online communication tools and successful navigation and searching of the World Wide Web. It assesses the learner's knowledge and skills about performing safe and effective online searches, using digital collaboration tools, reading and writing blogs, and practicing online ethics. | E76: Assessment | F76: Independent | G76: 15
B77: Online Safety & Digital Citizenship | C77: * Netiquette in Online Communications | D77: In this animated video, Trey and two of his classmates are collaborating on their Virtual Science Fair project in a private chatroom when netiquette issues derail them from their task. The lesson introduces what netiquette is, why it’s important, and shows some of the negative sides of online communication. | E77: Instruction and Practice | F77: Independent | G77: 7
B78: Online Safety & Digital Citizenship | C78: Internet Usage: Online Information Basics | D78: In this engaging and interactive digital lesson, the learners will receive direct instruction and practice browsing the Internet as they examine the difference between a web page and website, browse by following a series of hyperlinks, and learn to differentiate the Internet from the World Wide Web. | E78: Instruction and Practice | F78: Independent | G78: 15
B79: Online Safety & Digital Citizenship | C79: My State Research | D79: Students participate in electronic communities by visiting their state websites and finding information. | E79: Application | F79: Guided | G79: 60
B80: Online Safety & Digital Citizenship | C80: A Creator's Rights and Responsibilities | D80: What rights and responsibilities do you have as a creator? It's common for kids to use images they find online, for school projects or just for fun. But kids don't often understand which images are OK to use and which ones aren't. Help your students learn about the rights and responsibilities they have when it comes to the images they create and use. Note: Lesson plan & resources available. | E80: Instruction | F80: Whole Group | G80: 45
B81: Online Safety & Digital Citizenship | C81: Online Communications: Sending Email Messages | D81: During this engaging and interactive digital lesson, the learners will receive direct instruction and practice with online communication. They are introduced to email addresses and experience how to write and send email messages. | E81: Instruction and Practice | F81: Independent | G81: 12
B82: Online Safety & Digital Citizenship | C82: Email the President | D82: Students will compose a message about a community issue to the President of the United States using a sample email program. | E82: Application | F82: Guided | G82: 30
B83: Online Safety & Digital Citizenship | C83: Online Communications: Responding to Email Messages | D83: The learners will receive direct instruction and practice with replying, forwarding, and deleting email messages as they use an email inbox, respond to multiple recipients simultaneously, and delete junk mail and old messages during this engaging and interactive digital lesson. | E83: Instruction and Practice | F83: Independent | G83: 8
B84: Online Safety & Digital Citizenship | C84: Online Communication: Using Digital Collaboration Tools | D84: In this engaging and interactive digital lesson, the learners will receive direct instruction and practice using personal learning communities and digital environments as they use collaboration tools such as instant messaging and video conferencing to interact and share with their peers and experts. | E84: Instruction and Practice | F84: Independent | G84: 15
B85: Online Safety & Digital Citizenship | C85: Internet Usage and Online Communication: Skills Check - Level 4 (Post) | D85: Internet Usage & Online Communication Skills Check - Level 4 (Post) evaluates 4th grade concepts for safe use of online communication tools and successful navigation and searching of the World Wide Web. It assesses the learner's knowledge and skills about performing safe and effective online searches, using digital collaboration tools, reading and writing blogs, and practicing online ethics. | E85: Assessment | F85: Independent | G85: 15
B86: Keyboarding | C86: Adaptive Keyboarding: The Great Keyboarding Adventure | D86: This engaging and interactive app uses diagnostic exercises to provide learners with individualized touch-typing practice to address areas of weakness and help improve accuracy and speed at any skill level. Learners receive badges for specific achievements during their keyboarding adventure. | E86: Practice and Assessment | F86: Independent | G86: 45
F87: Minutes in Unit | G87: =SUM(G76:G86) -> 267
B89: Tips & Suggestions - Remember to provide students with additional time each week to improve their keyboarding technique, accuracy, and speed through Adaptive Keyboarding. Now is a good time to remind students to save work products to their digital portfolio.
B91: Digital Literacy Concept | C91: Curriculum Title | D91: Description | E91: Learning Component | F91: Implementation Model | G91: Time (in minutes)
B92: Online Safety & Digital Citizenship | C92: My Media Choices | D92: What makes a healthy media choice? We all make choices every day about the media we consume and create. But do kids understand what makes a media choice healthy or not? Hint: It's about more than just screen time. Use the activities in this lesson to give kids a framework for making informed media choices. Note: Lesson plan and resource available. | E92: Instruction | F92: Whole Group | G92: 45
B93: Business Applications | C93: Word Processing: Skills Check - Level 4 (Pre) | D93: Word Processing Skills Check - Level 4 (Pre) evaluates 4th grade concepts for Word Processing. It assesses the learner's knowledge and skills about appropriate use of word processing applications when creating and communicating ideas, including basic document creation, editing, proofreading and correcting, formatting reports, and creating original works. | E93: Assessment | F93: Independent | G93: 15
B94: Business Applications | C94: Business Applications: Audience and Media Discussion Reflection | D94: In this lesson, teachers use the discussion points to help students understand the concept of audience and how to use font, color, white space, and graphics to design documents for print- and screen-viewing. | E94: Instruction | F94: Whole Group | G94: 30
B95: Business Applications | C95: Word Processing: Creating and Organizing Content | D95: This engaging and interactive digital lesson provides direct instruction and practice with using a word processing program to help with the writing process. The learners will gain knowledge about how to organize information, create lists, and insert pictures to better engage their audience. | E95: Instruction and Practice | F95: Independent | G95: 11
B96: Business Applications | C96: Word Processing: Revising and Formatting | D96: In this engaging and interactive digital lesson, the learners receive direct instruction and practice revising and formatting, as part of the writing process, while they use font style, color and size, paragraph alignment, spacing, page break, symbols, and moving text and images to enhance their document. | E96: Instruction and Practice | F96: Independent | G96: 10
B97: Business Applications | C97: Formatting a Poem | D97: Students will use a word processing program to format a poem. | E97: Application | F97: Guided | G97: 20
B98: Business Applications | C98: Word Processing: Editing and Proofreading Your Work | D98: This engaging and interactive digital lesson provides direct instruction and practice using a word processing program as part of the writing process. Learners will edit and proofread text, check for spelling and grammar mistakes, and improve writing by using the thesaurus and word count tools. | E98: Instruction and Practice | F98: Independent | G98: 15
B99: Business Applications | C99: Word Processing: Page Layout | D99: This engaging and interactive digital lesson provides direct instruction and practice in styling a page layout while considering specific audiences by adjusting page size, setting margins and page orientation, formatting columns, and inserting page numbers. | E99: Instruction and Practice | F99: Independent | G99: 10
B100: Business Applications | C100: Guidebook | D100: Students write "how to" instructions and then format them into a guidebook. | E100: Application | F100: Guided | G100: 60
B101: Business Applications | C101: Word Processing: Introduction to Desktop Publishing | D101: The learners receive direct instruction and practice using more than one software application to create documents using text, graphics, and templates to enhance design and layout, creating checklists, and using print preview to evaluate work progress and final products in this engaging and interactive digital lesson. | E101: Instruction and Practice | F101: Independent | G101: 12
B102: Business Applications | C102: Computer Rules Sign | D102: Students use word processing software to create signs for the computer lab illustrating the rules in the acceptable use policy. | E102: Application | F102: Guided | G102: 45
B103: Business Applications | C103: Cumulative Story | D103: In groups, students use pictures as prompts to write creative stories. | E103: Application | F103: Small Group | G103: 45
B104: Business Applications | C104: Word Processing: Skills Check - Level 4 (Post) | D104: Word Processing Skills Check - Level 4 (Post) evaluates 4th grade concepts for Word Processing. It assesses the learner's knowledge and skills about appropriate use of word processing applications when creating and communicating ideas, including basic document creation, editing, proofreading and correcting, formatting reports, and creating original works. | E104: Assessment | F104: Independent | G104: 15
B105: Keyboarding | C105: Adaptive Keyboarding: The Great Keyboarding Adventure | D105: This engaging and interactive app uses diagnostic exercises to provide learners with individualized touch-typing practice to address areas of weakness and help improve accuracy and speed at any skill level. Learners receive badges for specific achievements during their keyboarding adventure. | E105: Practice and Assessment | F105: Independent | G105: 45
F106: Minutes in Unit | G106: =SUM(G92:G105) -> 378
B108: Tips & Suggestions - Provide your students with opportunities to publish their classroom writing in word processing documents and place copies in their technology portfolios. Encourage students to illustrate their writing with digital or hand drawn art. Help students to understand that being aware of their audience goes beyond projects to their every day communications.
B110: Digital Literacy Concept | C110: Curriculum Title | F110: Implementation Model | G110: Time (in minutes)
B111: Online Safety & Digital Citizenship | C111: * Keeping Games Fun and Friendly | D111: How can I be positive and have fun while playing online games, and help others do the same? Social interaction is part of what makes online gaming so popular and engaging for kids. Of course, online communication can come with some risks. Show your students how to keep their gaming experiences fun, healthy, and positive. | E111: Instruction | F111: Independent | G111: 45
B112: Business Applications | C112: Presentations: Skills Check - Level 4 (Pre) | D112: Presentations Skills Check - Level 4 (Pre) evaluates 4th grade concepts for Presentations. It assesses the learner's knowledge of basic presentation skills using slideshow applications. | E112: Assessment | F112: Independent | G112: 15
B113: Business Applications | C113: Presentations: Audience and Organization | D113: In this engaging and interactive digital lesson, learners will receive direct instruction and practice organizing and developing a slide show using presentation software. They learn how to consider the audience and the purpose of the slide show to tell stories, present information, and share ideas. | E113: Instruction and Practice | F113: Independent | G113: 12
B114: Business Applications | C114: Presentations: Composing Slides | D114: During this engaging and interactive digital lesson, the learners will receive direct instruction and practice composing slides using presentation software as they consider and use design elements, layouts, backgrounds, text, images, and white space to create and modify engaging slide shows. | E114: Instruction and Practice | F114: Independent | G114: 10
B115: Business Applications | C115: Life Slideshow Booklet | D115: Students create a booklet of slides about themselves using presentation software. | E115: Application | F115: Guided | G115: 45
B116: Business Applications | C116: Presentations: Enhancing Slides | D116: The learners receive direct instruction and practice enhancing presentation slides to communicate their voice to an audience. They learn to choose and use effective color palettes, apply color and formatting to text, draw and customize objects, and add animation and sound in this engaging and interactive digital lesson. | E116: Instruction and Practice | F116: Independent | G116: 8
B117: Business Applications | C117: Presentations: Evaluating and Presenting | D117: The learners will receive direct instruction and practice with enhancing and editing a slideshow before presenting to an audience. They will edit and organize slides, use tools to add consistent and appropriate transitions, and evaluate their work before presenting in this engaging and interactive digital lesson. | E117: Instruction and Practice | F117: Independent | G117: 9
B118: Business Applications | C118: Tourism Guide | D118: Students form a group and create slideshow presentations about geographical locations of their choice. | E118: Application | F118: Small Groups | G118: 60
B119: Business Applications | C119: Tourism Guide (Presentations) | E119: Application | F119: Whole Group
B120: Business Applications | C120: Presentations: Skills Check - Level 4 (Post) | D120: Presentations Skills Check - Level 4 (Post) evaluates 4th grade concepts for Presentations. It assesses the learner's knowledge of basic presentation skills using slideshow applications. | E120: Assessment | F120: Independent | G120: 15
B121: Keyboarding | C121: Adaptive Keyboarding: The Great Keyboarding Adventure | D121: This engaging and interactive app uses diagnostic exercises to provide learners with individualized touch-typing practice to address areas of weakness and help improve accuracy and speed at any skill level. Learners receive badges for specific achievements during their keyboarding adventure. | E121: Practice and Assessment | F121: Independent | G121: 45
F122: Minutes in Unit | G122: =SUM(G111:G121) -> 264
B124: Tips & Suggestions - Student-created presentations are a great way to integrate technology with core content subject areas. Have students utilize their new skills to create a presentation about something they are learning in language arts, math, science, or social studies and use that presentation as review for the class. Be sure to keep copies of students' final products to add to their portfolio!
B126: Digital Literacy Concept | C126: Curriculum Title | D126: Description | E126: Learning Component | F126: Implementation Model | G126: Time (in minutes)
B127: Online Safety & Digital Citizenship | C127: * Our Online Tracks | D127: How does our online activity affect the digital footprints of ourselves and others? Your digital footprint can affect your online reputation for a long time. But kids don't always realize that digital footprints aren't just a personal matter. Show your students how they can contribute to a positive digital reputation, both for themselves and for others. Note: Lesson plan & resources available. | E127: Instruction | F127: Whole Group | G127: 45
B128: Computer Science | C128: Computational Thinking: Skills Check - Level 4 (Pre) | D128: Computational Thinking - Level 4 (Pre) evaluates 4th grade concepts for Computational Thinking. It assesses the learner's understanding and ability to use digital tools in the problem solving process. | E128: Assessment | F128: Independent | G128: 15
B129: Computer Science | C129: Computational Thinking: Algorithms | D129: As part of computational thinking, the learners receive direct instruction and practice using algorithms to solve a problem, make a decision, or accomplish a task. They will analyze a situation, create an algorithm to solve the problem, test for reliability and accuracy, and understand that computers use algorithms, called programs, to complete tasks or help solve problems. | E129: Instruction and Practice | F129: Independent | G129: 15
B130: Computer Science | C130: Computational Thinking: Modeling | D130: As part of computational thinking, learners receive direct instruction and practice using models to represent a process, data, or solutions. They will organize information using simulations and prototypes, develop and test algorithms, and define solutions. They are introduced to binary language, how digital tools use this language, and the importance of algorithms in computer programming. | E130: Instruction and Practice | F130: Independent | G130: 15
B131: Computer Science | C131: Bedroom Blueprint | D131: A crucial component of computational thinking is building and understanding models. In this application exercise, students utilize two methods of modeling to create their ideal bedroom. | E131: Application | F131: Guided | G131: 90
B132: Computer Science | C132: Computational Thinking: Skills Check - Level 4 (Post) | D132: Computational Thinking - Level 4 (Post) evaluates 4th grade concepts for Computational Thinking. It assesses the learner's understanding and ability to use digital tools in the problem solving process. | E132: Assessment | F132: Independent | G132: 15
B133: Keyboarding | C133: Adaptive Keyboarding: The Great Keyboarding Adventure | D133: This engaging and interactive app uses diagnostic exercises to provide learners with individualized touch-typing practice to address areas of weakness and help improve accuracy and speed at any skill level. Learners receive badges for specific achievements during their keyboarding adventure. | E133: Practice and Assessment | F133: Independent | G133: 45
F134: Minutes in Unit | G134: =SUM(G127:G133) -> 240
B136: Tips & Suggestions - When students finish their work with class time remaining, encourage them to open skill mode in the EasyCode map and complete unlocked challenges. This is the perfect time of year to put together mini-projects in core subject areas which end in digital publication to highlight each student's entire year of learning.
B138: Digital Literacy Concept | C138: Curriculum Title | D138: Description | E138: Learning Component | F138: Implementation Model | G138: Time (in minutes)
B139: Business Applications | C139: Spreadsheets and Databases: Skills Check - Level 4 (Pre) | D139: Spreadsheets & Databases - Level 4 (Pre) evaluates 4th grade concepts for Spreadsheets and Databases. It assesses the learner's understanding of knowledge and appropriate use of spreadsheet applications to arrange, evaluate, store, and share data and understanding of database applications to search different types of information. | E139: Assessment | F139: Independent | G139: 15
B140: Business Applications | C140: Spreadsheets: Pie Charts | D140: The learners will receive direct instruction and practice with pie charts in a spreadsheet program. They will use data found in a spreadsheet to create and label pie charts, then practice reading and interpreting data found in a pie chart during this engaging and interactive digital lesson. | E140: Instruction | F140: Independent | G140: 10
B141: Business Applications | C141: Spreadsheets: Bar Charts | D141: This engaging and interactive digital lesson provides direct instruction and practice as the learners work with bar charts in a spreadsheet program. They will use data found in a spreadsheet to create and label bar charts, then practice reading and interpreting data found in a bar chart. | E141: Instruction | F141: Independent | G141: 11
B142: Business Applications | C142: Classroom Measurements | D142: Students estimate the length of common classroom items, measure the actual items, and record both sets of data in a spreadsheet to compare. | E142: Application | F142: Guided | G142: 60
B143: Business Applications | C143: Spreadsheets: Line Charts | D143: This engaging and interactive digital lesson provides direct instruction and practice as the learners work with line charts in a spreadsheet program. They will use data found in a spreadsheet to create and label line charts, then practice reading and interpreting data found in a line chart. | E143: Instruction | F143: Independent | G143: 8
B144: Business Applications | C144: Weekly Reading Graph | D144: Students will keep track of how many pages they read in a week and display that data in a line graph. | E144: Application | F144: Guided | G144: 30
B145: Business Applications | C145: Spreadsheets: Using Formulas to Add and Subtract | D145: During this engaging and interactive digital lesson, learners will receive direct instruction and practice adding and subtracting data using formulas in spreadsheet tables. Learners will experience using cell names and addresses to create formulas, entering data in a cell, and using the sum command. | E145: Instruction | F145: Independent | G145: 13
B146: Business Applications | C146: Spreadsheets: Using Formulas to Multiply and Divide | D146: During this engaging and interactive digital lesson, learners will receive direct instruction and practice multiplying and dividing data using formulas in spreadsheet tables. Learners will experience using cell names and addresses to create formulas and entering data and numerical formulas in a cell. | E146: Instruction | F146: Independent | G146: 12
B147: Business Applications | C147: Grocery Store Spreadsheet | D147: Students will use a spreadsheet to calculate how many of certain items to buy in order to maintain a budget. | E147: Application | F147: Guided | G147: 30
B148: Business Applications | C148: Spreadsheets: Copying Formulas and Functions | D148: This engaging and interactive digital lesson provides direct instruction and practice with copying and pasting formulas in spreadsheets. Learners will use functions and gain additional experience working with formulas and tables. | E148: Instruction | F148: Independent | G148: 10
B149: Business Applications | C149: Camping Supplies Spreadsheet | D149: Based on supplies needed for a camping trip, students create and perform calculations in a spreadsheet. | E149: Application | F149: Guided | G149: 30
B150: Business Applications | C150: Databases: Performing Searches and Filtering Data | D150: The learners will receive direct instruction and practice searching online databases with keywords as they perform a category search, apply a simple filter, and explore how database searches can help solve information needs in this engaging and interactive digital lesson. | E150: Instruction and Practice | F150: Independent | G150: 11
B151: Business Applications | C151: Databases: Search and Filter Journal | D151: Students use an Internet search engine to research three bodies of water, choosing among rivers, lakes, seas, and oceans. They then create Activity Cards using the information they find and play a "filtering" game with the cards to exemplify how a database filters information. | E151: Application | F151: Guided | G151: 60
B152: Business Applications | C152: Databases: Sort and Filter | D152: During this engaging and interactive digital lesson, the learners will receive direct instruction and practice organizing data and finding information in a database as they sort data in both ascending and descending orders, and sort filtered data. | E152: Instruction and Practice | F152: Independent | G152: 9
B153: Business Applications | C153: Databases: Sort and Filter Journal | D153: Using a database program, students enter information about their favorite book(s) into a classroom database and then sort and filter the data to find specific information. | E153: Application | F153: Guided | G153: 60
B154: Business Applications | C154: Databases: Planning and Building a Database | D154: In this engaging and interactive digital lesson, the learners will receive direct instruction and practice in planning and building a database. They will create a form, start a new file, create, edit, and define fields, and review, edit, and delete data. | E154: Instruction and Practice | F154: Independent | G154: 18
B155: Business Applications | C155: Databases: Database Creation Journal | D155: Students go on a scavenger hunt to observe different types of transportation signs. They enter the information into a datasheet and modify the datasheet daily based on the signs they find and the criteria they use to describe them. | E155: Application | F155: Guided | G155: 45
B156: Business Applications | C156: Databases: Designing Queries and Reports | D156: In this engaging and interactive digital lesson, the learners will receive direct instruction and practice designing basic queries as they query data to find answers, save queries for future use, and share data by creating and printing reports. | E156: Instruction and Practice | F156: Independent | G156: 10
B157: Business Applications | C157: Databases: Queries and Reports Journal | D157: Students use the information they gathered for the EasyTech Database Creation Lesson to run queries and create reports that will be shared and evaluated by peer teams. | E157: Application | F157: Guided | G157: 30
B158: Business Applications | C158: Spreadsheets and Databases: Skills Check - Level 4 (Post) | D158: Spreadsheets & Databases - Level 4 (Post) evaluates 4th grade concepts for Spreadsheets and Databases. It assesses the learner's understanding of knowledge and appropriate use of spreadsheet applications to arrange, evaluate, store, and share data and understanding of database applications to search different types of information. | E158: Assessment | F158: Independent | G158: 15
B159: Keyboarding | C159: Adaptive Keyboarding: The Great Keyboarding Adventure | D159: This engaging and interactive app uses diagnostic exercises to provide learners with individualized touch-typing practice to address areas of weakness and help improve accuracy and speed at any skill level. Learners receive badges for specific achievements during their keyboarding adventure. | E159: Practice and Assessment | F159: Independent | G159: 45
F160: Minutes in Unit | G160: =SUM(G139:G159) -> 532
B162: Tips & Suggestions - Discuss with students how computational thinking can impact the way you design, create, and use a database. Have students practice entering data to create databases based on content being studied in core curriculum, physical education, or other classes.
B164: Digital Literacy Concept | C164: Curriculum Title | D164: Description | E164: Learning Component | F164: Implementation Model | G164: Time (in minutes)
C165: * CIPA Required topic
B166: Online Safety & Digital Citizenship | C166: *Be A Super Digital Citizen | D166: How can we be upstanders when we see cyberbullying? Online tools are empowering for kids, and they also come with big responsibilities. But do kids always know what to do when they encounter cyberbullying? Show your students appropriate ways to take action and resolve conflicts, from being upstanders to helping others in need. | E166: Instruction | F166: Independent | G166: 45
B167: Online Safety & Digital Citizenship | C167: Summer Online Safety Presentation | D167: Students will create an online safety presentation to remind students about how to stay safe online during the summer. | E167: Application | F167: Small Group | G167: 90
B168: Online Safety & Digital Citizenship | C168: Summer Online Safety Presentation (Presentations) | E168: Application | F168: Whole Group
C169: Technology Showcase (Optional)
B170: Keyboarding | C170: Adaptive Keyboarding: The Great Keyboarding Adventure | D170: This engaging and interactive app uses diagnostic exercises to provide learners with individualized touch-typing practice to address areas of weakness and help improve accuracy and speed at any skill level. Learners receive badges for specific achievements during their keyboarding adventure. | E170: Assessment and Practice | F170: Independent | G170: 45
F171: Minutes in Unit | G171: =SUM(G166:G170) -> 180
G173: =SUM(G171,G160,G134,G122,G106,G87,G52,G70,G35) -> 2576
B175: Tips & Suggestions - Online safety is important to revisit at the end of the year to remind students that they need to be smart when online - whether at home or at school. Provide parents with resources to help them keep their students safe online, like the 'Parent Online Safety Guide' linked below. Host an in-person or virtual technology showcase to share student work to wrap up the school year and provide students and parents with ideas for continuing to practice their digital literacy skills during the summer.
B176: =HYPERLINK("https://support.learning.com/parent-resources/online-safety-guide-for-parents-english/","Parent Online Safety Guide") -> Parent Online Safety Guide

Sheet Fifth
E1: Blended Learning Path
B3: EasyTech Curriculum Map - 5th Grade
B4: 2022-2023
B6: This Curriculum Map provides a suggested order of assignments for utilizing the EasyTech curriculum in your classroom. For planning purposes, it is recommended that approximately 45 minutes of digital literacy curriculum is delivered each week through whole group, independent, or guided practice implementation models.
B8: Prior to beginning the school year, it is recommended that you create student technology portfolios (digital or print) to provide students with a way to share their learning. The portfolio may include EasyTech certificates, reports, and application exercise entries and work products. Pictures are a great way to show your students in the learning process and can be used at the end of the year for a class slideshow or technology showcase.
B10: Remember to provide students with time each week to improve their keyboarding technique, accuracy, and speed through Adaptive Keyboarding after they have completed the keyboarding lessons and guided practice exercises.
B12: Digital Literacy Concept | C12: Curriculum Title | D12: Description | E12: Learning Component | F12: Implementation Model | G12: Time (in minutes)
C13: * CIPA Required topic
B14: Online Safety & Digital Citizenship | C14: Online Safety and Digital Citizenship: Skills Check - Level 5 (Pre) | D14: Online Safety & Digital Citizenship Skills Check - Level 5 (Pre) evaluates 5th grade concepts for safe, ethical online practices. It assesses the learner's knowledge and skills about proper online behavior, dealing with and preventing cyberbullying, and demonstrating strategies for safe and open communication. | E14: Assessment | F14: Independent | G14: 15
B15: Online Safety & Digital Citizenship | C15: 3-5 Online Safety & Digital Citizenship Introduction Video | D15: This engaging unit introduction video introduces students to what they will be learning about during the Online Safety and Digital Citizenship unit. | E15: Instruction | F15: Independent | G15: 3
B16: Online Safety & Digital Citizenship | C16: *Cyberbullying: Vocabulary Introduction - Level 5 | D16: This animated video introduces students to the vocabulary terms and definitions related to cyberbullying. | E16: Instruction | F16: Independent | G16: 2
B17: Online Safety & Digital Citizenship | C17: *Cyberbullying: Vocabulary Practice - Level 5 | D17: In this interactive learning experience, students improve their knowledge of Cyberbullying vocabulary terms and definitions. | E17: Practice | F17: Independent | G17: 5
B18: Online Safety & Digital Citizenship | C18: *Cyberbullying: The Quack Attack - Level 5 | D18: In this engaging animated video, Sal accidentally takes part in cyberbullying his friend Opal. She explains her feelings and the two come to understand that cyberbullying takes many forms. | E18: Instruction | F18: Independent | G18: 5
B19: Online Safety & Digital Citizenship | C19: *Cyberbullying: Banter vs Bully - Level 5 | D19: In this interactive practice, students practice identifying the difference between friendly banter and harmful cyberbullying. | E19: Practice | F19: Independent | G19: 5
B20: Online Safety & Digital Citizenship | C20: *Cyberbullying: Keeping the School Community Safe - Level 5 | D20: In this activity, students will apply their knowledge and skills related to cyberbullying by creating a school wide campaign about the importance of understanding and dealing with cyberbullying. | E20: Application | F20: Guided | G20: 45
B21: Online Safety & Digital Citizenship | C21: Online Safety: Acceptable Use Policies Discussion Reflection | D21: In this discussion, teachers use the discussion points to introduce students to EasyTech as well as usernames and passwords, online help, acceptable use policies, and intellectual property. | E21: Discussion | F21: Whole Group | G21: 30
B22: Online Safety & Digital Citizenship | C22: *Digital Citizenship: Vocabulary Introduction - Level 5 | D22: This animated video introduces students to the vocabulary terms and definitions related to Digital Citizenship. | E22: Instruction | F22: Independent | G22: 2
B23: Online Safety & Digital Citizenship | C23: *Digital Citizenship: Vocabulary Practice - Level 5 | D23: In this interactive learning experience, students improve their knowledge of digital citizenship vocabulary terms and definitions. | E23: Practice | F23: Independent | G23: 5
B24: Online Safety & Digital Citizenship | C24: * Digital Citizenship: Bean There, Done That - Level 5 | D24: In this engaging animated video, Mayor Naise explores the benefits and downsides of being a digital citizen in the modern world. He defines and provides examples for malware, viruses, phishing, and more. | E24: Instruction | F24: Independent | G24: 5
B25: Online Safety & Digital Citizenship | C25: * Digital Citizenship: Unpacking Hacking - Level 5 | D25: In this interactive practice, students will be presented with questions regarding digital citizenship. They will tackle the positive and negative aspects of being online as well as identify suspicious online situations. | E25: Practice | F25: Independent | G25: 5
B26: Online Safety & Digital Citizenship | C26: * Digital Citizenship: Security Spotlight on Hackers - Level 5 | D26: In this Application Exercise, students will apply their knowledge and skills related to digital citizenship by creating a DC (digital citizenship) Superhero poster about the importance of protecting themselves and others against malware, viruses, phishing and more. | E26: Application | F26: Guided | G26: 35
B27: Online Safety & Digital Citizenship | C27: *Online Safety: Texting Safety Discussion & Reflection | D27: Texting Safety: Teachers use the discussion points to help students understand the concept of texting, emphasizing cell phone safety, netiquette, and cyber bullying. | E27: Discussion | F27: Whole Group | G27: 30
B28: Online Safety & Digital Citizenship | C28: Information Literacy: Vocabulary Intro - Level 5 | D28: This animated video introduces students to the vocabulary terms and definitions related to information literacy. | E28: Instruction | F28: Independent | G28: 2
B29: Online Safety & Digital Citizenship | C29: Information Literacy: Vocab Practice - Level 5 | D29: In this interactive vocabulary practice, students match the information literacy vocabulary term with its definition. | E29: Practice | F29: Independent | G29: 10
B30: Online Safety & Digital Citizenship | C30: Information Literacy: Opal's Online Post - Level 5 | D30: In this engaging animated video, Opal introduces the learner to the importance of information literacy through an experience she had posting online about the new biscuit from the Hometown Café. | E30: Instruction | F30: Independent | G30: 5
B31: Online Safety & Digital Citizenship | C31: Information Literacy: C.A.R.P. Is On Your Side | D31: In this interactive practice, students will watch a video and apply the C.A.R.P. method to answer embedded questions. | E31: Practice | F31: Independent | G31: 10
B32: Online Safety & Digital Citizenship | C32: Information Literacy: Bad Information Can Take A Hike! Part 1 | D32: In this two-part activity, students will apply their knowledge and skills related to information literacy by creating fake posts about the importance of evaluating information they find online. | E32: Application | F32: Guided | G32: 45
B33: Online Safety & Digital Citizenship | C33: Information Literacy: Bad Information Can Take A Hike! Part 2 | D33: In this two-part activity, students will apply their knowledge and skills related to information literacy by creating fake posts about the importance of evaluating information they find online. | E33: Application | F33: Guided | G33: 45
B34: Online Safety & Digital Citizenship | C34: Online Safety and Digital Citizenship: Skills Check - Level 5 (Post) | D34: Online Safety & Digital Citizenship Skills Check - Level 5 (Post) evaluates 5th grade concepts for safe, ethical online practices. It assesses the learner's knowledge and skills about proper online behavior, dealing with and preventing cyberbullying, and demonstrating strategies for safe and open communication. | E34: Assessment | F34: Independent | G34: 15
B35: Keyboarding | C35: Adaptive Keyboarding: The Great Keyboarding Adventure | D35: This engaging and interactive app uses diagnostic exercises to provide learners with individualized touch-typing practice to address areas of weakness and help improve accuracy and speed at any skill level. Learners receive badges for specific achievements during their keyboarding adventure. | E35: Practice and Assessment | F35: Independent | G35: 45
F36: Minutes in Unit | G36: =SUM(G14:G35) -> 369
B38: Tips & Suggestions - Creating a portfolio will provide students with a way to collect their work in one digital location. The curriculum for this unit is spiraled from previous years to help set a firm foundation for safe, appropriate, responsible, and effective technology use throughout the year.
B40: Digital Literacy Concept | C40: Curriculum Title | D40: Discussion | E40: Learning Component | F40: Implementation Model | G40: Time (in minutes)
B41: IT Fundamentals | C41: Computer Fundamentals: Skills Check - Level 5 (Pre) | D41: The Computer Fundamentals Skills Check - Level 5 (Pre) evaluates 5th grade concepts for Computer Fundamentals. It assesses the learner's knowledge and skills about symbols of technology, computer systems, network basics, and hardware and software - including the ethical use issues surrounding them. | E41: Assessment | F41: Independent | G41: 15
B42: IT Fundamentals | C42: IT Fundamentals: Devices and Compatibility Discussion Reflection | D42: In this lesson, teachers use the discussion points to help students understand basic computer concepts such as input and output devices, networks, and compatibility. | E42: Discussion | F42: Whole Group | G42: 30
B43: IT Fundamentals | C43: Hardware Fundamentals: Mobile Devices | D43: In this engaging and interactive digital lesson, the learners receive direct instruction and practice with smartphones, tablets, phablets (larger phones), and applications, and understand how mobile devices connect to a wireless network, store information using cloud computing, and use GPS for tracking. | E43: Instruction and Practice | F43: Independent | G43: 15
B44: IT Fundamentals | C44: Technology Devices | D44: Students choose and describe how three technology devices perform input, output, and processing functions. Application Exercises give students an opportunity to apply concepts they have learned in previous instruction. Work completed by a student will be graded through a variety of scoring options including participation and teacher assessment via rubric to provide flexibility with the type of grade sent to the Learning Management System (LMS) gradebook. Student work may include open-ended questions, correct/incorrect responses, a final product and/or self-assessment. | E44: Application | F44: Guided | G44: 60
B45: IT Fundamentals | C45: Hardware Fundamentals: Basic Components | D45: During this engaging and interactive digital lesson, the learners will receive direct instruction and practice in computer basics as they understand names and functions of basic components such as processor, input, output, and storage devices, and differentiate between analog and digital information. | E45: Instruction and Practice | F45: Independent | G45: 25
B46: IT Fundamentals | C46: Software Fundamentals: Software, Buttons, and Controls | D46: This engaging and interactive digital lesson provides direct instruction and practice related to various types of software. The learners will gain knowledge about types of software, how to select the appropriate software to complete a task, and how to use the buttons and controls found in software. | E46: Instruction and Practice | F46: Independent | G46: 25
B47: IT Fundamentals | C47: Software Fundamentals: Using Program Menus and Toolbars | D47: The learners receive direct instruction and practice with toolbars and program menus as they use the help tool to understand how to perform a task in a program, use the toolbar for common tasks, open programs and create, print, and save documents in this engaging and interactive digital lesson. | E47: Instruction and Practice | F47: Independent | G47: 25
B48: IT Fundamentals | C48: Software Fundamentals: Navigating Ribbon Interfaces | D48: The learners receive direct instruction and practice using the ribbon interface in software including the applications button, help tool, tabs and labels, commands and groups found on each tab, dialog box, shortcuts, and setting up quick access buttons in this engaging and interactive digital lesson. | E48: Instruction and Practice | F48: Independent | G48: 15
B49: IT Fundamentals | C49: Computer Fundamentals: Skills Check - Level 5 (Post) | D49: The Computer Fundamentals Skills Check - Level 5 (Post) evaluates 5th grade concepts for Computer Fundamentals. It assesses the learner's knowledge and skills about symbols of technology, computer systems, network basics, and hardware and software - including the ethical use issues surrounding them. | E49: Assessment | F49: Independent | G49: 15
B50: Keyboarding | C50: Adaptive Keyboarding: The Great Keyboarding Adventure | D50: This engaging and interactive app uses diagnostic exercises to provide learners with individualized touch-typing practice to address areas of weakness and help improve accuracy and speed at any skill level. Learners receive badges for specific achievements during their keyboarding adventure. | E50: Practice and Assessment | F50: Independent | G50: 45
F51: Minutes in Unit | G51: =SUM(G41:G50) -> 270
B53: Tips & Suggestions - When students finish their work with class time remaining, have them practice their keyboarding skills using Adaptive Keyboarding. Having students also type spelling or vocabulary words allows your students to apply their keyboarding skills in core subject areas.
B55: Digital Literacy Concept | C55: Curriculum Title | D55: Discussion | E55: Learning Component | F55: Implementation Model | G55: Time (in minutes)
B56: Online Safety & Digital Citizenship | C56: Internet Usage and Online Communication: Skills Check - Level 5 (Pre) | D56: Internet Usage & Online Communication Skills Check - Level 5 (Pre) evaluates 5th grade concepts for safe use of online communication tools and successful navigation and searching of the World Wide Web. It assesses the learner's knowledge and skills about performing safe and effective online searches, using digital collaboration tools, reading and writing blogs, and practicing online ethics. | E56: Assessment | F56: Independent | G56: 15
B57: Online Safety & Digital Citizenship | C57: Internet Usage: Browsing on the Internet | D57: The learners receive direct instruction and practice finding information on the World Wide Web. They gain understanding about the characteristics of websites, web pages, and browsers, using URLs to navigate, and dialog boxes to download files and software from the internet during this engaging and interactive digital lesson. | E57: Instruction and Practice | F57: Independent | G57: 15
B58: Online Safety & Digital Citizenship | C58: Internet Usage: URLs and Websites | D58: In this engaging and interactive digital lesson, the learners will receive direct instruction and practice identifying the source and purpose of a URL, using bookmarks to save links for future reference, troubleshooting basic error messages, and displaying web pages through HTML. | E58: Instruction and Practice | F58: Independent | G58: 15
B59: Online Safety & Digital Citizenship | C59: Internet Usage: Web Searches | D59: In this engaging and interactive digital lesson, the learners will receive direct instruction and practice with effective Internet search strategies. They will learn to use keywords, search phrases, truncation, and evaluate the relevance of search result information. | E59: Instruction and Practice | F59: Independent | G59: 15
B60: Online Safety & Digital Citizenship | C60: Internet Usage: Validity and Sourcing | D60: The learners receive direct instruction and practice with website credibility, information privacy, copyright, fair use, and sourcing as they safely log in to sites with restricted access and use critical thinking to determine the validity of online information in this engaging and interactive digital lesson. | E60: Instruction and Practice | F60: Independent | G60: 20
B61: Online Safety & Digital Citizenship | C61: Reading News Online | D61: What are the important parts of an online news article? Kids find and read news in lots of different ways. But studies show they're not very good at interpreting what they see. How can we help them get better? Teaching your students about the structure of online news articles is an important place to start. | E61: Instruction | F61: Whole Group | G61: 45
B62: Online Safety & Digital Citizenship | C62: Home Sweet Home | D62: Students are given a scenario about a family looking for a new place to live. They research different cities in different regions in the United States to determine which area would make the best home for the family. | E62: Application | F62: Small Group | G62: 90
B63: Online Safety & Digital Citizenship | C63: Netiquette in Online Communications | D63: In this animated video, Trey and two of his classmates are collaborating on their Virtual Science Fair project in a private chatroom when netiquette issues derail them from their task. The lesson introduces what netiquette is, why it’s important, and shows some of the negative sides of online communication. | E63: Instruction and Practice | F63: Independent | G63: 7
B64: Online Safety & Digital Citizenship | C64: Online Communication: Using Digital Collaboration Tools | D64: In this engaging and interactive digital lesson, the learners will receive direct instruction and practice using personal learning communities and digital environments as they use collaboration tools such as instant messaging and video conferencing to interact and share with their peers and experts. | E64: Instruction and Practice | F64: Independent | G64: 15
B65: Online Safety & Digital Citizenship | C65: Online Communications: Sending Email Messages | D65: During this engaging and interactive digital lesson, the learners will receive direct instruction and practice with online communication. They are introduced to email addresses and experience how to write and send email messages. | E65: Instruction and Practice | F65: Independent | G65: 12
B66: Online Safety & Digital Citizenship | C66: Online Communications: Responding to Email Messages | D66: The learners will receive direct instruction and practice with replying, forwarding, and deleting email messages as they use an email inbox, respond to multiple recipients simultaneously, and delete junk mail and old messages during this engaging and interactive digital lesson. | E66: Instruction and Practice | F66: Independent | G66: 8
B67: Online Safety & Digital Citizenship | C67: Online Communications: Communicating with Instant Messaging | D67: The learners will receive direct instruction and practice collaborating via instant messaging (IM) as they communicate clearly, safely, and successfully online, use proper netiquette and responsible Internet safety practices during this engaging and interactive digital lesson. | E67: Instruction and Practice | F67: Independent | G67: 15
B68: Online Safety & Digital Citizenship | C68: Online Communications: Reading and Writing Blogs | D68: In this engaging and interactive digital lesson, the learners will receive direct instruction and practice using critical thinking skills as they use Web logs to communicate ideas effectively, read and write blogs, and practice responsible use of blog information and software. | E68: Instruction and Practice | F68: Independent | G68: 18
B69: Online Safety & Digital Citizenship | C69: Online Communication: Communicating with Podcasts | D69: In this engaging and interactive digital lesson, the learners will receive direct instruction and practice planning, producing, and promoting podcasts as they recognize ethos, pathos, and logos in speech, effectively communicate ideas to an audience, and use podcasts to produce other creative works. | E69: Instruction and Practice | F69: Independent | G69: 15
B70: Online Safety & Digital Citizenship | C70: Digital Citizenship: Online Status Message Basics Discussion Reflection | D70: Teachers use discussion points to talk about online safety rules for using online status messages on social networking sites such as Twitter and Facebook. | E70: Discussion | F70: Whole Group | G70: 30
B71: Online Safety & Digital Citizenship | C71: Online Communication: Sharing on a Community Site | D71: In this engaging and interactive digital lesson, the learners will receive direct instruction and practice sharing information on community sites as they use productivity tools for collaboration, produce visual images and messages based on their audience, and practice ethical use of technology. | E71: Instruction and Practice | F71: Independent | G71: 15
B72: Online Safety & Digital Citizenship | C72: Internet Usage and Online Communication: Skills Check - Level 5 (Post) | D72: Internet Usage & Online Communication Skills Check - Level 5 (Post) evaluates 5th grade concepts for safe use of online communication tools and successful navigation and searching of the World Wide Web. It assesses the learner's knowledge and skills about performing safe and effective online searches, using digital collaboration tools, reading and writing blogs, and practicing online ethics. | E72: Assessment | F72: Independent | G72: 15
B73: Keyboarding | C73: Adaptive Keyboarding: The Great Keyboarding Adventure | D73: This engaging and interactive app uses diagnostic exercises to provide learners with individualized touch-typing practice to address areas of weakness and help improve accuracy and speed at any skill level. Learners receive badges for specific achievements during their keyboarding adventure. | E73: Practice and Assessment | F73: Independent | G73: 45
F74: Minutes in Unit | G74: =SUM(G56:G73) -> 410
B76: Tips & Suggestions - It is important to remind students that they need to be careful when online - whether at home or at school. When students finish their work with class time remaining, encourage them to utilize Adaptive Keyboarding to improve their technique, accuracy and speed. Now is a good time to remind students to save work products to their digital portfolio.
B78: Digital Literacy Concept | C78: Curriculum Title | D78: Description | E78: Learning Component | F78: Implementation Model | G78: Time (in minutes)
C79: * CIPA Required topic
B80: Online Safety & Digital Citizenship | C80: *Is It Cyberbullying? | D80: What is cyberbullying and what can you do to stop it? Let's face it: Some online spaces can be full of negative, rude, or downright mean behavior. But what counts as cyberbullying? Help your students learn what is -- and what isn't -- cyberbullying, and give them the tools they'll need to combat the problem. | E80: Instruction | F80: Whole Group | G80: 45
B81: Business Applications | C81: Word Processing: Skills Check - Level 5 (Pre) | D81: Word Processing Skills Check - Level 5 (Pre) evaluates 5th grade concepts for Word Processing. It assesses the learner's knowledge and skills about appropriate use of word processing applications when creating and communicating ideas, including basic document creation, editing, proofreading and correcting, formatting reports, and creating original works. | E81: Assessment | F81: Independent | G81: 15
B82: Business Applications | C82: Business Applications: Audience and Media Discussion Reflection | D82: In this lesson, teachers use the discussion points to help students understand the concept of audience and how to use font, color, white space, and graphics to design documents for print- and screen-viewing. | E82: Discussion | F82: Whole Group | G82: 30
B83: Business Applications | C83: Word Processing: Creating and Organizing Content | D83: This engaging and interactive digital lesson provides direct instruction and practice with using a word processing program to help with the writing process. The learners will gain knowledge about how to organize information, create lists, and insert pictures to better engage their audience. | E83: Instruction and Practice | F83: Independent | G83: 11
B84: Business Applications | C84: Word Processing: Revising and Formatting | D84: In this engaging and interactive digital lesson, the learners receive direct instruction and practice revising and formatting, as part of the writing process, while they use font style, color and size, paragraph alignment, spacing, page break, symbols, and moving text and images to enhance their document. | E84: Instruction and Practice | F84: Independent | G84: 10
B85: Business Applications | C85: Informational Interview | D85: Student will decide on a topic relating to a community problem in his or her hometown, interview two people who have ideas for solutions, transcribe the interview notes using a word processing program and compare and contrast the solutions. | E85: Application | F85: Guided | G85: 60
B86: Business Applications | C86: Word Processing: Editing and Proofreading Your Work | D86: This engaging and interactive digital lesson provides direct instruction and practice using a word processing program as part of the writing process. Learners will edit and proofread text, check for spelling and grammar mistakes, and improve writing by using the thesaurus and word count tools. | E86: Instruction and Practice | F86: Independent | G86: 15
B87: Business Applications | C87: Word Processing: Page Layout | D87: This engaging and interactive digital lesson provides direct instruction and practice in styling a page layout while considering specific audiences by adjusting page size, setting margins and page orientation, formatting columns, and inserting page numbers. | E87: Instruction and Practice | F87: Independent | G87: 10
B88: Business Applications | C88: Creating a Newsletter | D88: Students work in small groups to create and format newletters. | E88: Application | F88: Small Groups | G88: 60
B89: Business Applications | C89: Word Processing: Proofreading and Correcting - Level 2 | D89: This engaging and interactive digital lesson provides practice applying proofreading skills while using a word processor. The learners will complete four focused exercises that require them to find and correct errors in spelling (using a spell checker), punctuation, capitalization, and homonyms. | E89: Practice | F89: Independent | G89: 12
B90: Business Applications | C90: Word Processing: Introduction to Desktop Publishing | D90: The learners receive direct instruction and practice using more than one software application to create documents using text, graphics, and templates to enhance design and layout, creating checklists, and using print preview to evaluate work progress and final products in this engaging and interactive digital lesson. | E90: Instruction and Practice | F90: Independent | G90: 12
B91: Business Applications | C91: Create a Set of Instructions | D91: Students tap creativity and show their understanding of technology by developing instructions to help Grade 2 students create an "All About Me" page using available technology tools. To inform their design decisions, they analyze data about the Grade 2 student skills. The project includes: - Instructions that Grade 2 students can use to create an "All About Me" page - A reflective description of their ideas, decisions, reasoning, and problems and solutions as they created the instructions. | E91: Application | F91: Guided | G91: 90
B92: Business Applications | C92: Word Processing: Skills Check - Level 5 (Post) | D92: Word Processing Skills Check - Level 5 (Post) evaluates 5th grade concepts for Word Processing. It assesses the learner's knowledge and skills about appropriate use of word processing applications when creating and communicating ideas, including basic document creation, editing, proofreading and correcting, formatting reports, and creating original works. | E92: Assessment | F92: Independent | G92: 15
B93: Keyboarding | C93: Adaptive Keyboarding: The Great Keyboarding Adventure | D93: This engaging and interactive app uses diagnostic exercises to provide learners with individualized touch-typing practice to address areas of weakness and help improve accuracy and speed at any skill level. Learners receive badges for specific achievements during their keyboarding adventure. | E93: Practice and Assessment | F93: Independent | G93: 45
F94: Minutes in Unit | G94: =SUM(G80:G93) -> 430
B96: Tips & Suggestions - Provide students with opportunities to publish their classroom writing in word processing documents along with digital or hand drawn art that illustrates their writing. When students finish their work with class time remaining, have them practice their keyboarding skills using Adaptive Keyboarding.
B98: Digital Literacy Concept | C98: Curriculum Title | D98: Description | E98: Learning Component | F98: Implementation Model | G98: Time (in minutes)
B99: Online Safety & Digital Citizenship | C99: Digital Friendships | D99: How do you keep online friendships safe? Kids make friends everywhere they go -- including online. But are all of these friendships the same? How can kids start online friendships and also learn ways to stay safe? Help your students understand both the benefits and the risks of online-only friendships. Note: Lesson plan & resources available. | E99: Instruction | F99: Whole Group | G99: 45
B100: Business Applications | C100: Presentations: Skills Check - Level 5 (Pre) | D100: Presentations Skills Check - Level 5 (Pre) evaluates 5th grade concepts for Presentations. It assesses the learner's knowledge of basic presentation skills using slideshow applications. | E100: Assessment | F100: Independent | G100: 15
B101: Business Applications | C101: Presentations: Audience and Organization | D101: In this engaging and interactive digital lesson, learners will receive direct instruction and practice organizing and developing a slide show using presentation software. They learn how to consider the audience and the purpose of the slide show to tell stories, present information, and share ideas. | E101: Instruction and Practice | F101: Independent | G101: 12
B102: Business Applications | C102: Presentations: Composing Slides | D102: During this engaging and interactive digital lesson, the learners will receive direct instruction and practice composing slides using presentation software as they consider and use design elements, layouts, backgrounds, text, images, and white space to create and modify engaging slide shows. | E102: Instruction and Practice | F102: Independent | G102: 10
B103: Business Applications | C103: Presentations: Enhancing Slides | D103: The learners receive direct instruction and practice enhancing presentation slides to communicate their voice to an audience. They learn to choose and use effective color palettes, apply color and formatting to text, draw and customize objects, and add animation and sound in this engaging and interactive digital lesson. | E103: Instruction and Practice | F103: Independent | G103: 8
B104: Business Applications | C104: Presentations: Evaluating and Presenting | D104: The learners will receive direct instruction and practice with enhancing and editing a slideshow before presenting to an audience. They will edit and organize slides, use tools to add consistent and appropriate transitions, and evaluate their work before presenting in this engaging and interactive digital lesson. | E104: Instruction and Practice | F104: Independent | G104: 9
B105: Business Applications | C105: Natural Resources Presentation | D105: Students create a presentation about a natural resource for two different audiences. | E105: Application | F105: Guided | G105: 60
B106: Business Applications | C106: Natural Resources Presentation (Presentations) | E106: Application | F106: Whole Group
B107: Business Applications | C107: Presentations: Skills Check - Level 5 (Post) | D107: Presentations Skills Check - Level 5 (Post) evaluates 5th grade concepts for Presentations. It assesses the learner's knowledge of basic presentation skills using slideshow applications. | E107: Assessment | F107: Independent | G107: 15
B108: Keyboarding | C108: Adaptive Keyboarding: The Great Keyboarding Adventure | D108: This engaging and interactive app uses diagnostic exercises to provide learners with individualized touch-typing practice to address areas of weakness and help improve accuracy and speed at any skill level. Learners receive badges for specific achievements during their keyboarding adventure. | E108: Practice and Assessment | F108: Independent | G108: 45
F109: Minutes in Unit | G109: =SUM(G99:G108) -> 219
B111: Tips & Suggestions - Student-created presentations are a great way to integrate technology with core content subject areas. Have students utilize their new skills to create a presentation about something they are learning in language arts, math, science or social studies and then use the presentation as review for the class.
B113: Digital Literacy Concept | C113: Curriculum Title | D113: Description | E113: Learning Component | F113: Implementation Model | G113: Time (in minutes)
B114: Computer Science | C114: Computational Thinking: Skills Check - Level 5 (Pre) | D114: Computational Thinking - Level 5 (Pre) evaluates 5th grade concepts for Computational Thinking. It assesses the learner's understanding and ability to use digital tools in the problem solving process. | E114: Assessment | F114: Independent | G114: 15
B115: Computer Science | C115: Computational Thinking: Modeling | D115: As part of computational thinking, learners receive direct instruction and practice using models to represent a process, data, or solutions. They will organize information using simulations and prototypes, develop and test algorithms, and define solutions. They are introduced to binary language, how digital tools use this language, and the importance of algorithms in computer programming. | E115: Instruction | F115: Independent | G115: 15
B116: Computer Science | C116: Bedroom Blueprint | D116: A crucial component of computational thinking is building and understanding models. In this application exercise, students utilize two methods of modeling to create their ideal bedroom. | E116: Application | F116: Guided | G116: 90
B117: Computer Science | C117: Computational Thinking: Skills Check - Level 5 (Post) | D117: Computational Thinking - Level 5 (Post) evaluates 5th grade concepts for Computational Thinking. It assesses the learner's understanding and ability to use digital tools in the problem solving process. | E117: Assessment | F117: Independent | G117: 15
B118: Keyboarding | C118: Adaptive Keyboarding: The Great Keyboarding Adventure | D118: This engaging and interactive app uses diagnostic exercises to provide learners with individualized touch-typing practice to address areas of weakness and help improve accuracy and speed at any skill level. Learners receive badges for specific achievements during their keyboarding adventure. | E118: Practice and Assessment | F118: Independent | G118: 45
F119: Minutes in Unit | G119: =SUM(G114:G118) -> 180
B121: Tips & Suggestions - If your students are new to computational thinking, utilize the lesson on algorithms to begin the unit. When students finish their work with class time remaining, encourage them to open skill mode in the EasyCode map and complete unlocked challenges.
B123: Digital Literacy Concept | C123: Curriculum Title | D123: Description | E123: Learning Component | F123: Implementation Model | G123: Time (in minutes)
B124: Online Safety & Digital Citizenship | C124: * You Won't Believe This | D124: What is clickbait and how can you avoid it? The internet is full of catchy headlines and outrageous images, all to make us curious and get our attention. But kids don't usually realize: What you click on isn't always what you get. Show your students the best ways to avoid clickbait online. | E124: Instruction | F124: Whole Group | G124: 45
B125: Business Applications | C125: Spreadsheets and Databases: Skills Check - Level 5 (Pre) | D125: Spreadsheets & Databases - Level 5 (Pre) evaluates 5th grade concepts for Spreadsheets and Databases. It assesses the learner's understanding of knowledge and appropriate use of spreadsheet applications to arrange, evaluate, store, and share data and understanding of database applications to search different types of information. | E125: Assessment | F125: Independent | G125: 15
B126: Business Applications | C126: Spreadsheets: Pie Charts | D126: The learners will receive direct instruction and practice with pie charts in a spreadsheet program. They will use data found in a spreadsheet to create and label pie charts, then practice reading and interpreting data found in a pie chart during this engaging and interactive digital lesson. | E126: Instruction and Practice | F126: Independent | G126: 10
B127: Business Applications | C127: Spreadsheets: Bar Charts | D127: This engaging and interactive digital lesson provides direct instruction and practice as the learners work with bar charts in a spreadsheet program. They will use data found in a spreadsheet to create and label bar charts, then practice reading and interpreting data found in a bar chart. | E127: Instruction and Practice | F127: Independent | G127: 11
B128: Business Applications | C128: Spreadsheets: Line Charts | D128: This engaging and interactive digital lesson provides direct instruction and practice as the learners work with line charts in a spreadsheet program. They will use data found in a spreadsheet to create and label line charts, then practice reading and interpreting data found in a line chart. | E128: Instruction and Practice | F128: Independent | G128: 8
B129: Business Applications | C129: Mixtures and Solutions | D129: Students observe physical properties of solutions and mixtures, and then create and interpret graphs about specific samples. | E129: Application | F129: Guided | G129: 60
B130: Business Applications | C130: Spreadsheets: Using Formulas to Add and Subtract | D130: During this engaging and interactive digital lesson, learners will receive direct instruction and practice adding and subtracting data using formulas in spreadsheet tables. Learners will experience using cell names and addresses to create formulas, entering data in a cell, and using the sum command. | E130: Instruction and Practice | F130: Independent | G130: 13
B131: Business Applications | C131: Spreadsheets: Using Formulas to Multiply and Divide | D131: During this engaging and interactive digital lesson, learners will receive direct instruction and practice multiplying and dividing data using formulas in spreadsheet tables. Learners will experience using cell names and addresses to create formulas and entering data and numerical formulas in a cell. | E131: Instruction and Practice | F131: Independent | G131: 12
B132: Business Applications | C132: Bake Sale Spreadsheet | D132: Students create a table of bake sale information and calculate totals using formulas in a spreadsheet. | E132: Application | F132: Guided | G132: 30
B133: Business Applications | C133: Spreadsheets: Copying Formulas and Functions | D133: This engaging and interactive digital lesson provides direct instruction and practice with copying and pasting formulas in spreadsheets. Learners will use functions and gain additional experience working with formulas and tables. | E133: Instruction and Practice | F133: Independent | G133: 10
B134: Business Applications | C134: Databases: Planning and Building a Database | D134: In this engaging and interactive digital lesson, the learners will receive direct instruction and practice in planning and building a database. They will create a form, start a new file, create, edit, and define fields, and review, edit, and delete data. | E134: Instruction and Practice | F134: Independent | G134: 18
B135: Business Applications | C135: Databases: Database Creation Journal | D135: Students go on a scavenger hunt to observe different types of transportation signs. They enter the information into a datasheet and modify the datasheet daily based on the signs they find and the criteria they use to describe them. | E135: Application | F135: Guided | G135: 45
B136: Business Applications | C136: Databases: Designing Queries and Reports | D136: In this engaging and interactive digital lesson, the learners will receive direct instruction and practice designing basic queries as they query data to find answers, save queries for future use, and share data by creating and printing reports. | E136: Instruction and Practice | F136: Independent | G136: 10
B137: Business Applications | C137: Databases: Queries and Reports Journal | D137: Students use the information they gathered for the EasyTech Database Creation Lesson to run queries and create reports that will be shared and evaluated by peer teams. | E137: Application | F137: Guided | G137: 30
B138: Business Applications | C138: Spreadsheets and Databases: Skills Check - Level 5 (Post) | D138: Spreadsheets & Databases - Level 5 (Post) evaluates 5th grade concepts for Spreadsheets and Databases. It assesses the learner's understanding of knowledge and appropriate use of spreadsheet applications to arrange, evaluate, store, and share data and understanding of database applications to search different types of information. | E138: Assessment | F138: Independent | G138: 15
B139: Keyboarding | C139: Adaptive Keyboarding: The Great Keyboarding Adventure | D139: This engaging and interactive app uses diagnostic exercises to provide learners with individualized touch-typing practice to address areas of weakness and help improve accuracy and speed at any skill level. Learners receive badges for specific achievements during their keyboarding adventure. | E139: Practice and Assessment | F139: Independent | G139: 45
F140: Minutes in Unit | G140: =SUM(G124:G139) -> 377
B142: Tips & Suggestions - Have students practice entering data to create spreadsheets, build charts, and produce graphs based on content being studied in core curriculum, physical education, or other classes to show how the data is represented.
B144: Digital Literacy Concept | C144: Curriculum Title | D144: Description | E144: Learning Component | F144: Implementation Model | G144: Time (in minutes)
C145: * CIPA Required topic
B146: Online Safety & Digital Citizenship | C146: Finding My Media Balance | D146: What does media balance mean for me? Helping kids learn what makes different media choices healthy or not is a good start. But how do we help them actually make responsible choices in the real world? Give your students the opportunity to create a personalized media plan. | E146: Instruction | F146: Whole Group | G146: 45
B147: Onlin Safety & Digital Citizenship | C147: * Summer Online Safety PSA | D147: Students will work in groups to create a PSA (Public Service Announcement) to remind students about how to stay safe online during the summer. | E147: Application | F147: Small Group | G147: 120
B148: Onlin Safety & Digital Citizenship | C148: Summer Online Safety PSA (Presentations)
B149: Onlin Safety & Digital Citizenship | C149: Update Student Portfolios
B150: Keyboarding | C150: Adaptive Keyboarding: The Great Keyboarding Adventure | D150: This engaging and interactive app uses diagnostic exercises to provide learners with individualized touch-typing practice to address areas of weakness and help improve accuracy and speed at any skill level. Learners receive badges for specific achievements during their keyboarding adventure. | E150: Practice and Assessment | F150: Independent | G150: 45
F151: Minutes in Unit | G151: =SUM(G146:G150) -> 210
F153: Total minutes | G153: =SUM(G151,G140,G119,G109,G94,G74,G51,G36) -> 2465
